Service Delivery Area(T),Service Delivery Team(T),ExpenditureGroup(T),Account(T),Supplier Name(T),Trans Date,Amount
Adult Social Care,ASC Directorate,Supplies & Services,Other Grants (Expenses),Department of Health and Social Care,28/03/2023,"61,503.00"
Adult Social Care,ASC Directorate,Supplies & Services,Other Grants (Expenses),Department of Health and Social Care,28/03/2023,"206,118.37"
Adult Social Care,ASC Prevention & Enablement,Supplies & Services,Other Grants (Expenses),SHROPSHIRE PARTNERS IN CARE LTD,09/03/2023,"2,500.00"
Adult Social Care,ASC Prevention & Enablement,Transport-Related Expenditure,Taxi Costs,Cartello Ambulance,17/03/2023,157.50
Adult Social Care,ASC Prevention & Enablement,Transport-Related Expenditure,Taxi Costs,Cartello Ambulance,17/03/2023,342.00
Adult Social Care,ASC Prevention & Enablement,Third Party Payments,Nursing Expenditure,NHS Shropshire Telford & Wrekin ICB QOC Receivables ,09/03/2023,"7,440.00"
Adult Social Care,ASC Prevention & Enablement,Third Party Payments,Nursing Expenditure,NHS Shropshire Telford & Wrekin ICB QOC Receivables ,29/03/2023,"7,440.00"
Adult Social Care,ASC Prevention & Enablement,Supplies & Services,Mobile Phones,EE LTD EQUIPMENT ,08/03/2023,142.00
Adult Social Care,ASC Prevention & Enablement,Supplies & Services,Mobile Phones,EE LTD EQUIPMENT ,21/03/2023,142.00
Adult Social Care,ASC Prevention & Enablement,Supplies & Services,Mobile Phones,EE LTD EQUIPMENT ,29/03/2023,142.00
Adult Social Care,ASC Prevention & Enablement,Supplies & Services,Mobile Phones,EE LTD EQUIPMENT ,29/03/2023,142.00
Adult Social Care,ASC Prevention & Enablement,Employees,Employee Costs Recharged,SHROPSHIRE COMMUNITY HEALTH NHS TRUST,16/03/2023,"19,662.00"
Adult Social Care,ASC Prevention & Enablement,Supplies & Services,Medical Consultants Fees,SW Healthcare Ltd,16/03/2023,862.50
Adult Social Care,ASC Prevention & Enablement,Employees,Employee Costs Recharged,SHROPSHIRE COMMUNITY HEALTH NHS TRUST,16/03/2023,"19,662.00"
Adult Social Care,ASC Prevention & Enablement,Employees,Employee Costs Recharged,SHROPSHIRE COMMUNITY HEALTH NHS TRUST,30/03/2023,"19,662.00"
Adult Social Care,ASC Prevention & Enablement,Employees,Employee Costs Recharged,SHROPSHIRE COMMUNITY HEALTH NHS TRUST,20/03/2023,"19,662.00"
Adult Social Care,"Commissioning, Procurement & Brokerage",Supplies & Services,Other Grants (Expenses),Weston House Residential Home,28/03/2023,"4,505.76"
Adult Social Care,"Commissioning, Procurement & Brokerage",Supplies & Services,Other Grants (Expenses),Springcare - Beech House,31/03/2023,"4,840.32"
Adult Social Care,"Commissioning, Procurement & Brokerage",Third Party Payments,Interpreters Fees,WORD 360 ,23/03/2023,"5,085.77"
Adult Social Care,"Commissioning, Procurement & Brokerage",Supplies & Services,Other Grants (Expenses),Yockleton Grange - Springcare Ltd,23/03/2023,"4,263.96"
Adult Social Care,"Commissioning, Procurement & Brokerage",Supplies & Services,Other Grants (Expenses),VISION HOMES ASSOCIATION,23/03/2023,624.00
Adult Social Care,"Commissioning, Procurement & Brokerage",Supplies & Services,Other Grants (Expenses),VISION HOMES ASSOCIATION,23/03/2023,624.00
Adult Social Care,"Commissioning, Procurement & Brokerage",Supplies & Services,Other Grants (Expenses),VISION HOMES ASSOCIATION,23/03/2023,624.00
Adult Social Care,"Commissioning, Procurement & Brokerage",Supplies & Services,Other Grants (Expenses),VISION HOMES ASSOCIATION,23/03/2023,811.80
Adult Social Care,"Commissioning, Procurement & Brokerage",Supplies & Services,Other Grants (Expenses),TACT,24/03/2023,"10,450.00"
Adult Social Care,"Commissioning, Procurement & Brokerage",Supplies & Services,Other Grants (Expenses),TACT,24/03/2023,"10,450.00"
Adult Social Care,"Commissioning, Procurement & Brokerage",Supplies & Services,Other Grants (Expenses),SHROPSHIRE COMMUNITY HEALTH NHS TRUST,23/03/2023,"24,088.81"
Adult Social Care,"Commissioning, Procurement & Brokerage",Supplies & Services,Other Grants (Expenses),Medgen LTD,27/03/2023,"1,375.44"
Adult Social Care,"Commissioning, Procurement & Brokerage",Supplies & Services,Other Grants (Expenses),Medgen LTD,27/03/2023,410.98
Adult Social Care,"Commissioning, Procurement & Brokerage",Supplies & Services,Other Grants (Expenses),Medgen LTD,27/03/2023,"1,020.19"
Adult Social Care,Community Social Work & Adult Safeguarding,Supplies & Services,Other Grants (Expenses),VoiceAbility,28/03/2023,"6,625.00"
Adult Social Care,Community Social Work & Adult Safeguarding,Employees,Staff Training,CHESHIRE EAST BOROUGH COUNCIL,22/03/2023,160.00
Adult Social Care,Community Social Work & Adult Safeguarding,Supplies & Services,Legal Expenses,St Ives Chambers,10/03/2023,"1,110.00"
Adult Social Care,Community Social Work & Adult Safeguarding,Transport-Related Expenditure,Taxi Costs,Ezy Car Ltd,23/03/2023,"1,078.80"
Adult Social Care,Community Social Work & Adult Safeguarding,Third Party Payments,Supported Living,Support Elite at Home Ltd ,09/03/2023,"11,980.80"
Adult Social Care,Community Social Work & Adult Safeguarding,Third Party Payments,Supported Living,Shawbirch Medical Health Practice Limited,13/03/2023,"-11,980.80"
Adult Social Care,Community Social Work & Adult Safeguarding,Supplies & Services,Legal Expenses,WEIGHTMANS,28/03/2023,333.50
Adult Social Care,Community Social Work & Adult Safeguarding,Supplies & Services,Legal Expenses,WEIGHTMANS,28/03/2023,130.50
Adult Social Care,Community Social Work & Adult Safeguarding,Supplies & Services,Legal Expenses,WEIGHTMANS,28/03/2023,159.50
Adult Social Care,Community Social Work & Adult Safeguarding,Third Party Payments,Interpreters Fees,Premium Linguistic Services,09/03/2023,163.95
Adult Social Care,Community Social Work & Adult Safeguarding,Supplies & Services,Mobile Phones,EE LTD EQUIPMENT ,08/03/2023,142.00
Adult Social Care,Community Social Work & Adult Safeguarding,Supplies & Services,Medical Consultants Fees,REDACTED PERSONAL INFORMATIOMN,30/03/2023,736.00
Adult Social Care,Community Social Work & Adult Safeguarding,Supplies & Services,Medical Consultants Fees,Social Care Assist Ltd,30/03/2023,371.00
Adult Social Care,Community Social Work (Principal Social Worker),Transport-Related Expenditure,Taxi Costs,Ezy Car Ltd,28/03/2023,404.55
Adult Social Care,Community Social Work (Principal Social Worker),Transport-Related Expenditure,Taxi Costs,Ezy Car Ltd,28/03/2023,539.40
Adult Social Care,Community Social Work (Principal Social Worker),Transport-Related Expenditure,Taxi Costs,Ezy Car Ltd,28/03/2023,719.20
Adult Social Care,Community Social Work (Principal Social Worker),Transport-Related Expenditure,Taxi Costs,Ezy Car Ltd,28/03/2023,981.90
Adult Social Care,Community Social Work (Principal Social Worker),Transport-Related Expenditure,Taxi Costs,Cartello Ambulance,28/03/2023,183.75
Adult Social Care,Community Social Work (Principal Social Worker),Transport-Related Expenditure,Taxi Costs,Telford and Wrekin Community Enterprise LTD,28/03/2023,516.00
Adult Social Care,Community Social Work (Principal Social Worker),Transport-Related Expenditure,Taxi Costs,Ezy Car Ltd,28/03/2023,629.30
Adult Social Care,Community Social Work (Principal Social Worker),Transport-Related Expenditure,Taxi Costs,Ezy Car Ltd,10/03/2023,627.30
Adult Social Care,Community Social Work (Principal Social Worker),Transport-Related Expenditure,Taxi Costs,Health Care & Support Ltd,10/03/2023,510.00
Adult Social Care,Community Social Work (Principal Social Worker),Transport-Related Expenditure,Taxi Costs,Ezy Car Ltd,10/03/2023,449.60
Adult Social Care,Community Social Work (Principal Social Worker),Supplies & Services,Other Grants (Expenses),TAKING PART,23/03/2023,"1,207.50"
Adult Social Care,Community Social Work (Principal Social Worker),Supplies & Services,Other Grants (Expenses),TAKING PART,29/03/2023,276.00
Adult Social Care,Community Social Work (Principal Social Worker),Premises-Related Expenditure,General Rents,BOURNVILLE VILLAGE TRUST,28/03/2023,"12,764.88"
Adult Social Care,Community Social Work (Principal Social Worker),Premises-Related Expenditure,General Rents,BOURNVILLE VILLAGE TRUST,28/03/2023,"12,764.88"
Adult Social Care,Community Social Work (Principal Social Worker),Premises-Related Expenditure,General Rents,First Choice Housing Association LTD,02/03/2023,414.46
Adult Social Care,Community Social Work (Principal Social Worker),Premises-Related Expenditure,General Rents,First Choice Housing Association LTD,02/03/2023,"1,606.04"
Adult Social Care,Community Social Work (Principal Social Worker),Transfer Payments,Block Voids,First Choice Housing Association LTD,02/03/2023,"2,474.76"
Adult Social Care,Community Social Work (Principal Social Worker),Transfer Payments,Block Voids,First Choice Housing Association LTD,02/03/2023,"3,552.48"
Adult Social Care,Community Social Work (Principal Social Worker),Employees,Staff Training,HASCA Ltd,15/03/2023,"1,300.00"
Adult Social Care,My Options,Capital Expenditure,Payments to Contractor,PAVE AWAYS LTD,28/03/2023,"133,415.13"
Adult Social Care,My Options,Capital Expenditure,Payments to Contractor,Ridge and Partners LLP,06/03/2023,"2,957.00"
Adult Social Care,My Options,Premises-Related Expenditure,Clean Mats & Toilet Requisites,PHS GROUP,22/03/2023,125.22
Adult Social Care,My Options,Employees,Training Expenses,SHROPSHIRE PARTNERS IN CARE LTD,16/03/2023,650.00
Adult Social Care,My Options,Supplies & Services,Computer Software (Maint),Nourish Care Systems Ltd,28/03/2023,"15,600.00"
Adult Social Care,My Options,Supplies & Services,Computer Software (Maint),Nourish Care Systems Ltd,28/03/2023,"3,120.00"
Adult Social Care,My Options,Supplies & Services,Computer Software (Maint),Nourish Care Systems Ltd,28/03/2023,"1,664.00"
Adult Social Care,My Options,Supplies & Services,Laundry & Towel Hire,PHS GROUP,23/03/2023,320.73
Adult Social Care,My Options,Supplies & Services,Laundry & Towel Hire,PHS GROUP,24/03/2023,192.15
Adult Social Care,My Options,Premises-Related Expenditure,Hire Of Rooms,Dawley Baptist Church,07/03/2023,231.00
Adult Social Care,My Options,Premises-Related Expenditure,Hire Of Rooms,All Saints Wellington,21/03/2023,255.00
Adult Social Care,My Options,Employees,Agency Supply Costs,Safehands Recruitment,07/03/2023,"2,679.00"
Adult Social Care,My Options,Employees,Agency Supply Costs,Nurse Plus and Carer Plus Limited,07/03/2023,"1,048.55"
Adult Social Care,My Options,Employees,Agency Supply Costs,Nurse Plus and Carer Plus Limited,16/03/2023,"2,312.90"
Adult Social Care,My Options,Employees,Agency Supply Costs,Safehands Recruitment,16/03/2023,"1,697.61"
Adult Social Care,My Options,Employees,Agency Supply Costs,Nurse Plus and Carer Plus Limited,16/03/2023,"2,047.68"
Adult Social Care,My Options,Employees,Agency Supply Costs,Safehands Recruitment,16/03/2023,"2,806.00"
Adult Social Care,My Options,Employees,Agency Supply Costs,Nurse Plus and Carer Plus Limited,30/03/2023,"1,871.98"
Adult Social Care,My Options,Employees,Agency Supply Costs,Safehands Recruitment,30/03/2023,"1,294.00"
Adult Social Care,My Options,Employees,Agency Supply Costs,Safehands Recruitment,24/03/2023,"1,658.00"
Adult Social Care,My Options,Employees,Agency Supply Costs,Nurse Plus and Carer Plus Limited,24/03/2023,"1,138.20"
Adult Social Care,My Options,Premises-Related Expenditure,Clean Mats & Toilet Requisites,BERWICK CARE EQUIPMENT LTD,07/03/2023,389.27
Adult Social Care,My Options,Supplies & Services,Equipment - Hire,CARTWRIGHTS WASTE DISPOSAL SERV LTD,30/03/2023,205.00
Adult Social Care,My Options,Premises-Related Expenditure,Clean Mats & Toilet Requisites,BERWICK CARE EQUIPMENT LTD,27/03/2023,-102.40
Adult Social Care,My Options,Supplies & Services,Equipment - Purchase,MEDACO,24/03/2023,367.59
Adult Social Care,My Options,Employees,Agency Supply Costs,Safehands Recruitment,07/03/2023,612.00
Adult Social Care,My Options,Employees,Agency Supply Costs,Nurse Plus and Carer Plus Limited,07/03/2023,568.26
Adult Social Care,My Options,Employees,Agency Supply Costs,Acton Banks Limited,07/03/2023,311.35
Adult Social Care,My Options,Employees,Agency Supply Costs,Acton Banks Limited,07/03/2023,299.38
Adult Social Care,My Options,Employees,Agency Supply Costs,Acton Banks Limited,07/03/2023,311.35
Adult Social Care,My Options,Employees,Agency Supply Costs,Acton Banks Limited,07/03/2023,311.35
Adult Social Care,My Options,Employees,Agency Supply Costs,Acton Banks Limited,07/03/2023,227.53
Adult Social Care,My Options,Employees,Agency Supply Costs,Acton Banks Limited,07/03/2023,231.60
Adult Social Care,My Options,Employees,Agency Supply Costs,Acton Banks Limited,07/03/2023,231.60
Adult Social Care,My Options,Employees,Agency Supply Costs,Acton Banks Limited,28/03/2023,311.35
Adult Social Care,My Options,Employees,Agency Supply Costs,Acton Banks Limited,28/03/2023,239.50
Adult Social Care,My Options,Employees,Agency Supply Costs,Acton Banks Limited,28/03/2023,311.35
Adult Social Care,My Options,Employees,Agency Supply Costs,Acton Banks Limited,28/03/2023,311.35
Adult Social Care,My Options,Employees,Agency Supply Costs,Acton Banks Limited,07/03/2023,227.53
Adult Social Care,My Options,Employees,Agency Supply Costs,Safehands Recruitment,07/03/2023,275.50
Adult Social Care,My Options,Employees,Agency Supply Costs,Acton Banks Limited,07/03/2023,311.35
Adult Social Care,My Options,Employees,Agency Supply Costs,Safehands Recruitment,16/03/2023,119.00
Adult Social Care,My Options,Employees,Agency Supply Costs,Safehands Recruitment,16/03/2023,408.50
Adult Social Care,My Options,Employees,Agency Supply Costs,Safehands Recruitment,16/03/2023,252.00
Adult Social Care,My Options,Employees,Agency Supply Costs,Nurse Plus and Carer Plus Limited,16/03/2023,735.50
Adult Social Care,My Options,Employees,Agency Supply Costs,Safehands Recruitment,16/03/2023,371.00
Adult Social Care,My Options,Employees,Agency Supply Costs,Nurse Plus and Carer Plus Limited,16/03/2023,"1,244.06"
Adult Social Care,My Options,Employees,Agency Supply Costs,Nurse Plus and Carer Plus Limited,16/03/2023,134.63
Adult Social Care,My Options,Employees,Agency Supply Costs,Nurse Plus and Carer Plus Limited,16/03/2023,"1,847.49"
Adult Social Care,My Options,Employees,Agency Supply Costs,JN Recruitment,16/03/2023,577.50
Adult Social Care,My Options,Employees,Agency Supply Costs,JN Recruitment,16/03/2023,566.50
Adult Social Care,My Options,Employees,Agency Supply Costs,Safehands Recruitment,16/03/2023,475.00
Adult Social Care,My Options,Employees,Agency Supply Costs,Safehands Recruitment,16/03/2023,"1,019.73"
Adult Social Care,My Options,Employees,Agency Supply Costs,Nurse Plus and Carer Plus Limited,16/03/2023,"2,117.02"
Adult Social Care,My Options,Employees,Agency Supply Costs,Nurse Plus and Carer Plus Limited,16/03/2023,568.59
Adult Social Care,My Options,Employees,Agency Supply Costs,Nurse Plus and Carer Plus Limited,16/03/2023,685.88
Adult Social Care,My Options,Employees,Agency Supply Costs,Nurse Plus and Carer Plus Limited,16/03/2023,"4,427.35"
Adult Social Care,My Options,Employees,Agency Supply Costs,Acton Banks Limited,16/03/2023,311.35
Adult Social Care,My Options,Employees,Agency Supply Costs,Acton Banks Limited,16/03/2023,311.35
Adult Social Care,My Options,Employees,Agency Supply Costs,Acton Banks Limited,16/03/2023,311.35
Adult Social Care,My Options,Employees,Agency Supply Costs,Acton Banks Limited,16/03/2023,311.35
Adult Social Care,My Options,Employees,Agency Supply Costs,Acton Banks Limited,16/03/2023,311.35
Adult Social Care,My Options,Employees,Agency Supply Costs,Acton Banks Limited,16/03/2023,311.35
Adult Social Care,My Options,Employees,Agency Supply Costs,Acton Banks Limited,16/03/2023,311.35
Adult Social Care,My Options,Employees,Agency Supply Costs,Acton Banks Limited,16/03/2023,311.35
Adult Social Care,My Options,Employees,Agency Supply Costs,Acton Banks Limited,16/03/2023,311.35
Adult Social Care,My Options,Employees,Agency Supply Costs,Acton Banks Limited,16/03/2023,227.53
Adult Social Care,My Options,Employees,Agency Supply Costs,Acton Banks Limited,16/03/2023,231.60
Adult Social Care,My Options,Employees,Agency Supply Costs,Nurse Plus and Carer Plus Limited,30/03/2023,272.38
Adult Social Care,My Options,Employees,Agency Supply Costs,Nurse Plus and Carer Plus Limited,30/03/2023,596.80
Adult Social Care,My Options,Employees,Agency Supply Costs,Nurse Plus and Carer Plus Limited,30/03/2023,817.45
Adult Social Care,My Options,Employees,Agency Supply Costs,Safehands Recruitment,30/03/2023,387.75
Adult Social Care,My Options,Employees,Agency Supply Costs,Safehands Recruitment,30/03/2023,238.00
Adult Social Care,My Options,Employees,Agency Supply Costs,Safehands Recruitment,30/03/2023,764.50
Adult Social Care,My Options,Employees,Agency Supply Costs,Safehands Recruitment,30/03/2023,"1,056.50"
Adult Social Care,My Options,Employees,Agency Supply Costs,Safehands Recruitment,30/03/2023,"2,141.56"
Adult Social Care,My Options,Employees,Agency Supply Costs,Safehands Recruitment,30/03/2023,266.00
Adult Social Care,My Options,Employees,Agency Supply Costs,Nurse Plus and Carer Plus Limited,30/03/2023,269.26
Adult Social Care,My Options,Employees,Agency Supply Costs,Acton Banks Limited,07/03/2023,335.30
Adult Social Care,My Options,Employees,Agency Supply Costs,Acton Banks Limited,24/03/2023,311.35
Adult Social Care,My Options,Employees,Agency Supply Costs,Acton Banks Limited,24/03/2023,275.43
Adult Social Care,My Options,Employees,Agency Supply Costs,Acton Banks Limited,07/03/2023,311.35
Adult Social Care,My Options,Employees,Agency Supply Costs,Acton Banks Limited,07/03/2023,311.35
Adult Social Care,My Options,Employees,Agency Supply Costs,Acton Banks Limited,07/03/2023,311.35
Adult Social Care,My Options,Employees,Agency Supply Costs,Acton Banks Limited,07/03/2023,311.35
Adult Social Care,My Options,Employees,Agency Supply Costs,Acton Banks Limited,07/03/2023,311.35
Adult Social Care,My Options,Employees,Agency Supply Costs,Acton Banks Limited,07/03/2023,231.60
Adult Social Care,My Options,Employees,Agency Supply Costs,Acton Banks Limited,07/03/2023,311.35
Adult Social Care,My Options,Employees,Agency Supply Costs,Acton Banks Limited,24/03/2023,311.35
Adult Social Care,My Options,Employees,Agency Supply Costs,Acton Banks Limited,24/03/2023,231.60
Adult Social Care,My Options,Employees,Agency Supply Costs,Nurse Plus and Carer Plus Limited,24/03/2023,919.88
Adult Social Care,My Options,Employees,Agency Supply Costs,Nurse Plus and Carer Plus Limited,24/03/2023,"3,777.06"
Adult Social Care,My Options,Employees,Agency Supply Costs,Nurse Plus and Carer Plus Limited,24/03/2023,134.63
Adult Social Care,My Options,Employees,Agency Supply Costs,Safehands Recruitment,24/03/2023,"2,084.75"
Adult Social Care,My Options,Employees,Agency Supply Costs,Safehands Recruitment,24/03/2023,408.50
Adult Social Care,My Options,Employees,Agency Supply Costs,Safehands Recruitment,07/03/2023,966.00
Adult Social Care,My Options,Employees,Agency Supply Costs,Acton Banks Limited,07/03/2023,311.35
Adult Social Care,My Options,Employees,Agency Supply Costs,Acton Banks Limited,07/03/2023,227.53
Adult Social Care,My Options,Employees,Agency Supply Costs,Acton Banks Limited,07/03/2023,263.45
Adult Social Care,My Options,Employees,Agency Supply Costs,Acton Banks Limited,07/03/2023,311.35
Adult Social Care,My Options,Employees,Agency Supply Costs,Acton Banks Limited,07/03/2023,323.33
Adult Social Care,My Options,Employees,Agency Supply Costs,Acton Banks Limited,07/03/2023,311.35
Adult Social Care,My Options,Employees,Agency Supply Costs,Acton Banks Limited,07/03/2023,227.53
Adult Social Care,My Options,Employees,Agency Supply Costs,Acton Banks Limited,24/03/2023,311.35
Adult Social Care,My Options,Employees,Agency Supply Costs,Safehands Recruitment,24/03/2023,371.00
Adult Social Care,My Options,Employees,Agency Supply Costs,Acton Banks Limited,07/03/2023,231.60
Adult Social Care,My Options,Employees,Agency Supply Costs,Acton Banks Limited,07/03/2023,311.35
Adult Social Care,My Options,Employees,Agency Supply Costs,Acton Banks Limited,07/03/2023,311.35
Adult Social Care,My Options,Employees,Agency Supply Costs,Nurse Plus and Carer Plus Limited,07/03/2023,"1,301.35"
Adult Social Care,My Options,Employees,Agency Supply Costs,Nurse Plus and Carer Plus Limited,07/03/2023,"4,205.10"
Adult Social Care,My Options,Employees,Agency Supply Costs,Nurse Plus and Carer Plus Limited,07/03/2023,908.74
Adult Social Care,My Options,Employees,Agency Supply Costs,Nurse Plus and Carer Plus Limited,07/03/2023,"1,270.41"
Adult Social Care,My Options,Employees,Agency Supply Costs,Nurse Plus and Carer Plus Limited,07/03/2023,"2,144.37"
Adult Social Care,My Options,Employees,Agency Supply Costs,Safehands Recruitment,07/03/2023,518.00
Adult Social Care,My Options,Employees,Agency Supply Costs,Acton Banks Limited,07/03/2023,311.35
Adult Social Care,My Options,Employees,Agency Supply Costs,Acton Banks Limited,07/03/2023,239.50
Adult Social Care,My Options,Employees,Agency Supply Costs,Acton Banks Limited,07/03/2023,311.35
Adult Social Care,My Options,Employees,Agency Supply Costs,Safehands Recruitment,07/03/2023,"2,362.41"
Adult Social Care,My Options,Employees,Agency Supply Costs,Acton Banks Limited,07/03/2023,227.53
Adult Social Care,My Options,Employees,Agency Supply Costs,Acton Banks Limited,07/03/2023,227.53
Adult Social Care,My Options,Employees,Agency Supply Costs,Acton Banks Limited,07/03/2023,227.53
Adult Social Care,My Options,Employees,Agency Supply Costs,Acton Banks Limited,07/03/2023,203.58
Adult Social Care,My Options,Employees,Agency Supply Costs,Acton Banks Limited,07/03/2023,263.45
Adult Social Care,My Options,Employees,Agency Supply Costs,Acton Banks Limited,07/03/2023,311.35
Adult Social Care,My Options,Employees,Agency Supply Costs,Acton Banks Limited,07/03/2023,311.35
Adult Social Care,My Options,Employees,Agency Supply Costs,Acton Banks Limited,07/03/2023,311.35
Adult Social Care,My Options,Employees,Agency Supply Costs,Acton Banks Limited,07/03/2023,311.35
Adult Social Care,My Options,Employees,Agency Supply Costs,Acton Banks Limited,07/03/2023,311.35
Adult Social Care,My Options,Employees,Agency Supply Costs,Acton Banks Limited,07/03/2023,311.35
Adult Social Care,My Options,Employees,Agency Supply Costs,Acton Banks Limited,07/03/2023,311.35
Adult Social Care,My Options,Employees,Agency Supply Costs,Acton Banks Limited,28/03/2023,227.53
Adult Social Care,My Options,Employees,Agency Supply Costs,Acton Banks Limited,28/03/2023,231.60
Adult Social Care,My Options,Employees,Agency Supply Costs,Acton Banks Limited,28/03/2023,311.35
Adult Social Care,My Options,Employees,Agency Supply Costs,Acton Banks Limited,28/03/2023,227.53
Adult Social Care,My Options,Employees,Agency Supply Costs,Acton Banks Limited,28/03/2023,227.53
Adult Social Care,My Options,Employees,Agency Supply Costs,Acton Banks Limited,28/03/2023,227.53
Adult Social Care,My Options,Employees,Agency Supply Costs,Acton Banks Limited,28/03/2023,227.53
Adult Social Care,My Options,Employees,Agency Supply Costs,Acton Banks Limited,28/03/2023,311.35
Adult Social Care,My Options,Employees,Agency Supply Costs,Acton Banks Limited,28/03/2023,311.35
Adult Social Care,My Options,Employees,Agency Supply Costs,Acton Banks Limited,28/03/2023,311.35
Adult Social Care,My Options,Employees,Agency Supply Costs,Acton Banks Limited,28/03/2023,311.35
Adult Social Care,My Options,Employees,Agency Supply Costs,Acton Banks Limited,28/03/2023,311.35
Adult Social Care,My Options,Employees,Agency Supply Costs,Acton Banks Limited,28/03/2023,227.53
Adult Social Care,My Options,Employees,Agency Supply Costs,Acton Banks Limited,28/03/2023,231.60
Adult Social Care,My Options,Employees,Agency Supply Costs,Acton Banks Limited,28/03/2023,231.60
Adult Social Care,My Options,Employees,Agency Supply Costs,Acton Banks Limited,28/03/2023,311.35
Adult Social Care,My Options,Employees,Agency Supply Costs,Acton Banks Limited,28/03/2023,311.35
Adult Social Care,My Options,Employees,Agency Supply Costs,Acton Banks Limited,28/03/2023,311.35
Adult Social Care,My Options,Employees,Agency Supply Costs,JN Recruitment,28/03/2023,693.00
Adult Social Care,My Options,Employees,Agency Supply Costs,Safehands Recruitment,16/03/2023,237.50
Adult Social Care,My Options,Employees,Agency Supply Costs,Safehands Recruitment,16/03/2023,875.00
Adult Social Care,My Options,Employees,Agency Supply Costs,Safehands Recruitment,16/03/2023,"1,889.93"
Adult Social Care,My Options,Employees,Agency Supply Costs,Safehands Recruitment,16/03/2023,"1,099.00"
Adult Social Care,My Options,Employees,Agency Supply Costs,Safehands Recruitment,16/03/2023,275.50
Adult Social Care,My Options,Employees,Agency Supply Costs,Safehands Recruitment,16/03/2023,"2,682.55"
Adult Social Care,My Options,Employees,Agency Supply Costs,Nurse Plus and Carer Plus Limited,16/03/2023,927.10
Adult Social Care,My Options,Employees,Agency Supply Costs,Nurse Plus and Carer Plus Limited,16/03/2023,"1,297.03"
Adult Social Care,My Options,Employees,Agency Supply Costs,Nurse Plus and Carer Plus Limited,16/03/2023,"3,920.94"
Adult Social Care,My Options,Employees,Agency Supply Costs,Nurse Plus and Carer Plus Limited,16/03/2023,541.30
Adult Social Care,My Options,Employees,Agency Supply Costs,Acton Banks Limited,16/03/2023,231.60
Adult Social Care,My Options,Employees,Agency Supply Costs,Acton Banks Limited,16/03/2023,231.60
Adult Social Care,My Options,Employees,Agency Supply Costs,Acton Banks Limited,16/03/2023,311.35
Adult Social Care,My Options,Employees,Agency Supply Costs,Acton Banks Limited,16/03/2023,311.35
Adult Social Care,My Options,Employees,Agency Supply Costs,JN Recruitment,16/03/2023,"1,228.43"
Adult Social Care,My Options,Employees,Agency Supply Costs,Nurse Plus and Carer Plus Limited,30/03/2023,"1,889.48"
Adult Social Care,My Options,Employees,Agency Supply Costs,Nurse Plus and Carer Plus Limited,30/03/2023,"4,217.42"
Adult Social Care,My Options,Employees,Agency Supply Costs,Acton Banks Limited,24/03/2023,311.35
Adult Social Care,My Options,Employees,Agency Supply Costs,JN Recruitment,24/03/2023,952.88
Adult Social Care,My Options,Employees,Agency Supply Costs,Nurse Plus and Carer Plus Limited,24/03/2023,150.50
Adult Social Care,My Options,Employees,Agency Supply Costs,Safehands Recruitment,24/03/2023,532.00
Adult Social Care,My Options,Employees,Agency Supply Costs,Acton Banks Limited,24/03/2023,231.60
Adult Social Care,My Options,Employees,Agency Supply Costs,Acton Banks Limited,24/03/2023,311.35
Adult Social Care,My Options,Employees,Agency Supply Costs,Acton Banks Limited,24/03/2023,311.35
Adult Social Care,My Options,Employees,Agency Supply Costs,Acton Banks Limited,24/03/2023,227.53
Adult Social Care,My Options,Employees,Agency Supply Costs,Acton Banks Limited,24/03/2023,311.35
Adult Social Care,My Options,Employees,Agency Supply Costs,Acton Banks Limited,24/03/2023,311.35
Adult Social Care,My Options,Employees,Agency Supply Costs,Acton Banks Limited,24/03/2023,311.35
Adult Social Care,My Options,Employees,Agency Supply Costs,Acton Banks Limited,24/03/2023,311.35
Adult Social Care,My Options,Employees,Agency Supply Costs,Acton Banks Limited,24/03/2023,311.35
Adult Social Care,My Options,Employees,Agency Supply Costs,Acton Banks Limited,24/03/2023,311.35
Adult Social Care,My Options,Employees,Agency Supply Costs,Acton Banks Limited,24/03/2023,311.35
Adult Social Care,My Options,Employees,Agency Supply Costs,Acton Banks Limited,24/03/2023,231.60
Adult Social Care,My Options,Employees,Agency Supply Costs,Acton Banks Limited,24/03/2023,231.60
Adult Social Care,My Options,Employees,Agency Supply Costs,Nurse Plus and Carer Plus Limited,24/03/2023,"2,270.82"
Adult Social Care,My Options,Employees,Agency Supply Costs,Nurse Plus and Carer Plus Limited,24/03/2023,916.88
Adult Social Care,My Options,Employees,Agency Supply Costs,Safehands Recruitment,24/03/2023,"1,121.50"
Adult Social Care,My Options,Employees,Agency Supply Costs,Acton Banks Limited,16/03/2023,263.45
Adult Social Care,My Options,Employees,Agency Supply Costs,Acton Banks Limited,16/03/2023,311.35
Adult Social Care,My Options,Employees,Agency Supply Costs,Acton Banks Limited,16/03/2023,311.35
Adult Social Care,My Options,Employees,Agency Supply Costs,Acton Banks Limited,16/03/2023,231.60
Adult Social Care,My Options,Employees,Agency Supply Costs,Acton Banks Limited,16/03/2023,231.60
Adult Social Care,My Options,Supplies & Services,Computer Software (Maint),Access UK Ltd,07/03/2023,644.40
Adult Social Care,My Options,Supplies & Services,Computer Software (Maint),Access UK Ltd,16/03/2023,644.40
Adult Social Care,My Options,Supplies & Services,Adult Flexi / Day Care,REDACTED PERSAOL INFORMATION,09/03/2023,534.00
Adult Social Care,My Options,Supplies & Services,Adult Flexi / Day Care,REDACTED PERSAOL INFORMATION,09/03/2023,427.20
Adult Social Care,My Options,Supplies & Services,Adult Flexi / Day Care,REDACTED PERSAOL INFORMATION,09/03/2023,160.20
Adult Social Care,My Options,Supplies & Services,Adult Flexi / Day Care,REDACTED PERSAOL INFORMATION,09/03/2023,160.20
Adult Social Care,My Options,Supplies & Services,Adult Flexi / Day Care,REDACTED PERSAOL INFORMATION,29/03/2023,373.80
Adult Social Care,My Options,Supplies & Services,Adult Flexi / Day Care,REDACTED PERSAOL INFORMATION,29/03/2023,160.20
Adult Social Care,My Options,Supplies & Services,Adult Flexi / Day Care,REDACTED PERSAOL INFORMATION,29/03/2023,160.20
Adult Social Care,My Options,Supplies & Services,Adult Flexi / Day Care,REDACTED PERSAOL INFORMATION,29/03/2023,480.60
Adult Social Care,My Options,Supplies & Services,Adult Flexi / Day Care,REDACTED PERSAOL INFORMATION,29/03/2023,854.40
Adult Social Care,My Options,Supplies & Services,Other Travel,REDACTED PERSAOL INFORMATION,29/03/2023,396.00
Adult Social Care,My Options,Supplies & Services,Respite Care,REDACTED PERSAOL INFORMATION,03/03/2023,480.60
Adult Social Care,My Options,Supplies & Services,Respite Care,REDACTED PERSAOL INFORMATION,03/03/2023,556.90
Adult Social Care,My Options,Supplies & Services,Respite Care,REDACTED PERSAOL INFORMATION,09/03/2023,106.80
Adult Social Care,My Options,Supplies & Services,Respite Care,REDACTED PERSAOL INFORMATION,29/03/2023,106.80
Adult Social Care,My Options,Supplies & Services,Respite Care,REDACTED PERSAOL INFORMATION,29/03/2023,373.80
Adult Social Care,My Options,Supplies & Services,Respite Care,REDACTED PERSAOL INFORMATION,07/03/2023,953.08
Adult Social Care,My Options,Supplies & Services,Respite Care,REDACTED PERSAOL INFORMATION,07/03/2023,"1,447.94"
Adult Social Care,My Options,Supplies & Services,Respite Care,REDACTED PERSAOL INFORMATION,07/03/2023,"1,559.24"
Adult Social Care,My Options,Supplies & Services,Respite Care,REDACTED PERSAOL INFORMATION,07/03/2023,129.68
Adult Social Care,My Options,Employees,Agency Supply Costs,Safehands Recruitment,07/03/2023,918.00
Adult Social Care,My Options,Employees,Agency Supply Costs,Safehands Recruitment,07/03/2023,"13,322.56"
Adult Social Care,My Options,Supplies & Services,Laundry & Towel Hire,PHS GROUP,21/03/2023,191.10
Adult Social Care,My Options,Supplies & Services,Equipment - Purchase,TELFORD TIMBER SUPPLIES,23/03/2023,250.00
Adult Social Care,My Options,Employees,Agency Supply Costs,Safehands Recruitment,16/03/2023,"10,674.54"
Adult Social Care,My Options,Employees,Agency Supply Costs,Safehands Recruitment,16/03/2023,"1,407.00"
Adult Social Care,My Options,Employees,Agency Supply Costs,Safehands Recruitment,24/03/2023,"11,073.58"
Adult Social Care,Prevention & Independence - Older Adults & Disability,Supplies & Services,Aids & Appliances,SUPREME HOME CARE,31/03/2023,"1,371.85"
Adult Social Care,Prevention & Independence - Older Adults & Disability,Supplies & Services,Equipment - Repair,STANNAH LIFT SERVICES LTD,26/03/2023,"8,762.25"
Adult Social Care,Prevention & Independence - Older Adults & Disability,Supplies & Services,Aids & Appliances,Easylink,07/03/2023,686.58
Adult Social Care,Prevention & Independence - Older Adults & Disability,Supplies & Services,Aids & Appliances,OSPREY HEALTHCARE LTD,02/03/2023,591.20
Adult Social Care,Prevention & Independence - Older Adults & Disability,Supplies & Services,Equipment - Repair,STANNAH LIFT SERVICES LTD,07/03/2023,980.75
Adult Social Care,Prevention & Independence - Older Adults & Disability,Supplies & Services,Equipment - Repair,Closomat Limited,07/03/2023,190.00
Adult Social Care,Prevention & Independence - Older Adults & Disability,Premises-Related Expenditure,R&M -Buildings DLO Charge,Closomat Limited,07/03/2023,190.00
Adult Social Care,Prevention & Independence - Older Adults & Disability,Supplies & Services,Equipment - Repair,Closomat Limited,16/03/2023,190.00
Adult Social Care,Prevention & Independence - Older Adults & Disability,Supplies & Services,Adaptations,JCE & SONS LTD,16/03/2023,230.00
Adult Social Care,Prevention & Independence - Older Adults & Disability,Supplies & Services,Aids & Appliances,Medequip,31/03/2023,148.37
Adult Social Care,Prevention & Independence - Older Adults & Disability,Supplies & Services,Aids & Appliances,Medequip,31/03/2023,256.17
Adult Social Care,Prevention & Independence - Older Adults & Disability,Supplies & Services,Aids & Appliances,Canary Care Global Limited,31/03/2023,526.00
Adult Social Care,Prevention & Independence - Older Adults & Disability,Supplies & Services,Aids & Appliances,Oysta technology Ltd,16/03/2023,"5,906.64"
Adult Social Care,Prevention & Independence - Older Adults & Disability,Supplies & Services,Aids & Appliances,OSPREY HEALTHCARE LTD,21/03/2023,160.00
Adult Social Care,Prevention & Independence - Older Adults & Disability,Supplies & Services,Aids & Appliances,OSPREY HEALTHCARE LTD,21/03/2023,175.00
Adult Social Care,Prevention & Independence - Older Adults & Disability,Supplies & Services,Aids & Appliances,OSPREY HEALTHCARE LTD,21/03/2023,215.00
Adult Social Care,Prevention & Independence - Older Adults & Disability,Supplies & Services,Aids & Appliances,W Rehab,22/03/2023,208.00
Adult Social Care,Prevention & Independence - Older Adults & Disability,Supplies & Services,Aids & Appliances,W Rehab,22/03/2023,168.50
Adult Social Care,Prevention & Independence - Older Adults & Disability,Supplies & Services,Aids & Appliances,Medequip,20/03/2023,261.32
Adult Social Care,Prevention & Independence - Older Adults & Disability,Supplies & Services,Aids & Appliances,OSPREY HEALTHCARE LTD,29/03/2023,187.00
Adult Social Care,Prevention & Independence - Older Adults & Disability,Supplies & Services,Equipment - Repair,STANNAH LIFT SERVICES LTD,30/03/2023,995.75
Adult Social Care,Prevention & Independence - Older Adults & Disability,Supplies & Services,Equipment - Repair,STANNAH LIFT SERVICES LTD,30/03/2023,"7,472.25"
Adult Social Care,Prevention & Independence - Older Adults & Disability,Supplies & Services,Aids & Appliances,Medequip,29/03/2023,204.75
Adult Social Care,Prevention & Independence - Older Adults & Disability,Supplies & Services,Aids & Appliances,OSPREY HEALTHCARE LTD,29/03/2023,187.00
Adult Social Care,Prevention & Independence - Older Adults & Disability,Supplies & Services,Aids & Appliances,PDS Hygiene,08/03/2023,583.00
Adult Social Care,Prevention & Independence - Older Adults & Disability,Supplies & Services,Equipment - Repair,STANNAH LIFT SERVICES LTD,07/03/2023,797.56
Adult Social Care,Prevention & Independence - Older Adults & Disability,Supplies & Services,Equipment - Repair,STANNAH LIFT SERVICES LTD,07/03/2023,147.82
Adult Social Care,Prevention & Independence - Older Adults & Disability,Supplies & Services,Equipment - Repair,STANNAH LIFT SERVICES LTD,07/03/2023,384.30
Adult Social Care,Prevention & Independence - Older Adults & Disability,Supplies & Services,Equipment - Repair,STANNAH LIFT SERVICES LTD,07/03/2023,826.08
Adult Social Care,Prevention & Independence - Older Adults & Disability,Supplies & Services,Equipment - Repair,Closomat Limited,07/03/2023,190.00
Adult Social Care,Prevention & Independence - Older Adults & Disability,Supplies & Services,Aids & Appliances,Our Weigh Ltd,08/03/2023,345.00
Adult Social Care,Prevention & Independence - Older Adults & Disability,Supplies & Services,Aids & Appliances,Easylink,06/03/2023,120.96
Adult Social Care,Prevention & Independence - Older Adults & Disability,Supplies & Services,Aids & Appliances,OSPREY HEALTHCARE LTD,24/03/2023,323.00
Adult Social Care,Prevention & Independence - Older Adults & Disability,Supplies & Services,Aids & Appliances,OSPREY HEALTHCARE LTD,24/03/2023,150.00
Adult Social Care,Prevention & Independence - Older Adults & Disability,Supplies & Services,Aids & Appliances,OSPREY HEALTHCARE LTD,24/03/2023,138.00
Adult Social Care,Prevention & Independence - Older Adults & Disability,Supplies & Services,Aids & Appliances,Accora,23/03/2023,"2,038.00"
Adult Social Care,Prevention & Independence - Older Adults & Disability,Supplies & Services,Carriage/Delivery Charge,Accora,23/03/2023,165.00
Adult Social Care,Prevention & Independence - Older Adults & Disability,Supplies & Services,Carriage/Delivery Charge,Accora,23/03/2023,165.00
Adult Social Care,Prevention & Independence - Older Adults & Disability,Supplies & Services,Aids & Appliances,Accora,23/03/2023,"3,280.00"
Adult Social Care,Prevention & Independence - Older Adults & Disability,Employees,Staff Training,A1 Risk Solutions Ltd,03/03/2023,595.00
Adult Social Care,Prevention & Independence - Older Adults & Disability,Supplies & Services,Aids & Appliances,SHROPSHIRE COMMUNITY HEALTH NHS TRUST,24/03/2023,"6,301.66"
Adult Social Care,Prevention & Independence - Older Adults & Disability,Supplies & Services,Aids & Appliances,SHROPSHIRE COMMUNITY HEALTH NHS TRUST,24/03/2023,"6,301.66"
Adult Social Care,Prevention & Independence - Older Adults & Disability,Employees,Staff Training,HASCA Ltd,15/03/2023,"1,300.00"
Adult Social Care,Service Improvement & Efficiency,Supplies & Services,Furniture - Purchase,POSTURITE LTD,31/03/2023,"1,245.95"
Adult Social Care,Service Improvement & Efficiency,Supplies & Services,Systems Procurement,Prepaid Financial Services Limited,31/03/2023,523.73
Adult Social Care,Service Improvement & Efficiency,Supplies & Services,Systems Procurement,Prepaid Financial Services Limited,31/03/2023,249.30
Children�s Safeguarding & Family Support,Child Protection & Family Support,Transport-Related Expenditure,Taxi Costs,NEWPORT GIRLS HIGH SCHOOL ACADEMY TRUST,08/03/2023,127.30
Children�s Safeguarding & Family Support,Child Protection & Family Support,Supplies & Services,Emergency Provisions for Young People,ASDA STORES LIMITED,09/03/2023,250.00
Children�s Safeguarding & Family Support,Child Protection & Family Support,Supplies & Services,Emergency Provisions for Young People,ASDA STORES LIMITED,09/03/2023,250.00
Children�s Safeguarding & Family Support,Child Protection & Family Support,Employees,Agency Supply Costs,Matrix SCM,22/03/2023,"165,424.16"
Children�s Safeguarding & Family Support,Child Protection & Family Support,Supplies & Services,Legal Expenses,C SOLICITORS,08/03/2023,119.70
Children�s Safeguarding & Family Support,Child Protection & Family Support,Supplies & Services,Supportive Lodgings,NEXT STEP CARE MANAGEMENT LTD,08/03/2023,"2,040.00"
Children�s Safeguarding & Family Support,Child Protection & Family Support,Supplies & Services,Supportive Lodgings,NEXT STEP CARE MANAGEMENT LTD,08/03/2023,"1,760.71"
Children�s Safeguarding & Family Support,Child Protection & Family Support,Employees,Agency Supply Costs,Matrix SCM,21/03/2023,"82,712.08"
Children�s Safeguarding & Family Support,Child Protection & Family Support,Third Party Payments,Interpreters Fees,Premium Linguistic Services,08/03/2023,328.50
Children�s Safeguarding & Family Support,Child Protection & Family Support,Employees,Agency Supply Costs,Matrix SCM,22/03/2023,"90,411.50"
Children�s Safeguarding & Family Support,Child Protection & Family Support,Employees,Agency Supply Costs,Matrix SCM,21/03/2023,"58,021.76"
Children�s Safeguarding & Family Support,Child Protection & Family Support,Supplies & Services,Grants To Voluntary Organis,YMCA,31/03/2023,"19,876.40"
Children�s Safeguarding & Family Support,Child Protection & Family Support,Employees,Staff Training,KEELE UNIVERSITY,31/03/2023,"1,300.00"
Children�s Safeguarding & Family Support,Child Protection & Family Support,Third Party Payments,Joint Financing,West Mercia Police & Crime Commissioner,31/03/2023,"64,255.50"
Children�s Safeguarding & Family Support,Child Protection & Family Support,Employees,Staff Training,K M Associates Ltd,07/03/2023,108.33
Children�s Safeguarding & Family Support,Child Protection & Family Support,Transport-Related Expenditure,Travelling Expenses General,REDACTED PERSAOL INFORMATION,07/03/2023,117.70
Children�s Safeguarding & Family Support,Child Protection & Family Support,Employees,Staff Training,MEETING POINT TRUST LTD,02/03/2023,150.00
Children�s Safeguarding & Family Support,Child Protection & Family Support,Employees,Staff Training,KEELE UNIVERSITY,21/03/2023,"1,300.00"
Children�s Safeguarding & Family Support,Child Protection & Family Support,Supplies & Services,Printing - Other,TELFORD REPROGRAPHICS LTD,31/03/2023,295.20
Children�s Safeguarding & Family Support,Child Protection & Family Support,Premises-Related Expenditure,Hire Of Rooms,MEETING POINT TRUST LTD,09/03/2023,215.00
Children�s Safeguarding & Family Support,Child Protection & Family Support,Employees,Professional Subs,H D Consultancy Limited,02/03/2023,125.00
Children�s Safeguarding & Family Support,Child Protection & Family Support,Employees,Professional Subs,H D Consultancy Limited,02/03/2023,125.00
Children�s Safeguarding & Family Support,Child Protection & Family Support,Employees,Professional Subs,H D Consultancy Limited,02/03/2023,250.00
Children�s Safeguarding & Family Support,Child Protection & Family Support,Supplies & Services,Other Grants (Expenses),Midlands Partnership NHS Foundation Trust,02/03/2023,"10,395.67"
Children�s Safeguarding & Family Support,Child Protection & Family Support,Supplies & Services,Other Grants (Expenses),Midlands Partnership NHS Foundation Trust,02/03/2023,"10,395.67"
Children�s Safeguarding & Family Support,Child Protection & Family Support,Supplies & Services,Other Grants (Expenses),Midlands Partnership NHS Foundation Trust,02/03/2023,"10,395.67"
Children�s Safeguarding & Family Support,Child Protection & Family Support,Supplies & Services,Other Grants (Expenses),Midlands Partnership NHS Foundation Trust,02/03/2023,"10,395.67"
Children�s Safeguarding & Family Support,Child Protection & Family Support,Supplies & Services,Other Grants (Expenses),Midlands Partnership NHS Foundation Trust,21/03/2023,"10,395.67"
Children�s Safeguarding & Family Support,Child Protection & Family Support,Employees,Staff Training,MEETING POINT TRUST LTD,08/03/2023,139.00
Children�s Safeguarding & Family Support,Child Protection & Family Support,Supplies & Services,Other Services,SOLIHULL METROPOLITAN BOROUGH COUNCIL,08/03/2023,"15,000.00"
Children�s Safeguarding & Family Support,Child Protection & Family Support,Supplies & Services,Other Services,SOLIHULL METROPOLITAN BOROUGH COUNCIL,08/03/2023,"15,114.00"
Children�s Safeguarding & Family Support,Child Protection & Family Support,Premises-Related Expenditure,Hire Of Rooms,MEETING POINT TRUST LTD,14/03/2023,200.00
Children�s Safeguarding & Family Support,Child Protection & Family Support,Premises-Related Expenditure,Hire Of Rooms,MEETING POINT TRUST LTD,28/03/2023,165.00
Children�s Safeguarding & Family Support,Child Protection & Family Support,Supplies & Services,Mobile Phones,EE LTD EQUIPMENT ,08/03/2023,142.00
Children�s Safeguarding & Family Support,Child Protection & Family Support,Third Party Payments,Joint Financing,Adoption Focus,02/03/2023,"54,630.00"
Children�s Safeguarding & Family Support,Child Protection & Family Support,Supplies & Services,Other Grants (Expenses),Midlands Partnership NHS Foundation Trust,08/03/2023,"-48,000.00"
Children�s Safeguarding & Family Support,Child Protection & Family Support,Supplies & Services,Other Grants (Expenses),Midlands Partnership NHS Foundation Trust,06/03/2023,"48,000.00"
Children�s Safeguarding & Family Support,Child Protection & Family Support,Supplies & Services,Mobile Phones,EE LTD EQUIPMENT,08/03/2023,142.00
Children�s Safeguarding & Family Support,Child Protection & Family Support,Supplies & Services,Registration / Licence Fees,SHROPSHIRE COUNCIL ,13/03/2023,"4,034.00"
Children�s Safeguarding & Family Support,Child Protection & Family Support,Supplies & Services,Other Grants (Expenses),POST ROOM,03/03/2023,350.00
Children�s Safeguarding & Family Support,Child Protection & Family Support,Supplies & Services,Other Grants (Expenses),POST ROOM,03/03/2023,216.00
Children�s Safeguarding & Family Support,Child Protection & Family Support,Supplies & Services,Other Grants (Expenses),POST ROOM,03/03/2023,235.00
Children�s Safeguarding & Family Support,Child Protection & Family Support,Supplies & Services,Other Grants (Expenses),POST ROOM,03/03/2023,350.00
Children�s Safeguarding & Family Support,Child Protection & Family Support,Supplies & Services,Other Grants (Expenses),POST ROOM,03/03/2023,216.00
Children�s Safeguarding & Family Support,Child Protection & Family Support,Supplies & Services,Other Grants (Expenses),POST ROOM,03/03/2023,216.00
Children�s Safeguarding & Family Support,Child Protection & Family Support,Supplies & Services,Other Grants (Expenses),POST ROOM,03/03/2023,350.00
Children�s Safeguarding & Family Support,Child Protection & Family Support,Supplies & Services,Other Grants (Expenses),POST ROOM,03/03/2023,350.00
Children�s Safeguarding & Family Support,Child Protection & Family Support,Supplies & Services,Other Grants (Expenses),POST ROOM,03/03/2023,215.00
Children�s Safeguarding & Family Support,Child Protection & Family Support,Supplies & Services,Other Grants (Expenses),POST ROOM,03/03/2023,350.00
Children�s Safeguarding & Family Support,Child Protection & Family Support,Supplies & Services,Other Grants (Expenses),POST ROOM,03/03/2023,234.00
Children�s Safeguarding & Family Support,Child Protection & Family Support,Supplies & Services,Other Grants (Expenses),POST ROOM,03/03/2023,250.00
Children�s Safeguarding & Family Support,Child Protection & Family Support,Supplies & Services,Other Grants (Expenses),POST ROOM,03/03/2023,216.00
Children�s Safeguarding & Family Support,Child Protection & Family Support,Supplies & Services,Other Grants (Expenses),POST ROOM,03/03/2023,350.00
Children�s Safeguarding & Family Support,Child Protection & Family Support,Supplies & Services,Other Grants (Expenses),POST ROOM,03/03/2023,350.00
Children�s Safeguarding & Family Support,Child Protection & Family Support,Supplies & Services,Other Grants (Expenses),POST ROOM,03/03/2023,400.00
Children�s Safeguarding & Family Support,Child Protection & Family Support,Supplies & Services,Other Grants (Expenses),POST ROOM,03/03/2023,250.00
Children�s Safeguarding & Family Support,Child Protection & Family Support,Supplies & Services,Other Grants (Expenses),POST ROOM,06/03/2023,235.00
Children�s Safeguarding & Family Support,Child Protection & Family Support,Supplies & Services,Other Grants (Expenses),POST ROOM,06/03/2023,350.00
Children�s Safeguarding & Family Support,Child Protection & Family Support,Supplies & Services,Other Grants (Expenses),POST ROOM,06/03/2023,287.00
Children�s Safeguarding & Family Support,Child Protection & Family Support,Supplies & Services,Other Grants (Expenses),POST ROOM,06/03/2023,350.00
Children�s Safeguarding & Family Support,Child Protection & Family Support,Supplies & Services,Other Grants (Expenses),POST ROOM,06/03/2023,350.00
Children�s Safeguarding & Family Support,Child Protection & Family Support,Supplies & Services,Other Grants (Expenses),POST ROOM,31/03/2023,216.00
Children�s Safeguarding & Family Support,Child Protection & Family Support,Supplies & Services,Other Grants (Expenses),POST ROOM,27/03/2023,-300.00
Children�s Safeguarding & Family Support,Child Protection & Family Support,Supplies & Services,Other Grants (Expenses),POST ROOM,27/03/2023,-200.00
Children�s Safeguarding & Family Support,Child Protection & Family Support,Supplies & Services,Other Grants (Expenses),POST ROOM,27/03/2023,-439.20
Children�s Safeguarding & Family Support,Child Protection & Family Support,Supplies & Services,Other Grants (Expenses),POST ROOM,27/03/2023,-500.00
Children�s Safeguarding & Family Support,Child Protection & Family Support,Supplies & Services,Comp Hardware (Purch / Hire),Stone Technology,15/03/2023,"8,979.00"
Children�s Safeguarding & Family Support,Child Protection & Family Support,Supplies & Services,Other Grants (Expenses),POST ROOM,03/03/2023,500.00
Children�s Safeguarding & Family Support,Child Protection & Family Support,Supplies & Services,Other Grants (Expenses),POST ROOM,03/03/2023,216.00
Children�s Safeguarding & Family Support,Child Protection & Family Support,Supplies & Services,Other Grants (Expenses),POST ROOM,03/03/2023,350.00
Children�s Safeguarding & Family Support,Child Protection & Family Support,Supplies & Services,Other Grants (Expenses),POST ROOM,03/03/2023,350.00
Children�s Safeguarding & Family Support,Child Protection & Family Support,Supplies & Services,Other Grants (Expenses),POST ROOM,03/03/2023,350.00
Children�s Safeguarding & Family Support,Child Protection & Family Support,Supplies & Services,Other Grants (Expenses),POST ROOM,03/03/2023,350.00
Children�s Safeguarding & Family Support,Child Protection & Family Support,Supplies & Services,Other Grants (Expenses),POST ROOM,03/03/2023,216.00
Children�s Safeguarding & Family Support,Child Protection & Family Support,Supplies & Services,Other Grants (Expenses),POST ROOM,03/03/2023,329.00
Children�s Safeguarding & Family Support,Child Protection & Family Support,Supplies & Services,Other Grants (Expenses),POST ROOM,03/03/2023,234.00
Children�s Safeguarding & Family Support,Child Protection & Family Support,Supplies & Services,Other Grants (Expenses),POST ROOM,12/03/2023,216.00
Children�s Safeguarding & Family Support,Child Protection & Family Support,Supplies & Services,Furniture - Purchase,BACK CARE SOLUTIONS LTD,31/03/2023,349.98
Children�s Safeguarding & Family Support,Child Protection & Family Support,Premises-Related Expenditure,Hire Of Rooms,Telford Minster,21/03/2023,225.00
Children�s Safeguarding & Family Support,Family Connect & Childrens Centres,Employees,Staff Training,PsyTavistock Relationships,21/03/2023,"1,200.00"
Children�s Safeguarding & Family Support,Family Connect & Childrens Centres,Employees,Staff Training,PsyTavistock Relationships,21/03/2023,"1,500.00"
Children�s Safeguarding & Family Support,Family Connect & Childrens Centres,Employees,Staff Training,PsyTavistock Relationships,21/03/2023,"15,000.00"
Children�s Safeguarding & Family Support,Family Connect & Childrens Centres,Premises-Related Expenditure,R&M -Building Other,E Solutions Ltd,10/03/2023,180.00
Children�s Safeguarding & Family Support,Family Connect & Childrens Centres,Premises-Related Expenditure,R&M -Building Other,JCE & SONS LTD,30/03/2023,241.66
Children�s Safeguarding & Family Support,Family Connect & Childrens Centres,Supplies & Services,Mobile Phones,EE LTD EQUIPMENT,29/03/2023,142.00
Children�s Safeguarding & Family Support,Family Connect & Childrens Centres,Premises-Related Expenditure,R&M -Building Other,JCE & SONS LTD,06/03/2023,115.00
Children�s Safeguarding & Family Support,Family Connect & Childrens Centres,Premises-Related Expenditure,R&M -Building Other,Security Wise Ltd,06/03/2023,148.00
Children�s Safeguarding & Family Support,Family Connect & Childrens Centres,Premises-Related Expenditure,R&M -Building Other,GRANVILLE CONSTRUCTION & MAINTENANCE LTD,30/03/2023,114.75
Children�s Safeguarding & Family Support,Family Connect & Childrens Centres,Supplies & Services,Other Grants (Expenses),CHRISBEON OFFICE SUPPLIES,23/03/2023,794.34
Children�s Safeguarding & Family Support,Family Connect & Childrens Centres,Premises-Related Expenditure,R&M Fixed Plant Other,GRANVILLE CONSTRUCTION & MAINTENANCE LTD,21/03/2023,139.68
Children�s Safeguarding & Family Support,Family Connect & Childrens Centres,Supplies & Services,Other Services,Go Carz,16/03/2023,122.37
Children�s Safeguarding & Family Support,Family Connect & Childrens Centres,Supplies & Services,Other Services,Go Carz,16/03/2023,250.00
Children�s Safeguarding & Family Support,Family Connect & Childrens Centres,Supplies & Services,Other Services,Go Carz,16/03/2023,122.36
Children�s Safeguarding & Family Support,Family Connect & Childrens Centres,Premises-Related Expenditure,Hire Of Rooms,OAKENGATES TOWN COUNCIL,08/03/2023,162.00
Children�s Safeguarding & Family Support,Family Connect & Childrens Centres,Supplies & Services,Bulk Refuse Contracts Hire,GREEN SKIPS LTD,08/03/2023,180.00
Children�s Safeguarding & Family Support,Family Connect & Childrens Centres,Supplies & Services,Other Services,Go Carz,16/03/2023,125.00
Children�s Safeguarding & Family Support,Family Connect & Childrens Centres,Supplies & Services,Other Services,Go Carz,16/03/2023,122.36
Children�s Safeguarding & Family Support,Family Connect & Childrens Centres,Supplies & Services,Bulk Refuse Contracts Hire,GREEN SKIPS LTD,29/03/2023,160.00
Children�s Safeguarding & Family Support,Family Connect & Childrens Centres,Supplies & Services,Comp Hardware (Purch / Hire),CCS MEDIA LIMITED,08/03/2023,120.00
Children�s Safeguarding & Family Support,Family Connect & Childrens Centres,Supplies & Services,Other Expenses,Families in Telford ,01/03/2023,"12,500.00"
Children�s Safeguarding & Family Support,Family Connect & Childrens Centres,Supplies & Services,Administrative/Office Supplies,CHRISBEON OFFICE SUPPLIES,23/03/2023,"2,552.31"
Children�s Safeguarding & Family Support,Family Connect & Childrens Centres,Supplies & Services,Aids & Appliances,SHROPSHIRE COMMUNITY HEALTH NHS TRUST,27/03/2023,"20,000.00"
Children�s Safeguarding & Family Support,Family Connect & Childrens Centres,Supplies & Services,Comp Hardware (Purch / Hire),CCS MEDIA LIMITED,23/03/2023,620.00
Children�s Safeguarding & Family Support,Family Connect & Childrens Centres,Supplies & Services,Other Services,The Breastfeeding Network,27/03/2023,"42,000.00"
Children�s Safeguarding & Family Support,Family Connect & Childrens Centres,Supplies & Services,Other Services,TELFORD MIND,30/03/2023,"10,000.00"
Children�s Safeguarding & Family Support,Family Connect & Childrens Centres,Supplies & Services,Other Grants (Expenses),NHS Shropshire Telford & Wrekin ICB QOC Receivables N209,31/03/2023,"20,000.00"
Children�s Safeguarding & Family Support,Family Connect & Childrens Centres,Supplies & Services,Other Grants (Expenses),NHS Shropshire Telford & Wrekin ICB QOC Receivables N209,31/03/2023,"50,000.00"
Children�s Safeguarding & Family Support,Family Connect & Childrens Centres,Supplies & Services,Other Services,The Sea Change Trust,31/03/2023,"84,000.00"
Children�s Safeguarding & Family Support,Family Connect & Childrens Centres,Supplies & Services,Stationery,MEETING POINT TRUST LTD,31/03/2023,541.42
Children�s Safeguarding & Family Support,Family Connect & Childrens Centres,Supplies & Services,Stationery,MEETING POINT TRUST LTD,16/03/2023,117.29
Children�s Safeguarding & Family Support,Family Connect & Childrens Centres,Supplies & Services,Other Services,The Breastfeeding Network,21/03/2023,"10,000.00"
Children�s Safeguarding & Family Support,Family Connect & Childrens Centres,Supplies & Services,Other Services,TELFORD & WREKIN CITIZENS ADVICE BUREAU,28/03/2023,"10,000.00"
Children�s Safeguarding & Family Support,Family Connect & Childrens Centres,Premises-Related Expenditure,Other,GN Groundworks Limited,31/03/2023,"8,294.37"
Children�s Safeguarding & Family Support,"Family Placements, Children in Care, Leaving Care & Emergency Duty Team",Supplies & Services,Mobile Phones,EE LTD EQUIPMENT,08/03/2023,142.00
Children�s Safeguarding & Family Support,"Family Placements, Children in Care, Leaving Care & Emergency Duty Team",Supplies & Services,Legal Expenses,C SOLICITORS,07/03/2023,653.95
Children�s Safeguarding & Family Support,"Family Placements, Children in Care, Leaving Care & Emergency Duty Team",Supplies & Services,Doctors Fees,WOODSIDE MEDICAL PRACTICE,02/03/2023,125.00
Children�s Safeguarding & Family Support,"Family Placements, Children in Care, Leaving Care & Emergency Duty Team",Premises-Related Expenditure,Hire Of Rooms,C Cordingley Hall,28/03/2023,208.33
Children�s Safeguarding & Family Support,"Family Placements, Children in Care, Leaving Care & Emergency Duty Team",Employees,Recruitment Advertising,Council Advertising Network,08/03/2023,300.00
Children�s Safeguarding & Family Support,"Family Placements, Children in Care, Leaving Care & Emergency Duty Team",Employees,Staff Training,SHROPSHIRE COUNCIL ,15/03/2023,400.00
Children�s Safeguarding & Family Support,"Family Placements, Children in Care, Leaving Care & Emergency Duty Team",Premises-Related Expenditure,Hire Of Rooms,Dawley Baptist Church,15/03/2023,275.00
Children�s Safeguarding & Family Support,"Family Placements, Children in Care, Leaving Care & Emergency Duty Team",Supplies & Services,Other Services,Share Foundation,23/03/2023,747.87
Children�s Safeguarding & Family Support,"Family Placements, Children in Care, Leaving Care & Emergency Duty Team",Supplies & Services,Advertising,Newsquest Media Group,28/03/2023,"2,800.00"
Children�s Safeguarding & Family Support,"Family Placements, Children in Care, Leaving Care & Emergency Duty Team",Supplies & Services,Subscriptions,FOSTERING NETWORK,28/03/2023,"1,874.19"
Children�s Safeguarding & Family Support,"Family Placements, Children in Care, Leaving Care & Emergency Duty Team",Supplies & Services,Advertising,Newsquest Media Group,08/03/2023,"2,800.00"
Children�s Safeguarding & Family Support,"Family Placements, Children in Care, Leaving Care & Emergency Duty Team",Premises-Related Expenditure,Hire Of Rooms,MEETING POINT TRUST LTD,10/03/2023,115.00
Children�s Safeguarding & Family Support,"Family Placements, Children in Care, Leaving Care & Emergency Duty Team",Supplies & Services,Equipment - Repair,ARJO UK LTD,26/03/2023,106.93
Children�s Safeguarding & Family Support,"Family Placements, Children in Care, Leaving Care & Emergency Duty Team",Supplies & Services,Equipment - Repair,STANNAH LIFT SERVICES LTD,26/03/2023,293.75
Children�s Safeguarding & Family Support,"Family Placements, Children in Care, Leaving Care & Emergency Duty Team",Supplies & Services,Form F Assessments,ES-PBS Services,10/03/2023,"1,000.00"
Children�s Safeguarding & Family Support,"Family Placements, Children in Care, Leaving Care & Emergency Duty Team",Supplies & Services,Form F Assessments,ES-PBS Services,10/03/2023,"2,000.00"
Children�s Safeguarding & Family Support,"Family Placements, Children in Care, Leaving Care & Emergency Duty Team",Supplies & Services,Form F Assessments,ES-PBS Services,10/03/2023,500.00
Children�s Safeguarding & Family Support,"Family Placements, Children in Care, Leaving Care & Emergency Duty Team",Supplies & Services,Aids & Appliances,Jiraffe,09/03/2023,"2,127.40"
Children�s Safeguarding & Family Support,"Family Placements, Children in Care, Leaving Care & Emergency Duty Team",Supplies & Services,Equipment - Repair,STANNAH LIFT SERVICES LTD,07/03/2023,951.00
Children�s Safeguarding & Family Support,"Family Placements, Children in Care, Leaving Care & Emergency Duty Team",Supplies & Services,Aids & Appliances,M A S Associates,23/03/2023,500.00
Children�s Safeguarding & Family Support,"Family Placements, Children in Care, Leaving Care & Emergency Duty Team",Supplies & Services,Aids & Appliances,G & S S LTD,23/03/2023,375.00
Children�s Safeguarding & Family Support,"Family Placements, Children in Care, Leaving Care & Emergency Duty Team",Supplies & Services,Aids & Appliances,M A S Associates,23/03/2023,160.00
Children�s Safeguarding & Family Support,"Family Placements, Children in Care, Leaving Care & Emergency Duty Team",Supplies & Services,Equipment - Repair,STANNAH LIFT SERVICES LTD,30/03/2023,231.00
Children�s Safeguarding & Family Support,"Family Placements, Children in Care, Leaving Care & Emergency Duty Team",Supplies & Services,Equipment - Repair,STANNAH LIFT SERVICES LTD,30/03/2023,473.00
Children�s Safeguarding & Family Support,"Family Placements, Children in Care, Leaving Care & Emergency Duty Team",Supplies & Services,Aids & Appliances,M A S Associates,20/03/2023,"1,020.00"
Children�s Safeguarding & Family Support,"Family Placements, Children in Care, Leaving Care & Emergency Duty Team",Supplies & Services,Aids & Appliances,Jiraffe,20/03/2023,867.00
Children�s Safeguarding & Family Support,"Family Placements, Children in Care, Leaving Care & Emergency Duty Team",Supplies & Services,Aids & Appliances,Care & Independence,23/03/2023,239.00
Children�s Safeguarding & Family Support,"Family Placements, Children in Care, Leaving Care & Emergency Duty Team",Supplies & Services,Aids & Appliances,G & S SLTD,23/03/2023,140.00
Children�s Safeguarding & Family Support,"Family Placements, Children in Care, Leaving Care & Emergency Duty Team",Supplies & Services,Aids & Appliances,G & S SLTD,09/03/2023,676.00
Children�s Safeguarding & Family Support,"Family Placements, Children in Care, Leaving Care & Emergency Duty Team",Supplies & Services,Aids & Appliances,G & S SLTD,09/03/2023,146.00
Children�s Safeguarding & Family Support,"Family Placements, Children in Care, Leaving Care & Emergency Duty Team",Supplies & Services,Comp Software (Purch / Hire),PHOENIX SOFTWARE LTD,07/03/2023,135.00
Children�s Safeguarding & Family Support,"Family Placements, Children in Care, Leaving Care & Emergency Duty Team",Supplies & Services,Aids & Appliances,Tough Furniture Ltd,09/03/2023,336.00
Children�s Safeguarding & Family Support,"Family Placements, Children in Care, Leaving Care & Emergency Duty Team",Supplies & Services,Aids & Appliances,M A S Associates,09/03/2023,360.00
Children�s Safeguarding & Family Support,"Family Placements, Children in Care, Leaving Care & Emergency Duty Team",Premises-Related Expenditure,Hire Of Rooms,MEETING POINT TRUST LTD,10/03/2023,115.00
Children�s Safeguarding & Family Support,"Family Placements, Children in Care, Leaving Care & Emergency Duty Team",Premises-Related Expenditure,Gas,Shropshire Council & Benefitsl Revenu,06/03/2023,599.51
Children�s Safeguarding & Family Support,"Family Placements, Children in Care, Leaving Care & Emergency Duty Team",Employees,Professional Subs,Catch22 Charity Ltd,17/03/2023,"3,295.00"
Children�s Safeguarding & Family Support,"Family Placements, Children in Care, Leaving Care & Emergency Duty Team",Supplies & Services,Comp Software (Purch / Hire),PHOENIX SOFTWARE LTD,29/03/2023,373.47
Children�s Safeguarding & Family Support,"Family Placements, Children in Care, Leaving Care & Emergency Duty Team",Employees,Staff Training,Leaving Care Training & Consultancy Service,24/03/2023,"1,737.29"
Children�s Safeguarding & Family Support,"Family Placements, Children in Care, Leaving Care & Emergency Duty Team",Supplies & Services,Section 17 Childrens Act,Shropshire Council & Benefits l Revenu,28/03/2023,274.64
Children�s Safeguarding & Family Support,"Family Placements, Children in Care, Leaving Care & Emergency Duty Team",Premises-Related Expenditure,Hire Of Rooms,MEETING POINT TRUST LTD,28/03/2023,230.00
Children�s Safeguarding & Family Support,"Family Placements, Children in Care, Leaving Care & Emergency Duty Team",Supplies & Services,Complaints,REDACTED PERSAOL INFORMATION,06/03/2023,570.00
Children�s Safeguarding & Family Support,"Family Placements, Children in Care, Leaving Care & Emergency Duty Team",Supplies & Services,Emergency Provisions for Young People,ASDA STORES LIMITED,09/03/2023,250.00
Children�s Safeguarding & Family Support,"Family Placements, Children in Care, Leaving Care & Emergency Duty Team",Supplies & Services,Complaints,Share Foundation,26/03/2023,300.00
Children�s Safeguarding & Family Support,Safeguarding & Community Social Work,Supplies & Services,Mobile Phones,EE LTD EQUIPMENT ,08/03/2023,142.00
Children�s Safeguarding & Family Support,Safeguarding Advisory,Employees,Professional Subs,SOLIHULL METROPOLITAN BOROUGH COUNCIL,01/03/2023,124.00
Children�s Safeguarding & Family Support,Safeguarding Advisory,Supplies & Services,Comp Software (Purch / Hire),WORCESTERSHIRE COUNTY COUNCIL,17/03/2023,"1,283.65"
Children�s Safeguarding & Family Support,Safeguarding Advisory,Supplies & Services,Comp Software (Purch / Hire),WORCESTERSHIRE COUNTY COUNCIL,17/03/2023,"2,793.23"
"Communities, Customer & Commercial Services",Community Services,Capital Expenditure,Payments to Contractor,P LTD,30/03/2023,"1,469.00"
"Communities, Customer & Commercial Services",Community Services,Capital Expenditure,Other Capital Expenditure,Stripe Master Ltd,28/03/2023,"5,440.00"
"Communities, Customer & Commercial Services",Community Services,Supplies & Services,Grants To Voluntary Organis,Anstice Community Trust,08/03/2023,500.00
"Communities, Customer & Commercial Services",Community Services,Supplies & Services,Grants To Voluntary Organis,TIBBERTON & CHERRINGTON PARISH COUNCIL,08/03/2023,"1,000.00"
"Communities, Customer & Commercial Services",Community Services,Supplies & Services,Grants To Voluntary Organis,Edgmond Village Hall,08/03/2023,"1,000.00"
"Communities, Customer & Commercial Services",Community Services,Supplies & Services,Grants To Voluntary Organis,LAWLEY & OVERDALE PARISH COUNCIL,28/03/2023,"1,950.00"
"Communities, Customer & Commercial Services",Community Services,Supplies & Services,Grants To Voluntary Organis,Telford Crisis Support,07/03/2023,251.84
"Communities, Customer & Commercial Services",Community Services,Supplies & Services,Grants To Voluntary Organis,Great Dawley Town Council,07/03/2023,500.00
"Communities, Customer & Commercial Services",Community Services,Supplies & Services,Grants To Voluntary Organis,Great Dawley Town Council,07/03/2023,668.00
"Communities, Customer & Commercial Services",Community Services,Supplies & Services,Grants To Voluntary Organis,WROCKWARDINE WOOD & TRENCH ,07/03/2023,"2,200.00"
"Communities, Customer & Commercial Services",Community Services,Supplies & Services,Grants To Voluntary Organis,Brookside Central,14/03/2023,"1,882.15"
"Communities, Customer & Commercial Services",Community Services,Supplies & Services,Grants To Voluntary Organis,AFC Telford United Foundation CIC,14/03/2023,"1,300.00"
"Communities, Customer & Commercial Services",Community Services,Supplies & Services,Grants To Voluntary Organis,BELMONT COMMUNITY HALL,02/03/2023,"1,000.00"
"Communities, Customer & Commercial Services",Community Services,Supplies & Services,Grants To Voluntary Organis,BOURNVILLE VILLAGE TRUST,15/03/2023,800.00
"Communities, Customer & Commercial Services",Community Services,Supplies & Services,Grants To Voluntary Organis,BOURNVILLE VILLAGE TRUST,15/03/2023,400.00
"Communities, Customer & Commercial Services",Community Services,Supplies & Services,Grants To Voluntary Organis,HOLLINSWOOD & RANDLAY PARISH COUNCIL,15/03/2023,"1,200.00"
"Communities, Customer & Commercial Services",Community Services,Supplies & Services,Grants To Voluntary Organis,St Georges Air Cadets,07/03/2023,"1,000.00"
"Communities, Customer & Commercial Services",Community Services,Supplies & Services,Grants To Voluntary Organis,Great Dawley Town Council,07/03/2023,173.00
"Communities, Customer & Commercial Services",Community Services,Supplies & Services,Grants To Voluntary Organis,THE SILVER THREADS HALL,13/03/2023,300.00
"Communities, Customer & Commercial Services",Community Services,Supplies & Services,Grants To Voluntary Organis,Club 2000,10/03/2023,"1,000.00"
"Communities, Customer & Commercial Services",Community Services,Supplies & Services,Grants To Voluntary Organis,TELFORD CHRISTIAN COUNCIL SUPPORTED HOUS,17/03/2023,450.00
"Communities, Customer & Commercial Services",Community Services,Supplies & Services,Grants To Voluntary Organis,MADELEY TOWN COUNCIL ,23/03/2023,384.00
"Communities, Customer & Commercial Services",Community Services,Supplies & Services,Grants To Voluntary Organis,MADELEY PARISH COUNCIL,23/03/2023,733.60
"Communities, Customer & Commercial Services",Community Services,Supplies & Services,Grants To Voluntary Organis,KETLEY PARISH COUNCIL,16/03/2023,760.00
"Communities, Customer & Commercial Services",Community Services,Supplies & Services,Grants To Voluntary Organis,Welington Boxing Academy,23/03/2023,"1,500.00"
"Communities, Customer & Commercial Services",Community Services,Supplies & Services,Grants To Voluntary Organis,Telford Crisis Support,23/03/2023,420.00
"Communities, Customer & Commercial Services",Community Services,Supplies & Services,Grants To Voluntary Organis,Telford Crisis Support,23/03/2023,"1,000.00"
"Communities, Customer & Commercial Services",Community Services,Supplies & Services,Grants To Voluntary Organis,Ellerdine Village Hall,23/03/2023,300.00
"Communities, Customer & Commercial Services",Community Services,Supplies & Services,Grants To Voluntary Organis,KETLEY PARISH COUNCIL,08/03/2023,"3,207.00"
"Communities, Customer & Commercial Services",Community Services,Supplies & Services,Grants To Voluntary Organis,Friends Of The TelfordT50 50 Mile Trail,08/03/2023,"4,500.00"
"Communities, Customer & Commercial Services",Community Services,Supplies & Services,Grants To Voluntary Organis,HOLLINSWOOD & RANDLAY PARISH COUNCIL,08/03/2023,"2,155.00"
"Communities, Customer & Commercial Services",Community Services,Supplies & Services,Grants To Voluntary Organis,PODS,08/03/2023,"2,935.00"
"Communities, Customer & Commercial Services",Community Services,Supplies & Services,Grants To Voluntary Organis,ST GEORGES & PRIORSLEE PARISH COUNCIL,07/03/2023,"2,000.00"
"Communities, Customer & Commercial Services",Community Services,Supplies & Services,Grants To Voluntary Organis,SEVERN GORGE COUNTRYSIDE TRUST,08/03/2023,"1,635.00"
"Communities, Customer & Commercial Services",Community Services,Supplies & Services,Grants To Voluntary Organis,DONNINGTON PARTNERSHIP,08/03/2023,"1,000.00"
"Communities, Customer & Commercial Services",Community Services,Supplies & Services,Grants To Voluntary Organis,GREAT DAWLEY PARISH COUNCIL,08/03/2023,"5,000.00"
"Communities, Customer & Commercial Services",Community Services,Supplies & Services,Grants To Voluntary Organis,THE SILVER THREADS HALL,22/03/2023,200.00
"Communities, Customer & Commercial Services",Community Services,Premises-Related Expenditure,Electricity,West Mercia Energy ,22/03/2023,530.22
"Communities, Customer & Commercial Services",Community Services,Supplies & Services,Grants To Voluntary Organis,BOURNVILLE VILLAGE TRUST,16/03/2023,"5,000.00"
"Communities, Customer & Commercial Services",Community Services,Supplies & Services,Grants To Voluntary Organis,TIBBERTON & CHERRINGTON PARISH COUNCIL,28/03/2023,"1,500.00"
"Communities, Customer & Commercial Services",Community Services,Supplies & Services,Grants To Voluntary Organis,Wellington H2A - Sounds in the Square,30/03/2023,"1,000.00"
"Communities, Customer & Commercial Services",Community Services,Supplies & Services,Other Services,OVE ARUP & PARTNERS LIMITED,30/03/2023,"2,498.00"
"Communities, Customer & Commercial Services",Community Services,Supplies & Services,Grants To Voluntary Organis,Rodington Village Hall Management Committee,27/03/2023,500.00
"Communities, Customer & Commercial Services",Culture & Events,Capital Expenditure,Other Capital Expenditure,Scanlight Visual Communications Ltd,07/03/2023,"207,530.00"
"Communities, Customer & Commercial Services",Culture & Events,Capital Expenditure,Other Capital Expenditure,Scanlight Visual Communications Ltd,07/03/2023,"6,750.00"
"Communities, Customer & Commercial Services",Culture & Events,Supplies & Services,Marketing & Publicity,APL Media Ltd,09/03/2023,"3,290.00"
"Communities, Customer & Commercial Services",Culture & Events,Supplies & Services,Marketing & Publicity,THW Marketing,09/03/2023,"1,059.00"
"Communities, Customer & Commercial Services",Culture & Events,Supplies & Services,Consultancy,Event Cup Solutions Ltd,09/03/2023,"1,651.50"
"Communities, Customer & Commercial Services",Culture & Events,Supplies & Services,Artistes Fees,Fools Paradise Ltd,09/03/2023,"1,170.00"
"Communities, Customer & Commercial Services",Culture & Events,Supplies & Services,Equipment - Hire,RAP SERVICES LTD T/A TELFORD TOILET HIRE,09/03/2023,290.00
"Communities, Customer & Commercial Services",Culture & Events,Supplies & Services,Equipment - Hire,RAP SERVICES LTD T/A TELFORD TOILET HIRE,09/03/2023,680.00
"Communities, Customer & Commercial Services",Culture & Events,Supplies & Services,First Aid,MW MEDICS LTD,29/03/2023,180.00
"Communities, Customer & Commercial Services",Culture & Events,Supplies & Services,Artistes Fees,Fools Paradise Ltd,29/03/2023,"2,925.00"
"Communities, Customer & Commercial Services",Culture & Events,Supplies & Services,Equipment - Hire,Stage and Studios Services Limited,29/03/2023,"1,000.00"
"Communities, Customer & Commercial Services",Culture & Events,Supplies & Services,Advertising,Secret Severn Art Trail,29/03/2023,400.00
"Communities, Customer & Commercial Services",Culture & Events,Supplies & Services,Artistes Fees,Midland Entertainment,29/03/2023,"1,300.00"
"Communities, Customer & Commercial Services",Culture & Events,Supplies & Services,Artistes Fees,Sofia Steeldrum Entertainment,29/03/2023,650.00
"Communities, Customer & Commercial Services",Culture & Events,Supplies & Services,Equipment - Hire,BRANDON HIRE PLC,15/03/2023,292.00
"Communities, Customer & Commercial Services",Culture & Events,Supplies & Services,Artistes Fees,Flatpack Projects,16/03/2023,"5,000.00"
"Communities, Customer & Commercial Services",Culture & Events,Supplies & Services,First Aid,MW MEDICS LTD,30/03/2023,180.00
"Communities, Customer & Commercial Services",Culture & Events,Supplies & Services,Artistes Fees,Medieval Entertainments Ltd,07/03/2023,"3,800.00"
"Communities, Customer & Commercial Services",Culture & Events,Transport-Related Expenditure,Outside Hire,Enterprise Flexi Rent,02/03/2023,108.34
"Communities, Customer & Commercial Services",Culture & Events,Supplies & Services,Equipment - Hire,Event Furniture Hire Ltd,02/03/2023,"1,015.00"
"Communities, Customer & Commercial Services",Culture & Events,Supplies & Services,Advertising,WHATS ON MAGAZINES LTD,07/03/2023,950.00
"Communities, Customer & Commercial Services",Culture & Events,Supplies & Services,Equipment - Purchase,GRANVILLE CONSTRUCTION & MAINTENANCE LTD,07/03/2023,"2,862.60"
"Communities, Customer & Commercial Services",Culture & Events,Supplies & Services,Advertising,THE MIDLAND NEWS ASSOCIATION LTD,02/03/2023,"2,400.00"
"Communities, Customer & Commercial Services",Culture & Events,Supplies & Services,Advertising,Clear Channel UK Limited,06/03/2023,"1,290.00"
"Communities, Customer & Commercial Services",Culture & Events,Supplies & Services,Advertising,WHATS ON MAGAZINES LTD,10/03/2023,275.00
"Communities, Customer & Commercial Services",Culture & Events,Supplies & Services,Promotion Expenses,Ticketplan Limited,20/03/2023,556.20
"Communities, Customer & Commercial Services",Culture & Events,Supplies & Services,Service Contracts,FREELANCE BUSINESS ASSOCIATES,16/03/2023,810.00
"Communities, Customer & Commercial Services",Culture & Events,Supplies & Services,Performing Rights Fees,PPL PRS Ltd,24/03/2023,"13,470.74"
"Communities, Customer & Commercial Services",Culture & Events,Supplies & Services,Promotion Expenses,Spektrix Limited,17/03/2023,"2,489.94"
"Communities, Customer & Commercial Services",Culture & Events,Supplies & Services,Promotion Expenses,crowdEngage Limited,15/03/2023,330.83
"Communities, Customer & Commercial Services",Culture & Events,Supplies & Services,Artistes Fees,Shones Productions Limited,07/03/2023,"4,874.63"
"Communities, Customer & Commercial Services",Culture & Events,Supplies & Services,Artistes Fees,Prestige Productions,22/03/2023,"3,204.67"
"Communities, Customer & Commercial Services",Culture & Events,Supplies & Services,Artistes Fees,Hadley Learning Community Academy,22/03/2023,"3,306.00"
"Communities, Customer & Commercial Services",Culture & Events,Supplies & Services,Artistes Fees,Live Nation UK Ltd,22/03/2023,"8,033.44"
"Communities, Customer & Commercial Services",Culture & Events,Supplies & Services,Artistes Fees,Chameleon Music Marketing Ltd,06/03/2023,"2,930.72"
"Communities, Customer & Commercial Services",Culture & Events,Supplies & Services,Artistes Fees,Dinosaur Adventure Live Limited,09/03/2023,"7,105.26"
"Communities, Customer & Commercial Services",Culture & Events,Supplies & Services,Artistes Fees,HANDSHAKE LTD ,08/03/2023,"8,575.10"
"Communities, Customer & Commercial Services",Culture & Events,Supplies & Services,Artistes Fees,Wildlife Live Ltd,23/03/2023,342.25
"Communities, Customer & Commercial Services",Culture & Events,Supplies & Services,Artistes Fees,Sporting Life Stories Limited,23/03/2023,"6,480.96"
"Communities, Customer & Commercial Services",Culture & Events,Supplies & Services,Artistes Fees,F J Productions Limited,23/03/2023,"2,486.46"
"Communities, Customer & Commercial Services",Culture & Events,Supplies & Services,Artistes Fees,Telford Tigers Limited,29/03/2023,"2,217.60"
"Communities, Customer & Commercial Services",Culture & Events,Supplies & Services,Artistes Fees,Live Concert International Limited,29/03/2023,"4,409.51"
"Communities, Customer & Commercial Services",Culture & Events,Supplies & Services,Artistes Fees,TADLOP,29/03/2023,"6,542.40"
"Communities, Customer & Commercial Services",Culture & Events,Supplies & Services,Artistes Fees,Jendagi UK Limited,29/03/2023,"6,020.00"
"Communities, Customer & Commercial Services",Culture & Events,Supplies & Services,Artistes Fees,E Live Ltd,29/03/2023,"5,243.89"
"Communities, Customer & Commercial Services",Culture & Events,Supplies & Services,Wet Resale Provision,MOLSON COORS BREWING COMPANY UK LTD,15/03/2023,129.88
"Communities, Customer & Commercial Services",Culture & Events,Supplies & Services,Wet Resale Provision,MOLSON COORS BREWING COMPANY UK LTD,15/03/2023,220.38
"Communities, Customer & Commercial Services",Culture & Events,Supplies & Services,Wet Resale Provision,MOLSON COORS BREWING COMPANY UK LTD,15/03/2023,183.68
"Communities, Customer & Commercial Services",Culture & Events,Supplies & Services,Wet Resale Provision,MOLSON COORS BREWING COMPANY UK LTD,15/03/2023,271.92
"Communities, Customer & Commercial Services",Culture & Events,Supplies & Services,Wet Resale Provision,MOLSON COORS BREWING COMPANY UK LTD,29/03/2023,183.68
"Communities, Customer & Commercial Services",Culture & Events,Supplies & Services,Wet Resale Provision,MOLSON COORS BREWING COMPANY UK LTD,29/03/2023,259.76
"Communities, Customer & Commercial Services",Culture & Events,Supplies & Services,Wet Resale Provision,MOLSON COORS BREWING COMPANY UK LTD,29/03/2023,296.16
"Communities, Customer & Commercial Services",Culture & Events,Supplies & Services,Wet Resale Provision,MOLSON COORS BREWING COMPANY UK LTD,29/03/2023,220.38
"Communities, Customer & Commercial Services",Culture & Events,Supplies & Services,Wet Resale Provision,MOLSON COORS BREWING COMPANY UK LTD,29/03/2023,129.88
"Communities, Customer & Commercial Services",Culture & Events,Supplies & Services,Wet Resale Provision,MOLSON COORS BREWING COMPANY UK LTD,29/03/2023,105.96
"Communities, Customer & Commercial Services",Culture & Events,Supplies & Services,Wet Resale Provision,MOLSON COORS BREWING COMPANY UK LTD,01/03/2023,259.76
"Communities, Customer & Commercial Services",Culture & Events,Supplies & Services,Audit Services,DMC STOCKTAKING,13/03/2023,160.00
"Communities, Customer & Commercial Services",Culture & Events,Supplies & Services,Audit Services,DMC STOCKTAKING,13/03/2023,160.00
"Communities, Customer & Commercial Services",Culture & Events,Supplies & Services,Audit Services,DMC STOCKTAKING,13/03/2023,160.00
"Communities, Customer & Commercial Services",Culture & Events,Supplies & Services,Provisions,REDACTED PERSONAL INFORMATION,22/03/2023,115.79
"Communities, Customer & Commercial Services",Culture & Events,Supplies & Services,Furniture - Repair,BRADLEY INDUSTRIAL SERVICES,16/03/2023,221.81
"Communities, Customer & Commercial Services",Culture & Events,Supplies & Services,Wet Resale Provision,MOLSON COORS BREWING COMPANY UK LTD,29/03/2023,129.88
"Communities, Customer & Commercial Services",Culture & Events,Supplies & Services,Wet Resale Provision,MOLSON COORS BREWING COMPANY UK LTD,29/03/2023,220.38
"Communities, Customer & Commercial Services",Culture & Events,Supplies & Services,Wet Resale Provision,MOLSON COORS BREWING COMPANY UK LTD,29/03/2023,259.76
"Communities, Customer & Commercial Services",Culture & Events,Supplies & Services,Wet Resale Provision,MOLSON COORS BREWING COMPANY UK LTD,29/03/2023,115.98
"Communities, Customer & Commercial Services",Culture & Events,Supplies & Services,Wet Resale Provision,MOLSON COORS BREWING COMPANY UK LTD,29/03/2023,158.94
"Communities, Customer & Commercial Services",Culture & Events,Supplies & Services,Wet Resale Provision,MOLSON COORS BREWING COMPANY UK LTD,29/03/2023,115.98
"Communities, Customer & Commercial Services",Culture & Events,Supplies & Services,Wet Resale Provision,MOLSON COORS BREWING COMPANY UK LTD,29/03/2023,419.12
"Communities, Customer & Commercial Services",Culture & Events,Supplies & Services,Wet Resale Provision,MOLSON COORS BREWING COMPANY UK LTD,29/03/2023,122.88
"Communities, Customer & Commercial Services",Culture & Events,Supplies & Services,Wet Resale Provision,MOLSON COORS BREWING COMPANY UK LTD,29/03/2023,132.69
"Communities, Customer & Commercial Services",Culture & Events,Supplies & Services,Wet Resale Provision,MOLSON COORS BREWING COMPANY UK LTD,29/03/2023,124.74
"Communities, Customer & Commercial Services",Culture & Events,Supplies & Services,Audit Services,DMC STOCKTAKING,13/03/2023,160.00
"Communities, Customer & Commercial Services",Culture & Events,Supplies & Services,Audit Services,DMC STOCKTAKING,13/03/2023,160.00
"Communities, Customer & Commercial Services",Culture & Events,Supplies & Services,Wet Resale Provision,MOLSON COORS BREWING COMPANY UK LTD,03/03/2023,151.76
"Communities, Customer & Commercial Services",Culture & Events,Supplies & Services,Wet Resale Provision,MOLSON COORS BREWING COMPANY UK LTD,03/03/2023,440.76
"Communities, Customer & Commercial Services",Culture & Events,Supplies & Services,Wet Resale Provision,MOLSON COORS BREWING COMPANY UK LTD,03/03/2023,184.32
"Communities, Customer & Commercial Services",Culture & Events,Supplies & Services,Wet Resale Provision,MOLSON COORS BREWING COMPANY UK LTD,03/03/2023,154.64
"Communities, Customer & Commercial Services",Culture & Events,Supplies & Services,Wet Resale Provision,MOLSON COORS BREWING COMPANY UK LTD,03/03/2023,225.68
"Communities, Customer & Commercial Services",Culture & Events,Supplies & Services,Wet Resale Provision,MOLSON COORS BREWING COMPANY UK LTD,29/03/2023,259.76
"Communities, Customer & Commercial Services",Culture & Events,Supplies & Services,Wet Resale Provision,MOLSON COORS BREWING COMPANY UK LTD,29/03/2023,220.38
"Communities, Customer & Commercial Services",Culture & Events,Supplies & Services,Wet Resale Provision,MOLSON COORS BREWING COMPANY UK LTD,29/03/2023,117.08
"Communities, Customer & Commercial Services",Culture & Events,Supplies & Services,Wet Resale Provision,MOLSON COORS BREWING COMPANY UK LTD,29/03/2023,398.07
"Communities, Customer & Commercial Services",Culture & Events,Supplies & Services,Wet Resale Provision,MOLSON COORS BREWING COMPANY UK LTD,29/03/2023,183.68
"Communities, Customer & Commercial Services",Culture & Events,Supplies & Services,Wet Resale Provision,MOLSON COORS BREWING COMPANY UK LTD,29/03/2023,440.76
"Communities, Customer & Commercial Services",Culture & Events,Supplies & Services,Wet Resale Provision,MOLSON COORS BREWING COMPANY UK LTD,29/03/2023,122.88
"Communities, Customer & Commercial Services",Culture & Events,Supplies & Services,Wet Resale Provision,MOLSON COORS BREWING COMPANY UK LTD,29/03/2023,105.17
"Communities, Customer & Commercial Services",Culture & Events,Supplies & Services,Wet Resale Provision,MOLSON COORS BREWING COMPANY UK LTD,29/03/2023,158.94
"Communities, Customer & Commercial Services",Culture & Events,Supplies & Services,Wet Resale Provision,MOLSON COORS BREWING COMPANY UK LTD,29/03/2023,347.94
"Communities, Customer & Commercial Services",Culture & Events,Supplies & Services,Wet Resale Provision,MOLSON COORS BREWING COMPANY UK LTD,29/03/2023,161.20
"Communities, Customer & Commercial Services",Customer Relationships & Welfare Services,Supplies & Services,Permit Production - Blue Badge,APS Group,08/03/2023,"1,034.64"
"Communities, Customer & Commercial Services",Customer Relationships & Welfare Services,Transfer Payments,Crisis Assistance Awards,Kings of the Road,01/03/2023,375.00
"Communities, Customer & Commercial Services",Customer Relationships & Welfare Services,Supplies & Services,Comp Software (Purch / Hire),IEG4 Limited,07/03/2023,"10,725.00"
"Communities, Customer & Commercial Services",Customer Relationships & Welfare Services,Supplies & Services,Bus Pass Production,Euclid Limited,07/03/2023,762.19
"Communities, Customer & Commercial Services",Customer Relationships & Welfare Services,Supplies & Services,Permit Production - Blue Badge,Valtech Limited,07/03/2023,508.62
"Communities, Customer & Commercial Services",Customer Relationships & Welfare Services,Supplies & Services,Permit Production - Blue Badge,APS Group,30/03/2023,"1,003.96"
"Communities, Customer & Commercial Services",Customer Relationships & Welfare Services,Transfer Payments,Crisis Assistance Awards,Kings of the Road,28/03/2023,425.00
"Communities, Customer & Commercial Services",Customer Relationships & Welfare Services,Transfer Payments,Crisis Assistance Awards,Kings of the Road,28/03/2023,375.00
"Communities, Customer & Commercial Services",Customer Relationships & Welfare Services,Supplies & Services,Permit Production - Blue Badge,Valtech Limited,29/03/2023,498.18
"Communities, Customer & Commercial Services",Customer Relationships & Welfare Services,Supplies & Services,Bus Pass Production,Unicard Ltd,20/03/2023,534.76
"Communities, Customer & Commercial Services",Customer Relationships & Welfare Services,Supplies & Services,Blue Badge Assessments,Ascenti,13/03/2023,150.00
"Communities, Customer & Commercial Services",Customer Relationships & Welfare Services,Supplies & Services,Other Grants (Expenses),Discretionary Household Support,13/03/2023,221.80
"Communities, Customer & Commercial Services",Customer Relationships & Welfare Services,Supplies & Services,Other Grants (Expenses),Discretionary Household Support,22/03/2023,217.14
"Communities, Customer & Commercial Services",Customer Relationships & Welfare Services,Transfer Payments,Crisis Assistance Awards,PayPoint Network Limited,01/03/2023,689.00
"Communities, Customer & Commercial Services",Customer Relationships & Welfare Services,Employees,Agency Supply Costs,EDEN BROWN LTD,14/03/2023,965.25
"Communities, Customer & Commercial Services",Customer Relationships & Welfare Services,Employees,Agency Supply Costs,G2 Recruitment Solutions,14/03/2023,990.00
"Communities, Customer & Commercial Services",Customer Relationships & Welfare Services,Supplies & Services,Other Grants (Expenses),Discretionary Household Support,22/03/2023,500.00
"Communities, Customer & Commercial Services",Customer Relationships & Welfare Services,Supplies & Services,Other Grants (Expenses),Discretionary Household Support,14/03/2023,430.29
"Communities, Customer & Commercial Services",Customer Relationships & Welfare Services,Employees,Agency Supply Costs,G2 Recruitment Solutions,02/03/2023,"1,087.50"
"Communities, Customer & Commercial Services",Customer Relationships & Welfare Services,Employees,Agency Supply Costs,EDEN BROWN LTD,02/03/2023,"1,059.75"
"Communities, Customer & Commercial Services",Customer Relationships & Welfare Services,Employees,Agency Supply Costs,EDEN BROWN LTD,02/03/2023,"1,059.75"
"Communities, Customer & Commercial Services",Customer Relationships & Welfare Services,Transfer Payments,Crisis Assistance Awards,PayPoint Network Limited,06/03/2023,669.00
"Communities, Customer & Commercial Services",Customer Relationships & Welfare Services,Supplies & Services,Other Grants (Expenses),Discretionary Household Support,22/03/2023,340.42
"Communities, Customer & Commercial Services",Customer Relationships & Welfare Services,Supplies & Services,Other Grants (Expenses),Hawk Incentives Ltd ,20/03/2023,"86,503.40"
"Communities, Customer & Commercial Services",Customer Relationships & Welfare Services,Supplies & Services,Other Grants (Expenses),Discretionary Household Support,30/03/2023,190.00
"Communities, Customer & Commercial Services",Customer Relationships & Welfare Services,Transfer Payments,Crisis Assistance Awards,PayPoint Network Limited,16/03/2023,472.00
"Communities, Customer & Commercial Services",Customer Relationships & Welfare Services,Supplies & Services,Other Grants (Expenses),Discretionary Household Support,16/03/2023,400.00
"Communities, Customer & Commercial Services",Customer Relationships & Welfare Services,Supplies & Services,Other Grants (Expenses),Hawk Incentives Ltd,16/03/2023,"28,875.60"
"Communities, Customer & Commercial Services",Customer Relationships & Welfare Services,Employees,Agency Supply Costs,G2 Recruitment Solutions,21/03/2023,765.00
"Communities, Customer & Commercial Services",Customer Relationships & Welfare Services,Employees,Agency Supply Costs,G2 Recruitment Solutions,21/03/2023,"1,005.00"
"Communities, Customer & Commercial Services",Customer Relationships & Welfare Services,Supplies & Services,Other Grants (Expenses),Discretionary Household Support,16/03/2023,336.06
"Communities, Customer & Commercial Services",Customer Relationships & Welfare Services,Supplies & Services,Other Grants (Expenses),Discretionary Household Support,16/03/2023,275.00
"Communities, Customer & Commercial Services",Customer Relationships & Welfare Services,Employees,Agency Supply Costs,EDEN BROWN LTD,21/03/2023,"1,059.75"
"Communities, Customer & Commercial Services",Customer Relationships & Welfare Services,Transfer Payments,Crisis Assistance Awards,PayPoint Network Limited,28/03/2023,805.00
"Communities, Customer & Commercial Services",Customer Relationships & Welfare Services,Transfer Payments,Crisis Assistance Awards,PayPoint Network Limited,24/03/2023,765.50
"Communities, Customer & Commercial Services",Customer Relationships & Welfare Services,Employees,Agency Supply Costs,EDEN BROWN LTD,28/03/2023,"1,059.75"
"Communities, Customer & Commercial Services",Customer Relationships & Welfare Services,Employees,Agency Supply Costs,EDEN BROWN LTD,31/03/2023,"1,059.75"
"Communities, Customer & Commercial Services",Customer Relationships & Welfare Services,Supplies & Services,Other Grants (Expenses),Hawk Incentives Ltd ,20/03/2023,"14,808.00"
"Communities, Customer & Commercial Services",Customer Relationships & Welfare Services,Supplies & Services,Consultancy,NEC Software Solutions UK Ltd,22/03/2023,"1,000.00"
"Communities, Customer & Commercial Services",Customer Relationships & Welfare Services,Supplies & Services,Computer Software (Maint),NEC Software Solutions UK Ltd,02/03/2023,"45,143.00"
"Communities, Customer & Commercial Services",Customer Relationships & Welfare Services,Supplies & Services,IT Services,NEC Software Solutions UK Ltd,22/03/2023,"3,053.47"
"Communities, Customer & Commercial Services",Customer Relationships & Welfare Services,Supplies & Services,Postages,ROYAL MAIL GROUP PLC ,24/03/2023,"1,680.00"
"Communities, Customer & Commercial Services",Customer Relationships & Welfare Services,Employees,Staff Training,DUDLEY METROPOLITAN BOROUGH COUNCIL,03/03/2023,560.00
"Communities, Customer & Commercial Services",Customer Relationships & Welfare Services,Premises-Related Expenditure,Grounds Maintenance - Other,OASIS PLANTS LIMITED,28/03/2023,126.36
"Communities, Customer & Commercial Services",Customer Relationships & Welfare Services,Employees,Staff Training,DUDLEY METROPOLITAN BOROUGH COUNCIL,17/03/2023,280.00
"Communities, Customer & Commercial Services",Customer Relationships & Welfare Services,Premises-Related Expenditure,Grounds Maintenance - Other,OASIS PLANTS LIMITED,17/03/2023,605.47
"Communities, Customer & Commercial Services",Customer Relationships & Welfare Services,Employees,Staff Training,DUDLEY METROPOLITAN BOROUGH COUNCIL,17/03/2023,840.00
"Communities, Customer & Commercial Services",Customer Relationships & Welfare Services,Employees,Staff Training,Zipporah Ltd.,28/03/2023,850.00
"Communities, Customer & Commercial Services",Customer Relationships & Welfare Services,Supplies & Services,Comp Software (Purch / Hire),Zipporah Ltd.,28/03/2023,"21,575.00"
"Communities, Customer & Commercial Services",ICT,Capital Expenditure,Payments to Contractor,Bramble Hub Limited,14/03/2023,"3,513.33"
"Communities, Customer & Commercial Services",ICT,Capital Expenditure,Payments to Contractor,Zellis UK Ltd,21/03/2023,893.00
"Communities, Customer & Commercial Services",ICT,Capital Expenditure,Payments to Contractor,Zellis UK Ltd,21/03/2023,"1,433.50"
"Communities, Customer & Commercial Services",ICT,Capital Expenditure,Payments to Contractor,FarrPoint Ltd,14/03/2023,478.13
"Communities, Customer & Commercial Services",ICT,Capital Expenditure,Payments to Contractor,ICTn Limited,14/03/2023,140.00
"Communities, Customer & Commercial Services",ICT,Capital Expenditure,Payments to Contractor,ICTn Limited,14/03/2023,118.00
"Communities, Customer & Commercial Services",ICT,Capital Expenditure,Payments to Contractor,Bramble Hub Limited,10/03/2023,"14,277.23"
"Communities, Customer & Commercial Services",ICT,Capital Expenditure,Payments to Contractor,ICTn Limited,21/03/2023,320.00
"Communities, Customer & Commercial Services",ICT,Capital Expenditure,Computer Hardware,CCS MEDIA LIMITED,29/03/2023,"1,000.00"
"Communities, Customer & Commercial Services",ICT,Capital Expenditure,Computer Hardware,CCS MEDIA LIMITED,29/03/2023,850.00
"Communities, Customer & Commercial Services",ICT,Capital Expenditure,Computer Hardware,CCS MEDIA LIMITED,29/03/2023,"7,760.00"
"Communities, Customer & Commercial Services",ICT,Capital Expenditure,Computer Software,LIQUIDLOGIC LIMITED,01/03/2023,"9,731.50"
"Communities, Customer & Commercial Services",ICT,Capital Expenditure,Computer Hardware,CCS MEDIA LIMITED,21/03/2023,"9,840.00"
"Communities, Customer & Commercial Services",ICT,Capital Expenditure,Computer Software,Bramble Hub Limited,07/03/2023,"1,332.93"
"Communities, Customer & Commercial Services",ICT,Capital Expenditure,Computer Hardware,CCS MEDIA LIMITED,09/03/2023,"4,490.20"
"Communities, Customer & Commercial Services",ICT,Capital Expenditure,Computer Hardware,CCS MEDIA LIMITED,29/03/2023,"2,200.00"
"Communities, Customer & Commercial Services",ICT,Capital Expenditure,Computer Hardware,CCS MEDIA LIMITED,24/03/2023,"17,566.90"
"Communities, Customer & Commercial Services",ICT,Capital Expenditure,Computer Hardware,CCS MEDIA LIMITED,17/03/2023,"6,860.00"
"Communities, Customer & Commercial Services",ICT,Capital Expenditure,Computer Software,Man and Machine,27/03/2023,"1,048.17"
"Communities, Customer & Commercial Services",ICT,Capital Expenditure,Computer Software,PHOENIX SOFTWARE LTD,27/03/2023,472.20
"Communities, Customer & Commercial Services",ICT,Supplies & Services,Comp Hardware (Purch / Hire),Stone Technology,14/03/2023,840.00
"Communities, Customer & Commercial Services",ICT,Premises-Related Expenditure,Hire Of Rooms,Sutton Hill Community Trust,27/03/2023,280.00
"Communities, Customer & Commercial Services",ICT,Supplies & Services,Comp Hardware (Purch / Hire),CCS MEDIA LIMITED,16/03/2023,432.00
"Communities, Customer & Commercial Services",ICT,Supplies & Services,Comp Hardware (Purch / Hire),CCS MEDIA LIMITED,16/03/2023,318.60
"Communities, Customer & Commercial Services",ICT,Supplies & Services,Comp Hardware (Purch / Hire),Stone Group,17/03/2023,"3,885.00"
"Communities, Customer & Commercial Services",ICT,Supplies & Services,Comp Hardware (Purch / Hire),CCS MEDIA LIMITED,01/03/2023,"9,180.00"
"Communities, Customer & Commercial Services",ICT,Supplies & Services,Equipment - Purchase,RecycleIT,02/03/2023,"4,900.00"
"Communities, Customer & Commercial Services",ICT,Supplies & Services,Mobile Phones,EE LTD AIRTIME ,09/03/2023,"12,424.76"
"Communities, Customer & Commercial Services",ICT,Supplies & Services,Telecomms,Airband Community Internet,17/03/2023,125.00
"Communities, Customer & Commercial Services",ICT,Supplies & Services,Telephones,BRITISH TELECOMMUNICATIONS PLC ,14/03/2023,"6,013.21"
"Communities, Customer & Commercial Services",ICT,Supplies & Services,Text Messages,PROCESS FLOWS UK LTD,07/03/2023,272.85
"Communities, Customer & Commercial Services",ICT,Supplies & Services,Telecomms,Airband Community Internet,07/03/2023,295.00
"Communities, Customer & Commercial Services",ICT,Supplies & Services,Telecomms,Airband Community Internet,07/03/2023,300.00
"Communities, Customer & Commercial Services",ICT,Supplies & Services,Telecomms,Airband Community Internet,07/03/2023,295.00
"Communities, Customer & Commercial Services",ICT,Supplies & Services,Telecomms,Airband Community Internet,07/03/2023,295.00
"Communities, Customer & Commercial Services",ICT,Supplies & Services,Telecomms,Airband Community Internet,07/03/2023,295.00
"Communities, Customer & Commercial Services",ICT,Supplies & Services,Telecomms,Airband Community Internet,07/03/2023,125.00
"Communities, Customer & Commercial Services",ICT,Supplies & Services,Telecomms,Airband Community Internet,07/03/2023,300.00
"Communities, Customer & Commercial Services",ICT,Supplies & Services,Telecomms,Airband Community Internet,07/03/2023,300.00
"Communities, Customer & Commercial Services",ICT,Supplies & Services,Telecomms,Airband Community Internet,07/03/2023,300.00
"Communities, Customer & Commercial Services",ICT,Supplies & Services,Telecomms,Airband Community Internet,07/03/2023,300.00
"Communities, Customer & Commercial Services",ICT,Supplies & Services,Telephones,Trustmarque Solutions Limited,30/03/2023,"2,893.90"
"Communities, Customer & Commercial Services",ICT,Supplies & Services,Mobile Phones,EE LTD EQUIPMENT,30/03/2023,585.00
"Communities, Customer & Commercial Services",ICT,Employees,Staff Training,Amazing ICT Ltd,10/03/2023,290.00
"Communities, Customer & Commercial Services",ICT,Supplies & Services,Protective Clothing,MYWORKWEAR,28/03/2023,697.13
"Communities, Customer & Commercial Services",ICT,Supplies & Services,Comp Software (Purch / Hire),PHOENIX SOFTWARE LTD,21/03/2023,"12,280.09"
"Communities, Customer & Commercial Services",ICT,Supplies & Services,Comp Software (Purch / Hire),PHOENIX SOFTWARE LTD,07/03/2023,655.07
"Communities, Customer & Commercial Services",ICT,Supplies & Services,Comp Software (Purch / Hire),PHOENIX SOFTWARE LTD,07/03/2023,655.07
"Communities, Customer & Commercial Services",ICT,Supplies & Services,Comp Software (Purch / Hire),PHOENIX SOFTWARE LTD,07/03/2023,655.07
"Communities, Customer & Commercial Services",ICT,Supplies & Services,Comp Software (Purch / Hire),PHOENIX SOFTWARE LTD,07/03/2023,655.07
"Communities, Customer & Commercial Services",ICT,Supplies & Services,Comp Software (Purch / Hire),PHOENIX SOFTWARE LTD,07/03/2023,"1,091.75"
"Communities, Customer & Commercial Services",ICT,Supplies & Services,Comp Software (Purch / Hire),PHOENIX SOFTWARE LTD,07/03/2023,"12,311.60"
"Communities, Customer & Commercial Services",ICT,Premises-Related Expenditure,R&M -Building Other,Charlton Academy,07/03/2023,"1,792.87"
"Communities, Customer & Commercial Services",ICT,Premises-Related Expenditure,R&M -Buildings DLO Charge,PP ELECTRICAL SERVICES Ltd,09/03/2023,"2,058.00"
"Communities, Customer & Commercial Services",ICT,Supplies & Services,Comp Software (Purch / Hire),IDOX SOFTWARE LTD,14/03/2023,"30,252.39"
"Communities, Customer & Commercial Services",ICT,Supplies & Services,Comp Software (Purch / Hire),Barnbrook Software Limited,02/03/2023,"4,250.00"
"Communities, Customer & Commercial Services",ICT,Supplies & Services,Comp Software (Purch / Hire),PHOENIX SOFTWARE LTD,14/03/2023,"2,857.12"
"Communities, Customer & Commercial Services",ICT,Supplies & Services,Comp Software (Purch / Hire),PHOENIX SOFTWARE LTD,14/03/2023,"3,694.95"
"Communities, Customer & Commercial Services",ICT,Supplies & Services,Comp Software (Purch / Hire),PHOENIX SOFTWARE LTD,14/03/2023,"5,146.14"
"Communities, Customer & Commercial Services",ICT,Supplies & Services,Comp Software (Purch / Hire),PHOENIX SOFTWARE LTD,14/03/2023,339.01
"Communities, Customer & Commercial Services",ICT,Supplies & Services,Comp Software (Purch / Hire),NEC Software Solutions UK Ltd,10/03/2023,"62,103.00"
"Communities, Customer & Commercial Services",ICT,Supplies & Services,Comp Software (Purch / Hire),JISC Services Limited,10/03/2023,"2,000.00"
"Communities, Customer & Commercial Services",ICT,Supplies & Services,External Computer Use,ESTEEM SYSTEMS Ltd,10/03/2023,"6,300.00"
"Communities, Customer & Commercial Services",ICT,Supplies & Services,Comp Software (Purch / Hire),Barnbrook Software Limited,30/03/2023,640.00
"Communities, Customer & Commercial Services",ICT,Supplies & Services,Comp Hardware (Purch / Hire),Stone Group,31/03/2023,599.00
"Communities, Customer & Commercial Services",ICT,Supplies & Services,Telecomms,RIPE NCC,03/03/2023,"1,413.99"
"Communities, Customer & Commercial Services",ICT,Supplies & Services,Computer Hardware (Maint),NEC Software Solutions UK Ltd,02/03/2023,"62,346.00"
"Communities, Customer & Commercial Services",ICT,Supplies & Services,Comp Software (Purch / Hire),ESTEEM SYSTEMS Ltd,02/03/2023,"1,158.68"
"Communities, Customer & Commercial Services",ICT,Supplies & Services,Telecomms,CAPITA BUSINESS SERVICES LTD ,20/03/2023,"54,398.00"
"Communities, Customer & Commercial Services",ICT,Supplies & Services,Comp Hardware (Purch / Hire),PHOENIX SOFTWARE LTD,21/03/2023,"2,578.14"
"Communities, Customer & Commercial Services",ICT,Supplies & Services,Comp Software (Purch / Hire),Texthelp Ltd,29/03/2023,"9,240.00"
"Communities, Customer & Commercial Services",ICT,Supplies & Services,Comp Software (Purch / Hire),Safe Apps Limited,29/03/2023,900.00
"Communities, Customer & Commercial Services",ICT,Premises-Related Expenditure,R&M -Building Other,Charlton Academy,29/03/2023,"1,870.73"
"Communities, Customer & Commercial Services",ICT,Supplies & Services,Stationery,PREMIER PAPER GROUP LTD,28/03/2023,130.80
"Communities, Customer & Commercial Services",ICT,Supplies & Services,Equipment - Hire,RICOH UK LIMITED,24/03/2023,"-3,292.48"
"Communities, Customer & Commercial Services",ICT,Supplies & Services,Comp Hardware (Purch / Hire),CCS MEDIA LIMITED,16/03/2023,410.00
"Communities, Customer & Commercial Services",ICT,Supplies & Services,Comp Hardware (Purch / Hire),CCS MEDIA LIMITED,23/03/2023,"4,900.00"
"Communities, Customer & Commercial Services",ICT,Supplies & Services,Comp Hardware (Purch / Hire),CCS MEDIA LIMITED,20/03/2023,"3,350.00"
"Communities, Customer & Commercial Services",ICT,Supplies & Services,Equipment - Hire,RICOH UK LIMITED,29/03/2023,"3,317.73"
"Communities, Customer & Commercial Services",ICT,Supplies & Services,Comp Hardware (Purch / Hire),CCS MEDIA LIMITED,10/03/2023,"2,695.00"
"Communities, Customer & Commercial Services",ICT,Supplies & Services,Comp Hardware (Purch / Hire),CCS MEDIA LIMITED,10/03/2023,"12,445.00"
"Communities, Customer & Commercial Services",ICT,Supplies & Services,Licences,SIEMENS FINANCIAL SERVICES LTD,01/03/2023,"1,036.73"
"Communities, Customer & Commercial Services",Sport & Leisure,Capital Expenditure,Fixtures & Fittings & Equipment,SIGNS EXPRESS ,03/03/2023,516.40
"Communities, Customer & Commercial Services",Sport & Leisure,Capital Expenditure,Payments to Contractor,Hankinson Whittle Limited,14/03/2023,"3,150.00"
"Communities, Customer & Commercial Services",Sport & Leisure,Capital Expenditure,Fixtures & Fittings & Equipment,PULSE FITNESS LIMITED,08/03/2023,"137,302.79"
"Communities, Customer & Commercial Services",Sport & Leisure,Capital Expenditure,Payments to Contractor,SKIPS TELFORD LTD,08/03/2023,135.00
"Communities, Customer & Commercial Services",Sport & Leisure,Capital Expenditure,Payments to Contractor,GRANVILLE CONSTRUCTION & MAINTENANCE LTD,28/03/2023,"1,807.04"
"Communities, Customer & Commercial Services",Sport & Leisure,Capital Expenditure,Payments to Contractor,BATTLEFIELD LAND SURVEYS LTD,28/03/2023,500.00
"Communities, Customer & Commercial Services",Sport & Leisure,Capital Expenditure,Fixtures & Fittings & Equipment,Skitech  Systems Ltd,28/03/2023,475.00
"Communities, Customer & Commercial Services",Sport & Leisure,Capital Expenditure,Fixtures & Fittings & Equipment,Skitech  Systems Ltd,28/03/2023,560.00
"Communities, Customer & Commercial Services",Sport & Leisure,Capital Expenditure,Fixtures & Fittings & Equipment,Skitech  Systems Ltd,28/03/2023,600.00
"Communities, Customer & Commercial Services",Sport & Leisure,Capital Expenditure,Fixtures & Fittings & Equipment,Skitech  Systems Ltd,28/03/2023,"19,470.00"
"Communities, Customer & Commercial Services",Sport & Leisure,Capital Expenditure,Fixtures & Fittings & Equipment,Skitech  Systems Ltd,28/03/2023,210.00
"Communities, Customer & Commercial Services",Sport & Leisure,Premises-Related Expenditure,Clean Mats & Toilet Requisites,Border Janitorial Supplies Limited,24/03/2023,327.71
"Communities, Customer & Commercial Services",Sport & Leisure,Premises-Related Expenditure,Clean Mats & Toilet Requisites,Border Janitorial Supplies Limited,24/03/2023,141.26
"Communities, Customer & Commercial Services",Sport & Leisure,Premises-Related Expenditure,Clean Mats & Toilet Requisites,Border Janitorial Supplies Limited,24/03/2023,225.69
"Communities, Customer & Commercial Services",Sport & Leisure,Premises-Related Expenditure,Clean Mats & Toilet Requisites,Border Janitorial Supplies Limited,24/03/2023,561.62
"Communities, Customer & Commercial Services",Sport & Leisure,Premises-Related Expenditure,Clean Mats & Toilet Requisites,Border Janitorial Supplies Limited,24/03/2023,481.28
"Communities, Customer & Commercial Services",Sport & Leisure,Premises-Related Expenditure,Clean Mats & Toilet Requisites,Border Janitorial Supplies Limited,24/03/2023,155.10
"Communities, Customer & Commercial Services",Sport & Leisure,Premises-Related Expenditure,Clean Mats & Toilet Requisites,Border Janitorial Supplies Limited,24/03/2023,404.77
"Communities, Customer & Commercial Services",Sport & Leisure,Premises-Related Expenditure,Clean Mats & Toilet Requisites,Border Janitorial Supplies Limited,24/03/2023,285.34
"Communities, Customer & Commercial Services",Sport & Leisure,Premises-Related Expenditure,Clean Mats & Toilet Requisites,Border Janitorial Supplies Limited,24/03/2023,110.61
"Communities, Customer & Commercial Services",Sport & Leisure,Premises-Related Expenditure,Clean Mats & Toilet Requisites,Border Janitorial Supplies Limited,31/03/2023,172.24
"Communities, Customer & Commercial Services",Sport & Leisure,Premises-Related Expenditure,Clean Mats & Toilet Requisites,Border Janitorial Supplies Limited,24/03/2023,101.06
"Communities, Customer & Commercial Services",Sport & Leisure,Premises-Related Expenditure,Clean Mats & Toilet Requisites,Border Janitorial Supplies Limited,24/03/2023,257.79
"Communities, Customer & Commercial Services",Sport & Leisure,Premises-Related Expenditure,Clean Mats & Toilet Requisites,Border Janitorial Supplies Limited,23/03/2023,107.91
"Communities, Customer & Commercial Services",Sport & Leisure,Premises-Related Expenditure,Clean Mats & Toilet Requisites,Border Janitorial Supplies Limited,23/03/2023,101.81
"Communities, Customer & Commercial Services",Sport & Leisure,Premises-Related Expenditure,Clean Mats & Toilet Requisites,Border Janitorial Supplies Limited,23/03/2023,409.89
"Communities, Customer & Commercial Services",Sport & Leisure,Premises-Related Expenditure,Clean Mats & Toilet Requisites,Border Janitorial Supplies Limited,23/03/2023,180.04
"Communities, Customer & Commercial Services",Sport & Leisure,Premises-Related Expenditure,Clean Mats & Toilet Requisites,Border Janitorial Supplies Limited,29/03/2023,126.12
"Communities, Customer & Commercial Services",Sport & Leisure,Premises-Related Expenditure,Clean Mats & Toilet Requisites,Border Janitorial Supplies Limited,29/03/2023,109.03
"Communities, Customer & Commercial Services",Sport & Leisure,Premises-Related Expenditure,Clean Mats & Toilet Requisites,Border Janitorial Supplies Limited,07/03/2023,179.73
"Communities, Customer & Commercial Services",Sport & Leisure,Premises-Related Expenditure,Clean Mats & Toilet Requisites,Border Janitorial Supplies Limited,07/03/2023,182.29
"Communities, Customer & Commercial Services",Sport & Leisure,Premises-Related Expenditure,Clean Mats & Toilet Requisites,Border Janitorial Supplies Limited,24/03/2023,"1,780.20"
"Communities, Customer & Commercial Services",Sport & Leisure,Premises-Related Expenditure,Clean Mats & Toilet Requisites,Border Janitorial Supplies Limited,23/03/2023,119.09
"Communities, Customer & Commercial Services",Sport & Leisure,Premises-Related Expenditure,Clean Mats & Toilet Requisites,Border Janitorial Supplies Limited,23/03/2023,281.04
"Communities, Customer & Commercial Services",Sport & Leisure,Premises-Related Expenditure,Clean Mats & Toilet Requisites,Border Janitorial Supplies Limited,23/03/2023,298.47
"Communities, Customer & Commercial Services",Sport & Leisure,Premises-Related Expenditure,Clean Mats & Toilet Requisites,Border Janitorial Supplies Limited,23/03/2023,138.82
"Communities, Customer & Commercial Services",Sport & Leisure,Premises-Related Expenditure,Clean Mats & Toilet Requisites,Border Janitorial Supplies Limited,24/03/2023,216.52
"Communities, Customer & Commercial Services",Sport & Leisure,Premises-Related Expenditure,Clean Mats & Toilet Requisites,Border Janitorial Supplies Limited,24/03/2023,124.64
"Communities, Customer & Commercial Services",Sport & Leisure,Premises-Related Expenditure,Clean Mats & Toilet Requisites,Border Janitorial Supplies Limited,24/03/2023,149.84
"Communities, Customer & Commercial Services",Sport & Leisure,Premises-Related Expenditure,Clean Mats & Toilet Requisites,Border Janitorial Supplies Limited,24/03/2023,172.10
"Communities, Customer & Commercial Services",Sport & Leisure,Premises-Related Expenditure,Clean Mats & Toilet Requisites,Border Janitorial Supplies Limited,24/03/2023,283.31
"Communities, Customer & Commercial Services",Sport & Leisure,Premises-Related Expenditure,Clean Mats & Toilet Requisites,Border Janitorial Supplies Limited,24/03/2023,112.16
"Communities, Customer & Commercial Services",Sport & Leisure,Premises-Related Expenditure,Clean Mats & Toilet Requisites,Border Janitorial Supplies Limited,24/03/2023,164.56
"Communities, Customer & Commercial Services",Sport & Leisure,Premises-Related Expenditure,Clean Mats & Toilet Requisites,Border Janitorial Supplies Limited,24/03/2023,237.97
"Communities, Customer & Commercial Services",Sport & Leisure,Premises-Related Expenditure,Clean Mats & Toilet Requisites,Border Janitorial Supplies Limited,24/03/2023,253.00
"Communities, Customer & Commercial Services",Sport & Leisure,Premises-Related Expenditure,Clean Mats & Toilet Requisites,Border Janitorial Supplies Limited,24/03/2023,392.10
"Communities, Customer & Commercial Services",Sport & Leisure,Supplies & Services,Equipment - Repair,THE CLEAN MACHINE DIRECT LTD,07/03/2023,111.51
"Communities, Customer & Commercial Services",Sport & Leisure,Premises-Related Expenditure,Clean Mats & Toilet Requisites,Border Janitorial Supplies Limited,07/03/2023,443.45
"Communities, Customer & Commercial Services",Sport & Leisure,Premises-Related Expenditure,Clean Mats & Toilet Requisites,Border Janitorial Supplies Limited,07/03/2023,181.43
"Communities, Customer & Commercial Services",Sport & Leisure,Premises-Related Expenditure,Clean Mats & Toilet Requisites,Border Janitorial Supplies Limited,07/03/2023,162.21
"Communities, Customer & Commercial Services",Sport & Leisure,Premises-Related Expenditure,Clean Mats & Toilet Requisites,Border Janitorial Supplies Limited,07/03/2023,205.30
"Communities, Customer & Commercial Services",Sport & Leisure,Premises-Related Expenditure,Clean Mats & Toilet Requisites,Border Janitorial Supplies Limited,24/03/2023,244.41
"Communities, Customer & Commercial Services",Sport & Leisure,Premises-Related Expenditure,Clean Mats & Toilet Requisites,Border Janitorial Supplies Limited,23/03/2023,179.30
"Communities, Customer & Commercial Services",Sport & Leisure,Premises-Related Expenditure,Clean Mats & Toilet Requisites,Border Janitorial Supplies Limited,23/03/2023,341.03
"Communities, Customer & Commercial Services",Sport & Leisure,Premises-Related Expenditure,Clean Mats & Toilet Requisites,Border Janitorial Supplies Limited,23/03/2023,341.32
"Communities, Customer & Commercial Services",Sport & Leisure,Premises-Related Expenditure,Clean Mats & Toilet Requisites,Border Janitorial Supplies Limited,23/03/2023,298.41
"Communities, Customer & Commercial Services",Sport & Leisure,Premises-Related Expenditure,Clean Mats & Toilet Requisites,Border Janitorial Supplies Limited,23/03/2023,"-1,059.96"
"Communities, Customer & Commercial Services",Sport & Leisure,Premises-Related Expenditure,Clean Mats & Toilet Requisites,Border Janitorial Supplies Limited,23/03/2023,185.59
"Communities, Customer & Commercial Services",Sport & Leisure,Premises-Related Expenditure,Clean Mats & Toilet Requisites,Border Janitorial Supplies Limited,23/03/2023,121.69
"Communities, Customer & Commercial Services",Sport & Leisure,Premises-Related Expenditure,Clean Mats & Toilet Requisites,Border Janitorial Supplies Limited,24/03/2023,144.53
"Communities, Customer & Commercial Services",Sport & Leisure,Premises-Related Expenditure,Clean Mats & Toilet Requisites,Border Janitorial Supplies Limited,24/03/2023,105.06
"Communities, Customer & Commercial Services",Sport & Leisure,Premises-Related Expenditure,Clean Mats & Toilet Requisites,Border Janitorial Supplies Limited,24/03/2023,199.49
"Communities, Customer & Commercial Services",Sport & Leisure,Premises-Related Expenditure,Clean Mats & Toilet Requisites,Border Janitorial Supplies Limited,24/03/2023,166.33
"Communities, Customer & Commercial Services",Sport & Leisure,Premises-Related Expenditure,Clean Mats & Toilet Requisites,Border Janitorial Supplies Limited,23/03/2023,465.93
"Communities, Customer & Commercial Services",Sport & Leisure,Premises-Related Expenditure,Clean Mats & Toilet Requisites,Border Janitorial Supplies Limited,24/03/2023,100.07
"Communities, Customer & Commercial Services",Sport & Leisure,Premises-Related Expenditure,Clean Mats & Toilet Requisites,Border Janitorial Supplies Limited,24/03/2023,196.67
"Communities, Customer & Commercial Services",Sport & Leisure,Premises-Related Expenditure,Electricity,EON next,09/03/2023,148.56
"Communities, Customer & Commercial Services",Sport & Leisure,Supplies & Services,Protective Clothing,IMAGE@WORK LTD,28/03/2023,635.40
"Communities, Customer & Commercial Services",Sport & Leisure,Supplies & Services,Crockery/Hardware/Light Equip,E NCATERING EQUIPMENT AND SERVICES  LTD,24/03/2023,386.85
"Communities, Customer & Commercial Services",Sport & Leisure,Supplies & Services,Crockery/Hardware/Light Equip,E NCATERING EQUIPMENT AND SERVICES  LTD,24/03/2023,"1,592.00"
"Communities, Customer & Commercial Services",Sport & Leisure,Supplies & Services,Crockery/Hardware/Light Equip,PLANGLOW LTD,17/03/2023,228.60
"Communities, Customer & Commercial Services",Sport & Leisure,Supplies & Services,Crockery/Hardware/Light Equip,PLANGLOW LTD,17/03/2023,-612.10
"Communities, Customer & Commercial Services",Sport & Leisure,Supplies & Services,Crockery/Hardware/Light Equip,E N CATERING EQUIPMENT AND SERVICES  LTD,22/03/2023,389.60
"Communities, Customer & Commercial Services",Sport & Leisure,Premises-Related Expenditure,Clean Mats & Toilet Requisites,FCC Recycling Ltd ,09/03/2023,288.73
"Communities, Customer & Commercial Services",Sport & Leisure,Supplies & Services,Provisions,J DAIRIES,13/03/2023,798.33
"Communities, Customer & Commercial Services",Sport & Leisure,Supplies & Services,Provisions,J DAIRIES,13/03/2023,"1,823.60"
"Communities, Customer & Commercial Services",Sport & Leisure,Supplies & Services,EEC Whole Milk,J DAIRIES,17/03/2023,798.33
"Communities, Customer & Commercial Services",Sport & Leisure,Supplies & Services,Provisions,J DAIRIES,17/03/2023,"1,835.95"
"Communities, Customer & Commercial Services",Sport & Leisure,Supplies & Services,EEC Whole Milk,J DAIRIES,24/03/2023,798.33
"Communities, Customer & Commercial Services",Sport & Leisure,Supplies & Services,EEC Whole Milk,J DAIRIES,24/03/2023,"1,703.04"
"Communities, Customer & Commercial Services",Sport & Leisure,Supplies & Services,EEC Whole Milk,J DAIRIES,28/03/2023,783.77
"Communities, Customer & Commercial Services",Sport & Leisure,Supplies & Services,EEC Whole Milk,J DAIRIES,28/03/2023,"1,823.60"
"Communities, Customer & Commercial Services",Sport & Leisure,Supplies & Services,Provisions,BIKOLD,02/03/2023,121.67
"Communities, Customer & Commercial Services",Sport & Leisure,Supplies & Services,Provisions,BIKOLD,23/03/2023,116.39
"Communities, Customer & Commercial Services",Sport & Leisure,Supplies & Services,Provisions,BIKOLD,16/03/2023,145.35
"Communities, Customer & Commercial Services",Sport & Leisure,Employees,Agency Supply Costs,TOTAL CATERING SOLUTONS RECRUITMENT LTD,09/03/2023,320.00
"Communities, Customer & Commercial Services",Sport & Leisure,Employees,Agency Supply Costs,TOTAL CATERING SOLUTONS RECRUITMENT LTD,09/03/2023,320.00
"Communities, Customer & Commercial Services",Sport & Leisure,Employees,Agency Supply Costs,TOTAL CATERING SOLUTONS RECRUITMENT LTD,22/03/2023,320.00
"Communities, Customer & Commercial Services",Sport & Leisure,Employees,Agency Supply Costs,TOTAL CATERING SOLUTONS RECRUITMENT LTD,22/03/2023,320.00
"Communities, Customer & Commercial Services",Sport & Leisure,Employees,Agency Supply Costs,TOTAL CATERING SOLUTONS RECRUITMENT LTD,22/03/2023,256.00
"Communities, Customer & Commercial Services",Sport & Leisure,Employees,Agency Supply Costs,TOTAL CATERING SOLUTONS RECRUITMENT LTD,28/03/2023,256.00
"Communities, Customer & Commercial Services",Sport & Leisure,Employees,Agency Supply Costs,TOTAL CATERING SOLUTONS RECRUITMENT LTD,28/03/2023,320.00
"Communities, Customer & Commercial Services",Sport & Leisure,Employees,Agency Supply Costs,TOTAL CATERING SOLUTONS RECRUITMENT LTD,29/03/2023,320.00
"Communities, Customer & Commercial Services",Sport & Leisure,Employees,Agency Supply Costs,TOTAL CATERING SOLUTONS RECRUITMENT LTD,29/03/2023,192.00
"Communities, Customer & Commercial Services",Sport & Leisure,Employees,Agency Supply Costs,TOTAL CATERING SOLUTONS RECRUITMENT LTD,29/03/2023,256.00
"Communities, Customer & Commercial Services",Sport & Leisure,Employees,Agency Supply Costs,TOTAL CATERING SOLUTONS RECRUITMENT LTD,28/03/2023,344.00
"Communities, Customer & Commercial Services",Sport & Leisure,Employees,Agency Supply Costs,TOTAL CATERING SOLUTONS RECRUITMENT LTD,28/03/2023,320.00
"Communities, Customer & Commercial Services",Sport & Leisure,Employees,Agency Supply Costs,TOTAL CATERING SOLUTONS RECRUITMENT LTD,28/03/2023,320.00
"Communities, Customer & Commercial Services",Sport & Leisure,Employees,Agency Supply Costs,TOTAL CATERING SOLUTONS RECRUITMENT LTD,09/03/2023,320.00
"Communities, Customer & Commercial Services",Sport & Leisure,Employees,Agency Supply Costs,TOTAL CATERING SOLUTONS RECRUITMENT LTD,09/03/2023,256.00
"Communities, Customer & Commercial Services",Sport & Leisure,Employees,Agency Supply Costs,TOTAL CATERING SOLUTONS RECRUITMENT LTD,09/03/2023,256.00
"Communities, Customer & Commercial Services",Sport & Leisure,Employees,Agency Supply Costs,TOTAL CATERING SOLUTONS RECRUITMENT LTD,09/03/2023,320.00
"Communities, Customer & Commercial Services",Sport & Leisure,Premises-Related Expenditure,Clean Mats & Toilet Requisites,Border Janitorial Supplies Limited,09/03/2023,113.74
"Communities, Customer & Commercial Services",Sport & Leisure,Premises-Related Expenditure,Clean Mats & Toilet Requisites,Border Janitorial Supplies Limited,09/03/2023,148.00
"Communities, Customer & Commercial Services",Sport & Leisure,Premises-Related Expenditure,Clean Mats & Toilet Requisites,Border Janitorial Supplies Limited,09/03/2023,277.40
"Communities, Customer & Commercial Services",Sport & Leisure,Premises-Related Expenditure,Clean Mats & Toilet Requisites,Border Janitorial Supplies Limited,09/03/2023,153.91
"Communities, Customer & Commercial Services",Sport & Leisure,Premises-Related Expenditure,Clean Mats & Toilet Requisites,Border Janitorial Supplies Limited,06/03/2023,271.55
"Communities, Customer & Commercial Services",Sport & Leisure,Premises-Related Expenditure,Clean Mats & Toilet Requisites,Border Janitorial Supplies Limited,22/03/2023,116.22
"Communities, Customer & Commercial Services",Sport & Leisure,Premises-Related Expenditure,Clean Mats & Toilet Requisites,Border Janitorial Supplies Limited,22/03/2023,106.16
"Communities, Customer & Commercial Services",Sport & Leisure,Premises-Related Expenditure,Clean Mats & Toilet Requisites,Border Janitorial Supplies Limited,21/03/2023,248.34
"Communities, Customer & Commercial Services",Sport & Leisure,Premises-Related Expenditure,Clean Mats & Toilet Requisites,Border Janitorial Supplies Limited,21/03/2023,149.24
"Communities, Customer & Commercial Services",Sport & Leisure,Premises-Related Expenditure,Clean Mats & Toilet Requisites,Border Janitorial Supplies Limited,21/03/2023,314.01
"Communities, Customer & Commercial Services",Sport & Leisure,Premises-Related Expenditure,Clean Mats & Toilet Requisites,Border Janitorial Supplies Limited,24/03/2023,132.12
"Communities, Customer & Commercial Services",Sport & Leisure,Premises-Related Expenditure,Clean Mats & Toilet Requisites,Border Janitorial Supplies Limited,24/03/2023,125.87
"Communities, Customer & Commercial Services",Sport & Leisure,Premises-Related Expenditure,Clean Mats & Toilet Requisites,Border Janitorial Supplies Limited,24/03/2023,161.56
"Communities, Customer & Commercial Services",Sport & Leisure,Premises-Related Expenditure,Clean Mats & Toilet Requisites,Border Janitorial Supplies Limited,28/03/2023,260.59
"Communities, Customer & Commercial Services",Sport & Leisure,Premises-Related Expenditure,Clean Mats & Toilet Requisites,Border Janitorial Supplies Limited,28/03/2023,232.03
"Communities, Customer & Commercial Services",Sport & Leisure,Premises-Related Expenditure,Clean Mats & Toilet Requisites,Border Janitorial Supplies Limited,28/03/2023,105.56
"Communities, Customer & Commercial Services",Sport & Leisure,Supplies & Services,Crockery/Hardware/Light Equip,E N CATERING EQUIPMENT AND SERVICES  LTD,29/03/2023,109.50
"Communities, Customer & Commercial Services",Sport & Leisure,Supplies & Services,Provisions,On A Roll,13/03/2023,185.60
"Communities, Customer & Commercial Services",Sport & Leisure,Supplies & Services,Provisions,R & COMPANY,07/03/2023,134.12
"Communities, Customer & Commercial Services",Sport & Leisure,Supplies & Services,Provisions,R & COMPANY,07/03/2023,114.73
"Communities, Customer & Commercial Services",Sport & Leisure,Supplies & Services,Provisions,R & COMPANY,07/03/2023,354.35
"Communities, Customer & Commercial Services",Sport & Leisure,Supplies & Services,Provisions,R & COMPANY,07/03/2023,153.39
"Communities, Customer & Commercial Services",Sport & Leisure,Supplies & Services,Provisions,R & COMPANY,07/03/2023,102.04
"Communities, Customer & Commercial Services",Sport & Leisure,Supplies & Services,Provisions,R & COMPANY,07/03/2023,142.65
"Communities, Customer & Commercial Services",Sport & Leisure,Supplies & Services,Provisions,R & COMPANY,07/03/2023,144.66
"Communities, Customer & Commercial Services",Sport & Leisure,Supplies & Services,Provisions,R & COMPANY,07/03/2023,182.80
"Communities, Customer & Commercial Services",Sport & Leisure,Supplies & Services,Provisions,R & COMPANY,07/03/2023,131.11
"Communities, Customer & Commercial Services",Sport & Leisure,Supplies & Services,Provisions,R & COMPANY,07/03/2023,228.04
"Communities, Customer & Commercial Services",Sport & Leisure,Supplies & Services,Provisions,R & COMPANY,07/03/2023,121.50
"Communities, Customer & Commercial Services",Sport & Leisure,Supplies & Services,Provisions,R & COMPANY,07/03/2023,170.17
"Communities, Customer & Commercial Services",Sport & Leisure,Supplies & Services,Provisions,R & COMPANY,07/03/2023,157.59
"Communities, Customer & Commercial Services",Sport & Leisure,Supplies & Services,Provisions,R & COMPANY,07/03/2023,110.84
"Communities, Customer & Commercial Services",Sport & Leisure,Supplies & Services,Provisions,R & COMPANY,07/03/2023,122.18
"Communities, Customer & Commercial Services",Sport & Leisure,Supplies & Services,Provisions,R & COMPANY,07/03/2023,142.77
"Communities, Customer & Commercial Services",Sport & Leisure,Supplies & Services,Provisions,R & COMPANY,07/03/2023,104.79
"Communities, Customer & Commercial Services",Sport & Leisure,Supplies & Services,Provisions,R & COMPANY,07/03/2023,136.65
"Communities, Customer & Commercial Services",Sport & Leisure,Supplies & Services,Provisions,R & COMPANY,07/03/2023,105.50
"Communities, Customer & Commercial Services",Sport & Leisure,Supplies & Services,Provisions,R & COMPANY,07/03/2023,124.28
"Communities, Customer & Commercial Services",Sport & Leisure,Supplies & Services,Provisions,R & COMPANY,07/03/2023,148.37
"Communities, Customer & Commercial Services",Sport & Leisure,Supplies & Services,Provisions,R & COMPANY,07/03/2023,347.19
"Communities, Customer & Commercial Services",Sport & Leisure,Supplies & Services,Provisions,R & COMPANY,07/03/2023,-347.19
"Communities, Customer & Commercial Services",Sport & Leisure,Supplies & Services,Provisions,R & COMPANY,07/03/2023,121.89
"Communities, Customer & Commercial Services",Sport & Leisure,Supplies & Services,Provisions,R & COMPANY,07/03/2023,105.34
"Communities, Customer & Commercial Services",Sport & Leisure,Supplies & Services,Provisions,R & COMPANY,07/03/2023,157.94
"Communities, Customer & Commercial Services",Sport & Leisure,Supplies & Services,Provisions,R & COMPANY,07/03/2023,101.44
"Communities, Customer & Commercial Services",Sport & Leisure,Supplies & Services,Provisions,R & COMPANY,07/03/2023,110.64
"Communities, Customer & Commercial Services",Sport & Leisure,Supplies & Services,Provisions,R & COMPANY,07/03/2023,163.37
"Communities, Customer & Commercial Services",Sport & Leisure,Supplies & Services,Provisions,R & COMPANY,07/03/2023,126.52
"Communities, Customer & Commercial Services",Sport & Leisure,Supplies & Services,Provisions,R & COMPANY,07/03/2023,114.77
"Communities, Customer & Commercial Services",Sport & Leisure,Supplies & Services,Provisions,R & COMPANY,07/03/2023,178.92
"Communities, Customer & Commercial Services",Sport & Leisure,Supplies & Services,Provisions,R & COMPANY,07/03/2023,104.00
"Communities, Customer & Commercial Services",Sport & Leisure,Supplies & Services,Provisions,R & COMPANY,07/03/2023,101.21
"Communities, Customer & Commercial Services",Sport & Leisure,Supplies & Services,Provisions,R & COMPANY,07/03/2023,216.12
"Communities, Customer & Commercial Services",Sport & Leisure,Supplies & Services,Provisions,R & COMPANY,07/03/2023,104.89
"Communities, Customer & Commercial Services",Sport & Leisure,Supplies & Services,Provisions,R & COMPANY,07/03/2023,104.48
"Communities, Customer & Commercial Services",Sport & Leisure,Supplies & Services,Provisions,J S Catering Butchers,08/03/2023,139.75
"Communities, Customer & Commercial Services",Sport & Leisure,Supplies & Services,Provisions,J S Catering Butchers,08/03/2023,101.18
"Communities, Customer & Commercial Services",Sport & Leisure,Supplies & Services,Provisions,J S Catering Butchers,08/03/2023,182.32
"Communities, Customer & Commercial Services",Sport & Leisure,Supplies & Services,Provisions,BIKOLD,02/03/2023,141.45
"Communities, Customer & Commercial Services",Sport & Leisure,Supplies & Services,Provisions,BIKOLD,02/03/2023,349.42
"Communities, Customer & Commercial Services",Sport & Leisure,Supplies & Services,Provisions,BIKOLD,02/03/2023,140.58
"Communities, Customer & Commercial Services",Sport & Leisure,Supplies & Services,Provisions,BIKOLD,02/03/2023,126.43
"Communities, Customer & Commercial Services",Sport & Leisure,Supplies & Services,Provisions,BIKOLD,02/03/2023,224.06
"Communities, Customer & Commercial Services",Sport & Leisure,Supplies & Services,Provisions,BIKOLD,02/03/2023,213.93
"Communities, Customer & Commercial Services",Sport & Leisure,Supplies & Services,Provisions,J S Catering Butchers,08/03/2023,140.60
"Communities, Customer & Commercial Services",Sport & Leisure,Supplies & Services,Provisions,J S Catering Butchers,08/03/2023,110.40
"Communities, Customer & Commercial Services",Sport & Leisure,Supplies & Services,Provisions,J S Catering Butchers,08/03/2023,147.20
"Communities, Customer & Commercial Services",Sport & Leisure,Supplies & Services,Provisions,J S Catering Butchers,08/03/2023,199.85
"Communities, Customer & Commercial Services",Sport & Leisure,Supplies & Services,Provisions,J S Catering Butchers,08/03/2023,133.90
"Communities, Customer & Commercial Services",Sport & Leisure,Supplies & Services,Provisions,BIKOLD,02/03/2023,648.90
"Communities, Customer & Commercial Services",Sport & Leisure,Supplies & Services,Provisions,BIKOLD,02/03/2023,185.61
"Communities, Customer & Commercial Services",Sport & Leisure,Supplies & Services,Provisions,BIKOLD,02/03/2023,124.01
"Communities, Customer & Commercial Services",Sport & Leisure,Supplies & Services,Provisions,BIKOLD,02/03/2023,133.62
"Communities, Customer & Commercial Services",Sport & Leisure,Supplies & Services,Provisions,BIKOLD,02/03/2023,232.08
"Communities, Customer & Commercial Services",Sport & Leisure,Supplies & Services,Provisions,BIKOLD,02/03/2023,146.98
"Communities, Customer & Commercial Services",Sport & Leisure,Supplies & Services,Provisions,BIKOLD,02/03/2023,487.69
"Communities, Customer & Commercial Services",Sport & Leisure,Supplies & Services,Provisions,BIKOLD,02/03/2023,138.18
"Communities, Customer & Commercial Services",Sport & Leisure,Supplies & Services,Provisions,BIKOLD,02/03/2023,134.52
"Communities, Customer & Commercial Services",Sport & Leisure,Supplies & Services,Provisions,BIKOLD,02/03/2023,405.85
"Communities, Customer & Commercial Services",Sport & Leisure,Supplies & Services,Provisions,J S Catering Butchers,08/03/2023,134.30
"Communities, Customer & Commercial Services",Sport & Leisure,Supplies & Services,Provisions,J S Catering Butchers,08/03/2023,101.17
"Communities, Customer & Commercial Services",Sport & Leisure,Supplies & Services,Provisions,BIKOLD,02/03/2023,217.07
"Communities, Customer & Commercial Services",Sport & Leisure,Supplies & Services,Provisions,BIKOLD,02/03/2023,245.06
"Communities, Customer & Commercial Services",Sport & Leisure,Supplies & Services,Provisions,BIKOLD,02/03/2023,416.84
"Communities, Customer & Commercial Services",Sport & Leisure,Supplies & Services,Provisions,BIKOLD,02/03/2023,160.22
"Communities, Customer & Commercial Services",Sport & Leisure,Supplies & Services,Provisions,BIKOLD,02/03/2023,164.99
"Communities, Customer & Commercial Services",Sport & Leisure,Supplies & Services,Provisions,BIKOLD,02/03/2023,163.76
"Communities, Customer & Commercial Services",Sport & Leisure,Supplies & Services,Provisions,BIKOLD,02/03/2023,118.15
"Communities, Customer & Commercial Services",Sport & Leisure,Supplies & Services,Provisions,BIKOLD,02/03/2023,198.51
"Communities, Customer & Commercial Services",Sport & Leisure,Supplies & Services,Provisions,BIKOLD,02/03/2023,199.94
"Communities, Customer & Commercial Services",Sport & Leisure,Supplies & Services,Provisions,BIKOLD,02/03/2023,289.75
"Communities, Customer & Commercial Services",Sport & Leisure,Supplies & Services,Provisions,BIKOLD,02/03/2023,270.51
"Communities, Customer & Commercial Services",Sport & Leisure,Supplies & Services,Provisions,BIKOLD,02/03/2023,378.24
"Communities, Customer & Commercial Services",Sport & Leisure,Supplies & Services,Provisions,BIKOLD,02/03/2023,110.59
"Communities, Customer & Commercial Services",Sport & Leisure,Supplies & Services,Provisions,BIKOLD,02/03/2023,205.80
"Communities, Customer & Commercial Services",Sport & Leisure,Supplies & Services,Provisions,BIKOLD,02/03/2023,211.54
"Communities, Customer & Commercial Services",Sport & Leisure,Supplies & Services,Provisions,BIKOLD,02/03/2023,153.50
"Communities, Customer & Commercial Services",Sport & Leisure,Supplies & Services,Provisions,BIKOLD,02/03/2023,164.84
"Communities, Customer & Commercial Services",Sport & Leisure,Supplies & Services,Provisions,BIKOLD,02/03/2023,183.26
"Communities, Customer & Commercial Services",Sport & Leisure,Supplies & Services,Provisions,BIKOLD,02/03/2023,149.00
"Communities, Customer & Commercial Services",Sport & Leisure,Supplies & Services,Provisions,J S Catering Butchers,09/03/2023,135.10
"Communities, Customer & Commercial Services",Sport & Leisure,Supplies & Services,Provisions,ROWLANDS & COMPANY,14/03/2023,116.89
"Communities, Customer & Commercial Services",Sport & Leisure,Supplies & Services,Provisions,ROWLANDS & COMPANY,14/03/2023,126.06
"Communities, Customer & Commercial Services",Sport & Leisure,Supplies & Services,Provisions,ROWLANDS & COMPANY,14/03/2023,365.38
"Communities, Customer & Commercial Services",Sport & Leisure,Supplies & Services,Provisions,ROWLANDS & COMPANY,14/03/2023,100.91
"Communities, Customer & Commercial Services",Sport & Leisure,Supplies & Services,Provisions,BIKOLD,02/03/2023,102.95
"Communities, Customer & Commercial Services",Sport & Leisure,Supplies & Services,Provisions,BIKOLD,02/03/2023,230.08
"Communities, Customer & Commercial Services",Sport & Leisure,Supplies & Services,Provisions,BIKOLD,02/03/2023,243.56
"Communities, Customer & Commercial Services",Sport & Leisure,Supplies & Services,Provisions,BIKOLD,02/03/2023,138.79
"Communities, Customer & Commercial Services",Sport & Leisure,Supplies & Services,Provisions,BIKOLD,02/03/2023,138.92
"Communities, Customer & Commercial Services",Sport & Leisure,Supplies & Services,Provisions,BIKOLD,02/03/2023,143.34
"Communities, Customer & Commercial Services",Sport & Leisure,Supplies & Services,Provisions,BIKOLD,02/03/2023,355.02
"Communities, Customer & Commercial Services",Sport & Leisure,Supplies & Services,Provisions,BIKOLD,02/03/2023,439.09
"Communities, Customer & Commercial Services",Sport & Leisure,Supplies & Services,Provisions,BIKOLD,02/03/2023,330.77
"Communities, Customer & Commercial Services",Sport & Leisure,Supplies & Services,Provisions,BIKOLD,02/03/2023,362.36
"Communities, Customer & Commercial Services",Sport & Leisure,Supplies & Services,Provisions,BIKOLD,02/03/2023,134.60
"Communities, Customer & Commercial Services",Sport & Leisure,Supplies & Services,Provisions,BIKOLD,02/03/2023,105.06
"Communities, Customer & Commercial Services",Sport & Leisure,Supplies & Services,Provisions,ROWLANDS & COMPANY,14/03/2023,134.67
"Communities, Customer & Commercial Services",Sport & Leisure,Supplies & Services,Provisions,BIKOLD,09/03/2023,197.95
"Communities, Customer & Commercial Services",Sport & Leisure,Supplies & Services,Provisions,BIKOLD,02/03/2023,248.79
"Communities, Customer & Commercial Services",Sport & Leisure,Supplies & Services,Provisions,BIKOLD,02/03/2023,128.54
"Communities, Customer & Commercial Services",Sport & Leisure,Supplies & Services,Provisions,BIKOLD,02/03/2023,183.49
"Communities, Customer & Commercial Services",Sport & Leisure,Supplies & Services,Provisions,BIKOLD,02/03/2023,369.54
"Communities, Customer & Commercial Services",Sport & Leisure,Supplies & Services,Provisions,BIKOLD,02/03/2023,141.95
"Communities, Customer & Commercial Services",Sport & Leisure,Supplies & Services,Provisions,BIKOLD,02/03/2023,220.04
"Communities, Customer & Commercial Services",Sport & Leisure,Supplies & Services,Provisions,BIKOLD,02/03/2023,157.50
"Communities, Customer & Commercial Services",Sport & Leisure,Supplies & Services,Provisions,BIKOLD,02/03/2023,123.48
"Communities, Customer & Commercial Services",Sport & Leisure,Supplies & Services,Provisions,BIKOLD,02/03/2023,151.19
"Communities, Customer & Commercial Services",Sport & Leisure,Supplies & Services,Provisions,BIKOLD,02/03/2023,736.25
"Communities, Customer & Commercial Services",Sport & Leisure,Supplies & Services,Provisions,BIKOLD,02/03/2023,156.42
"Communities, Customer & Commercial Services",Sport & Leisure,Supplies & Services,Provisions,BIKOLD,02/03/2023,143.23
"Communities, Customer & Commercial Services",Sport & Leisure,Supplies & Services,Provisions,BIKOLD,02/03/2023,102.17
"Communities, Customer & Commercial Services",Sport & Leisure,Supplies & Services,Provisions,BIKOLD,02/03/2023,122.86
"Communities, Customer & Commercial Services",Sport & Leisure,Supplies & Services,Provisions,BIKOLD,02/03/2023,190.61
"Communities, Customer & Commercial Services",Sport & Leisure,Supplies & Services,Provisions,BIKOLD,02/03/2023,137.90
"Communities, Customer & Commercial Services",Sport & Leisure,Supplies & Services,Provisions,BIKOLD,02/03/2023,231.56
"Communities, Customer & Commercial Services",Sport & Leisure,Supplies & Services,Provisions,BIKOLD,02/03/2023,170.76
"Communities, Customer & Commercial Services",Sport & Leisure,Supplies & Services,Provisions,BIKOLD,02/03/2023,273.51
"Communities, Customer & Commercial Services",Sport & Leisure,Supplies & Services,Provisions,BIKOLD,09/03/2023,118.64
"Communities, Customer & Commercial Services",Sport & Leisure,Supplies & Services,Provisions,BIKOLD,09/03/2023,108.94
"Communities, Customer & Commercial Services",Sport & Leisure,Supplies & Services,Provisions,BIKOLD,09/03/2023,142.15
"Communities, Customer & Commercial Services",Sport & Leisure,Supplies & Services,Provisions,BIKOLD,09/03/2023,122.48
"Communities, Customer & Commercial Services",Sport & Leisure,Supplies & Services,Provisions,BIKOLD,02/03/2023,121.83
"Communities, Customer & Commercial Services",Sport & Leisure,Supplies & Services,Provisions,BIKOLD,02/03/2023,224.38
"Communities, Customer & Commercial Services",Sport & Leisure,Supplies & Services,Provisions,BIKOLD,02/03/2023,242.34
"Communities, Customer & Commercial Services",Sport & Leisure,Supplies & Services,Provisions,BIKOLD,02/03/2023,274.62
"Communities, Customer & Commercial Services",Sport & Leisure,Supplies & Services,Provisions,BIKOLD,02/03/2023,252.82
"Communities, Customer & Commercial Services",Sport & Leisure,Supplies & Services,Provisions,BIKOLD,02/03/2023,167.20
"Communities, Customer & Commercial Services",Sport & Leisure,Supplies & Services,Provisions,BIKOLD,02/03/2023,344.52
"Communities, Customer & Commercial Services",Sport & Leisure,Supplies & Services,Provisions,BIKOLD,02/03/2023,168.25
"Communities, Customer & Commercial Services",Sport & Leisure,Supplies & Services,Provisions,BIKOLD,02/03/2023,494.19
"Communities, Customer & Commercial Services",Sport & Leisure,Supplies & Services,Provisions,BIKOLD,02/03/2023,139.11
"Communities, Customer & Commercial Services",Sport & Leisure,Supplies & Services,Provisions,BIKOLD,02/03/2023,173.49
"Communities, Customer & Commercial Services",Sport & Leisure,Supplies & Services,Provisions,BIKOLD,02/03/2023,407.39
"Communities, Customer & Commercial Services",Sport & Leisure,Supplies & Services,Provisions,BIKOLD,02/03/2023,105.09
"Communities, Customer & Commercial Services",Sport & Leisure,Supplies & Services,Provisions,BIKOLD,02/03/2023,134.13
"Communities, Customer & Commercial Services",Sport & Leisure,Supplies & Services,Provisions,BIKOLD,02/03/2023,320.37
"Communities, Customer & Commercial Services",Sport & Leisure,Supplies & Services,Provisions,BIKOLD,09/03/2023,294.49
"Communities, Customer & Commercial Services",Sport & Leisure,Supplies & Services,Provisions,BIKOLD,09/03/2023,104.38
"Communities, Customer & Commercial Services",Sport & Leisure,Supplies & Services,Provisions,BIKOLD,09/03/2023,180.13
"Communities, Customer & Commercial Services",Sport & Leisure,Supplies & Services,Provisions,BIKOLD,09/03/2023,114.69
"Communities, Customer & Commercial Services",Sport & Leisure,Supplies & Services,Provisions,BIKOLD,09/03/2023,188.62
"Communities, Customer & Commercial Services",Sport & Leisure,Supplies & Services,Provisions,BIKOLD,09/03/2023,247.91
"Communities, Customer & Commercial Services",Sport & Leisure,Supplies & Services,Provisions,BIKOLD,09/03/2023,672.82
"Communities, Customer & Commercial Services",Sport & Leisure,Supplies & Services,Provisions,BIKOLD,09/03/2023,139.61
"Communities, Customer & Commercial Services",Sport & Leisure,Supplies & Services,Provisions,BIKOLD,09/03/2023,168.94
"Communities, Customer & Commercial Services",Sport & Leisure,Supplies & Services,Provisions,BIKOLD,02/03/2023,144.04
"Communities, Customer & Commercial Services",Sport & Leisure,Supplies & Services,Provisions,BIKOLD,02/03/2023,305.90
"Communities, Customer & Commercial Services",Sport & Leisure,Supplies & Services,Provisions,BIKOLD,02/03/2023,522.19
"Communities, Customer & Commercial Services",Sport & Leisure,Supplies & Services,Provisions,BIKOLD,02/03/2023,495.93
"Communities, Customer & Commercial Services",Sport & Leisure,Supplies & Services,Provisions,BIKOLD,02/03/2023,370.80
"Communities, Customer & Commercial Services",Sport & Leisure,Supplies & Services,Provisions,BIKOLD,02/03/2023,130.01
"Communities, Customer & Commercial Services",Sport & Leisure,Supplies & Services,Provisions,BIKOLD,02/03/2023,388.93
"Communities, Customer & Commercial Services",Sport & Leisure,Supplies & Services,Provisions,BIKOLD,02/03/2023,647.43
"Communities, Customer & Commercial Services",Sport & Leisure,Supplies & Services,Provisions,BIKOLD,02/03/2023,164.74
"Communities, Customer & Commercial Services",Sport & Leisure,Supplies & Services,Provisions,BIKOLD,02/03/2023,263.88
"Communities, Customer & Commercial Services",Sport & Leisure,Supplies & Services,Provisions,BIKOLD,02/03/2023,186.45
"Communities, Customer & Commercial Services",Sport & Leisure,Supplies & Services,Provisions,BIKOLD,02/03/2023,274.77
"Communities, Customer & Commercial Services",Sport & Leisure,Supplies & Services,Provisions,BIKOLD,02/03/2023,190.29
"Communities, Customer & Commercial Services",Sport & Leisure,Supplies & Services,Provisions,BIKOLD,02/03/2023,613.68
"Communities, Customer & Commercial Services",Sport & Leisure,Supplies & Services,Provisions,BIKOLD,02/03/2023,291.74
"Communities, Customer & Commercial Services",Sport & Leisure,Supplies & Services,Provisions,BIKOLD,02/03/2023,437.44
"Communities, Customer & Commercial Services",Sport & Leisure,Supplies & Services,Provisions,BIKOLD,02/03/2023,139.44
"Communities, Customer & Commercial Services",Sport & Leisure,Supplies & Services,Provisions,BIKOLD,02/03/2023,173.73
"Communities, Customer & Commercial Services",Sport & Leisure,Supplies & Services,Provisions,BIKOLD,02/03/2023,330.47
"Communities, Customer & Commercial Services",Sport & Leisure,Supplies & Services,Provisions,BIKOLD,02/03/2023,106.93
"Communities, Customer & Commercial Services",Sport & Leisure,Supplies & Services,Provisions,BIKOLD,02/03/2023,512.29
"Communities, Customer & Commercial Services",Sport & Leisure,Supplies & Services,Provisions,BIKOLD,02/03/2023,162.54
"Communities, Customer & Commercial Services",Sport & Leisure,Supplies & Services,Provisions,BIKOLD,02/03/2023,114.81
"Communities, Customer & Commercial Services",Sport & Leisure,Supplies & Services,Provisions,BIKOLD,02/03/2023,330.75
"Communities, Customer & Commercial Services",Sport & Leisure,Supplies & Services,Provisions,BIKOLD,02/03/2023,387.85
"Communities, Customer & Commercial Services",Sport & Leisure,Supplies & Services,Provisions,BIKOLD,02/03/2023,271.39
"Communities, Customer & Commercial Services",Sport & Leisure,Supplies & Services,Provisions,BIKOLD,02/03/2023,369.98
"Communities, Customer & Commercial Services",Sport & Leisure,Supplies & Services,Provisions,BIKOLD,02/03/2023,206.92
"Communities, Customer & Commercial Services",Sport & Leisure,Supplies & Services,Provisions,BIKOLD,02/03/2023,208.87
"Communities, Customer & Commercial Services",Sport & Leisure,Supplies & Services,Provisions,BIKOLD,02/03/2023,136.73
"Communities, Customer & Commercial Services",Sport & Leisure,Supplies & Services,Provisions,BIKOLD,02/03/2023,502.20
"Communities, Customer & Commercial Services",Sport & Leisure,Supplies & Services,Provisions,BIKOLD,02/03/2023,213.77
"Communities, Customer & Commercial Services",Sport & Leisure,Supplies & Services,Provisions,BIKOLD,02/03/2023,181.79
"Communities, Customer & Commercial Services",Sport & Leisure,Supplies & Services,Provisions,BIKOLD,02/03/2023,220.91
"Communities, Customer & Commercial Services",Sport & Leisure,Supplies & Services,Provisions,J S Catering Butchers,09/03/2023,101.60
"Communities, Customer & Commercial Services",Sport & Leisure,Supplies & Services,Provisions,J S Catering Butchers,09/03/2023,112.00
"Communities, Customer & Commercial Services",Sport & Leisure,Supplies & Services,Provisions,J S Catering Butchers,09/03/2023,238.10
"Communities, Customer & Commercial Services",Sport & Leisure,Supplies & Services,Provisions,J S Catering Butchers,09/03/2023,133.47
"Communities, Customer & Commercial Services",Sport & Leisure,Supplies & Services,Provisions,BIKOLD,09/03/2023,257.58
"Communities, Customer & Commercial Services",Sport & Leisure,Supplies & Services,Provisions,BIKOLD,09/03/2023,159.26
"Communities, Customer & Commercial Services",Sport & Leisure,Supplies & Services,Provisions,BIKOLD,09/03/2023,244.25
"Communities, Customer & Commercial Services",Sport & Leisure,Supplies & Services,Provisions,BIKOLD,09/03/2023,169.74
"Communities, Customer & Commercial Services",Sport & Leisure,Supplies & Services,Provisions,BIKOLD,09/03/2023,103.73
"Communities, Customer & Commercial Services",Sport & Leisure,Supplies & Services,Provisions,BIKOLD,09/03/2023,388.82
"Communities, Customer & Commercial Services",Sport & Leisure,Supplies & Services,Provisions,BIKOLD,09/03/2023,279.30
"Communities, Customer & Commercial Services",Sport & Leisure,Supplies & Services,Provisions,BIKOLD,09/03/2023,187.65
"Communities, Customer & Commercial Services",Sport & Leisure,Supplies & Services,Provisions,BIKOLD,09/03/2023,154.39
"Communities, Customer & Commercial Services",Sport & Leisure,Supplies & Services,Provisions,BIKOLD,09/03/2023,380.12
"Communities, Customer & Commercial Services",Sport & Leisure,Supplies & Services,Provisions,BIKOLD,09/03/2023,184.60
"Communities, Customer & Commercial Services",Sport & Leisure,Supplies & Services,Provisions,BIKOLD,09/03/2023,-100.93
"Communities, Customer & Commercial Services",Sport & Leisure,Supplies & Services,Provisions,BIKOLD,09/03/2023,249.16
"Communities, Customer & Commercial Services",Sport & Leisure,Supplies & Services,Provisions,BIKOLD,09/03/2023,184.67
"Communities, Customer & Commercial Services",Sport & Leisure,Supplies & Services,Provisions,BIKOLD,09/03/2023,153.29
"Communities, Customer & Commercial Services",Sport & Leisure,Supplies & Services,Provisions,BIKOLD,09/03/2023,130.92
"Communities, Customer & Commercial Services",Sport & Leisure,Supplies & Services,Provisions,BIKOLD,09/03/2023,190.28
"Communities, Customer & Commercial Services",Sport & Leisure,Supplies & Services,Provisions,BIKOLD,09/03/2023,176.81
"Communities, Customer & Commercial Services",Sport & Leisure,Supplies & Services,Provisions,BIKOLD,09/03/2023,154.16
"Communities, Customer & Commercial Services",Sport & Leisure,Supplies & Services,Provisions,BIKOLD,09/03/2023,153.03
"Communities, Customer & Commercial Services",Sport & Leisure,Supplies & Services,Provisions,BIKOLD,09/03/2023,183.56
"Communities, Customer & Commercial Services",Sport & Leisure,Supplies & Services,Provisions,ROWLANDS & COMPANY,14/03/2023,224.63
"Communities, Customer & Commercial Services",Sport & Leisure,Supplies & Services,Provisions,ROWLANDS & COMPANY,14/03/2023,111.73
"Communities, Customer & Commercial Services",Sport & Leisure,Supplies & Services,Provisions,BIKOLD,09/03/2023,144.12
"Communities, Customer & Commercial Services",Sport & Leisure,Supplies & Services,Provisions,BIKOLD,09/03/2023,352.30
"Communities, Customer & Commercial Services",Sport & Leisure,Supplies & Services,Provisions,ROWLANDS & COMPANY,14/03/2023,147.17
"Communities, Customer & Commercial Services",Sport & Leisure,Supplies & Services,Provisions,ROWLANDS & COMPANY,14/03/2023,101.70
"Communities, Customer & Commercial Services",Sport & Leisure,Supplies & Services,Provisions,ROWLANDS & COMPANY,14/03/2023,147.93
"Communities, Customer & Commercial Services",Sport & Leisure,Supplies & Services,Provisions,ROWLANDS & COMPANY,14/03/2023,158.48
"Communities, Customer & Commercial Services",Sport & Leisure,Supplies & Services,Provisions,ROWLANDS & COMPANY,14/03/2023,108.00
"Communities, Customer & Commercial Services",Sport & Leisure,Supplies & Services,Provisions,ROWLANDS & COMPANY,14/03/2023,167.56
"Communities, Customer & Commercial Services",Sport & Leisure,Supplies & Services,Provisions,BIKOLD,09/03/2023,201.79
"Communities, Customer & Commercial Services",Sport & Leisure,Supplies & Services,Provisions,SPICE TIME,22/03/2023,125.95
"Communities, Customer & Commercial Services",Sport & Leisure,Supplies & Services,Provisions,ROWLANDS & COMPANY,14/03/2023,135.60
"Communities, Customer & Commercial Services",Sport & Leisure,Supplies & Services,Provisions,ROWLANDS & COMPANY,14/03/2023,103.13
"Communities, Customer & Commercial Services",Sport & Leisure,Supplies & Services,Provisions,ROWLANDS & COMPANY,14/03/2023,163.70
"Communities, Customer & Commercial Services",Sport & Leisure,Supplies & Services,Provisions,ROWLANDS & COMPANY,14/03/2023,189.24
"Communities, Customer & Commercial Services",Sport & Leisure,Supplies & Services,Provisions,BIKOLD,09/03/2023,111.80
"Communities, Customer & Commercial Services",Sport & Leisure,Supplies & Services,Provisions,BIKOLD,09/03/2023,304.24
"Communities, Customer & Commercial Services",Sport & Leisure,Supplies & Services,Provisions,BIKOLD,09/03/2023,155.21
"Communities, Customer & Commercial Services",Sport & Leisure,Supplies & Services,Provisions,BIKOLD,09/03/2023,150.23
"Communities, Customer & Commercial Services",Sport & Leisure,Supplies & Services,Provisions,On A Roll,21/03/2023,197.20
"Communities, Customer & Commercial Services",Sport & Leisure,Supplies & Services,Provisions,BIKOLD,09/03/2023,238.99
"Communities, Customer & Commercial Services",Sport & Leisure,Supplies & Services,Provisions,On A Roll,24/03/2023,150.80
"Communities, Customer & Commercial Services",Sport & Leisure,Supplies & Services,Provisions,BIKOLD,09/03/2023,217.24
"Communities, Customer & Commercial Services",Sport & Leisure,Supplies & Services,Provisions,BIKOLD,09/03/2023,272.20
"Communities, Customer & Commercial Services",Sport & Leisure,Supplies & Services,Provisions,BIKOLD,09/03/2023,401.29
"Communities, Customer & Commercial Services",Sport & Leisure,Supplies & Services,Provisions,BIKOLD,09/03/2023,199.18
"Communities, Customer & Commercial Services",Sport & Leisure,Supplies & Services,Provisions,BIKOLD,09/03/2023,181.78
"Communities, Customer & Commercial Services",Sport & Leisure,Supplies & Services,Provisions,BIKOLD,09/03/2023,166.62
"Communities, Customer & Commercial Services",Sport & Leisure,Supplies & Services,Provisions,BIKOLD,09/03/2023,112.42
"Communities, Customer & Commercial Services",Sport & Leisure,Supplies & Services,Provisions,BIKOLD,09/03/2023,178.65
"Communities, Customer & Commercial Services",Sport & Leisure,Supplies & Services,Provisions,BIKOLD,09/03/2023,325.77
"Communities, Customer & Commercial Services",Sport & Leisure,Supplies & Services,Provisions,BIKOLD,09/03/2023,401.66
"Communities, Customer & Commercial Services",Sport & Leisure,Supplies & Services,Provisions,BIKOLD,09/03/2023,688.39
"Communities, Customer & Commercial Services",Sport & Leisure,Supplies & Services,Provisions,BIKOLD,09/03/2023,227.43
"Communities, Customer & Commercial Services",Sport & Leisure,Supplies & Services,Provisions,BIKOLD,09/03/2023,190.22
"Communities, Customer & Commercial Services",Sport & Leisure,Supplies & Services,Provisions,ROWLANDS & COMPANY,23/03/2023,134.01
"Communities, Customer & Commercial Services",Sport & Leisure,Supplies & Services,Provisions,ROWLANDS & COMPANY,23/03/2023,112.95
"Communities, Customer & Commercial Services",Sport & Leisure,Supplies & Services,Provisions,ROWLANDS & COMPANY,23/03/2023,100.19
"Communities, Customer & Commercial Services",Sport & Leisure,Supplies & Services,Provisions,ROWLANDS & COMPANY,23/03/2023,158.57
"Communities, Customer & Commercial Services",Sport & Leisure,Supplies & Services,Provisions,ROWLANDS & COMPANY,23/03/2023,213.50
"Communities, Customer & Commercial Services",Sport & Leisure,Supplies & Services,Provisions,ROWLANDS & COMPANY,23/03/2023,160.45
"Communities, Customer & Commercial Services",Sport & Leisure,Supplies & Services,Provisions,ROWLANDS & COMPANY,23/03/2023,192.75
"Communities, Customer & Commercial Services",Sport & Leisure,Supplies & Services,Provisions,ROWLANDS & COMPANY,23/03/2023,104.57
"Communities, Customer & Commercial Services",Sport & Leisure,Supplies & Services,Provisions,BIKOLD,09/03/2023,303.53
"Communities, Customer & Commercial Services",Sport & Leisure,Supplies & Services,Provisions,BIKOLD,09/03/2023,116.06
"Communities, Customer & Commercial Services",Sport & Leisure,Supplies & Services,Provisions,BIKOLD,09/03/2023,119.02
"Communities, Customer & Commercial Services",Sport & Leisure,Supplies & Services,Provisions,BIKOLD,09/03/2023,298.37
"Communities, Customer & Commercial Services",Sport & Leisure,Supplies & Services,Provisions,BIKOLD,09/03/2023,110.58
"Communities, Customer & Commercial Services",Sport & Leisure,Supplies & Services,Provisions,BIKOLD,09/03/2023,282.04
"Communities, Customer & Commercial Services",Sport & Leisure,Supplies & Services,Provisions,BIKOLD,09/03/2023,181.10
"Communities, Customer & Commercial Services",Sport & Leisure,Supplies & Services,Provisions,BIKOLD,09/03/2023,247.80
"Communities, Customer & Commercial Services",Sport & Leisure,Supplies & Services,Provisions,BIKOLD,09/03/2023,364.71
"Communities, Customer & Commercial Services",Sport & Leisure,Supplies & Services,Provisions,BIKOLD,09/03/2023,473.07
"Communities, Customer & Commercial Services",Sport & Leisure,Supplies & Services,Provisions,BIKOLD,09/03/2023,314.29
"Communities, Customer & Commercial Services",Sport & Leisure,Supplies & Services,Provisions,BIKOLD,09/03/2023,199.31
"Communities, Customer & Commercial Services",Sport & Leisure,Supplies & Services,Provisions,BIKOLD,09/03/2023,122.18
"Communities, Customer & Commercial Services",Sport & Leisure,Supplies & Services,Provisions,BIKOLD,09/03/2023,645.86
"Communities, Customer & Commercial Services",Sport & Leisure,Supplies & Services,Provisions,BIKOLD,09/03/2023,104.01
"Communities, Customer & Commercial Services",Sport & Leisure,Supplies & Services,Provisions,BIKOLD,09/03/2023,243.06
"Communities, Customer & Commercial Services",Sport & Leisure,Supplies & Services,Provisions,BIKOLD,09/03/2023,325.07
"Communities, Customer & Commercial Services",Sport & Leisure,Supplies & Services,Provisions,BIKOLD,09/03/2023,160.18
"Communities, Customer & Commercial Services",Sport & Leisure,Supplies & Services,Provisions,BIKOLD,09/03/2023,217.27
"Communities, Customer & Commercial Services",Sport & Leisure,Supplies & Services,Provisions,BIKOLD,09/03/2023,174.15
"Communities, Customer & Commercial Services",Sport & Leisure,Supplies & Services,Provisions,BIKOLD,09/03/2023,294.72
"Communities, Customer & Commercial Services",Sport & Leisure,Supplies & Services,Provisions,BIKOLD,09/03/2023,142.90
"Communities, Customer & Commercial Services",Sport & Leisure,Supplies & Services,Provisions,BIKOLD,09/03/2023,211.92
"Communities, Customer & Commercial Services",Sport & Leisure,Supplies & Services,Provisions,BIKOLD,09/03/2023,345.72
"Communities, Customer & Commercial Services",Sport & Leisure,Supplies & Services,Provisions,BIKOLD,09/03/2023,120.63
"Communities, Customer & Commercial Services",Sport & Leisure,Supplies & Services,Provisions,BIKOLD,09/03/2023,134.27
"Communities, Customer & Commercial Services",Sport & Leisure,Supplies & Services,Provisions,BIKOLD,09/03/2023,148.43
"Communities, Customer & Commercial Services",Sport & Leisure,Supplies & Services,Provisions,BIKOLD,09/03/2023,185.00
"Communities, Customer & Commercial Services",Sport & Leisure,Supplies & Services,Provisions,BIKOLD,09/03/2023,450.17
"Communities, Customer & Commercial Services",Sport & Leisure,Supplies & Services,Provisions,BIKOLD,09/03/2023,112.11
"Communities, Customer & Commercial Services",Sport & Leisure,Supplies & Services,Provisions,BIKOLD,09/03/2023,116.92
"Communities, Customer & Commercial Services",Sport & Leisure,Supplies & Services,Provisions,BIKOLD,09/03/2023,481.95
"Communities, Customer & Commercial Services",Sport & Leisure,Supplies & Services,Provisions,BIKOLD,09/03/2023,305.81
"Communities, Customer & Commercial Services",Sport & Leisure,Supplies & Services,Provisions,BIKOLD,09/03/2023,145.39
"Communities, Customer & Commercial Services",Sport & Leisure,Supplies & Services,Provisions,BIKOLD,09/03/2023,230.64
"Communities, Customer & Commercial Services",Sport & Leisure,Supplies & Services,Provisions,ROWLANDS & COMPANY,14/03/2023,121.13
"Communities, Customer & Commercial Services",Sport & Leisure,Supplies & Services,Provisions,ROWLANDS & COMPANY,14/03/2023,130.80
"Communities, Customer & Commercial Services",Sport & Leisure,Supplies & Services,Provisions,ROWLANDS & COMPANY,14/03/2023,140.98
"Communities, Customer & Commercial Services",Sport & Leisure,Supplies & Services,Provisions,ROWLANDS & COMPANY,14/03/2023,156.77
"Communities, Customer & Commercial Services",Sport & Leisure,Supplies & Services,Provisions,ROWLANDS & COMPANY,14/03/2023,146.21
"Communities, Customer & Commercial Services",Sport & Leisure,Supplies & Services,Provisions,ROWLANDS & COMPANY,14/03/2023,131.82
"Communities, Customer & Commercial Services",Sport & Leisure,Supplies & Services,Provisions,ROWLANDS & COMPANY,14/03/2023,130.50
"Communities, Customer & Commercial Services",Sport & Leisure,Supplies & Services,Provisions,ROWLANDS & COMPANY,14/03/2023,216.30
"Communities, Customer & Commercial Services",Sport & Leisure,Supplies & Services,Provisions,ROWLANDS & COMPANY,14/03/2023,126.00
"Communities, Customer & Commercial Services",Sport & Leisure,Supplies & Services,Provisions,BIKOLD,09/03/2023,101.36
"Communities, Customer & Commercial Services",Sport & Leisure,Supplies & Services,Provisions,BIKOLD,09/03/2023,164.72
"Communities, Customer & Commercial Services",Sport & Leisure,Supplies & Services,Provisions,BIKOLD,09/03/2023,333.60
"Communities, Customer & Commercial Services",Sport & Leisure,Supplies & Services,Provisions,BIKOLD,09/03/2023,213.69
"Communities, Customer & Commercial Services",Sport & Leisure,Supplies & Services,Provisions,BIKOLD,09/03/2023,280.89
"Communities, Customer & Commercial Services",Sport & Leisure,Supplies & Services,Provisions,BIKOLD,09/03/2023,202.18
"Communities, Customer & Commercial Services",Sport & Leisure,Supplies & Services,Provisions,BIKOLD,09/03/2023,345.12
"Communities, Customer & Commercial Services",Sport & Leisure,Supplies & Services,Provisions,BIKOLD,09/03/2023,220.79
"Communities, Customer & Commercial Services",Sport & Leisure,Supplies & Services,Provisions,BIKOLD,09/03/2023,311.30
"Communities, Customer & Commercial Services",Sport & Leisure,Supplies & Services,Provisions,BIKOLD,09/03/2023,422.85
"Communities, Customer & Commercial Services",Sport & Leisure,Supplies & Services,Provisions,BIKOLD,09/03/2023,285.72
"Communities, Customer & Commercial Services",Sport & Leisure,Supplies & Services,Provisions,BIKOLD,09/03/2023,265.55
"Communities, Customer & Commercial Services",Sport & Leisure,Supplies & Services,Provisions,BIKOLD,16/03/2023,159.60
"Communities, Customer & Commercial Services",Sport & Leisure,Supplies & Services,Provisions,BIKOLD,16/03/2023,172.25
"Communities, Customer & Commercial Services",Sport & Leisure,Supplies & Services,Provisions,BIKOLD,16/03/2023,-174.15
"Communities, Customer & Commercial Services",Sport & Leisure,Supplies & Services,Provisions,BIKOLD,16/03/2023,241.11
"Communities, Customer & Commercial Services",Sport & Leisure,Supplies & Services,Provisions,BIKOLD,16/03/2023,360.77
"Communities, Customer & Commercial Services",Sport & Leisure,Supplies & Services,Provisions,BIKOLD,16/03/2023,122.33
"Communities, Customer & Commercial Services",Sport & Leisure,Supplies & Services,Provisions,BIKOLD,16/03/2023,139.31
"Communities, Customer & Commercial Services",Sport & Leisure,Supplies & Services,Provisions,BIKOLD,16/03/2023,158.10
"Communities, Customer & Commercial Services",Sport & Leisure,Supplies & Services,Provisions,ROWLANDS & COMPANY,23/03/2023,107.27
"Communities, Customer & Commercial Services",Sport & Leisure,Supplies & Services,Provisions,ROWLANDS & COMPANY,23/03/2023,225.98
"Communities, Customer & Commercial Services",Sport & Leisure,Supplies & Services,Provisions,ROWLANDS & COMPANY,23/03/2023,145.40
"Communities, Customer & Commercial Services",Sport & Leisure,Supplies & Services,Provisions,ROWLANDS & COMPANY,23/03/2023,125.34
"Communities, Customer & Commercial Services",Sport & Leisure,Supplies & Services,Provisions,ROWLANDS & COMPANY,23/03/2023,102.14
"Communities, Customer & Commercial Services",Sport & Leisure,Supplies & Services,Provisions,SPICE TIME,22/03/2023,230.60
"Communities, Customer & Commercial Services",Sport & Leisure,Supplies & Services,Provisions,SPICE TIME,22/03/2023,171.00
"Communities, Customer & Commercial Services",Sport & Leisure,Supplies & Services,Provisions,SPICE TIME,22/03/2023,119.20
"Communities, Customer & Commercial Services",Sport & Leisure,Supplies & Services,Provisions,ROWLANDS & COMPANY,23/03/2023,120.07
"Communities, Customer & Commercial Services",Sport & Leisure,Supplies & Services,Provisions,ROWLANDS & COMPANY,23/03/2023,130.95
"Communities, Customer & Commercial Services",Sport & Leisure,Supplies & Services,Provisions,ROWLANDS & COMPANY,23/03/2023,129.48
"Communities, Customer & Commercial Services",Sport & Leisure,Supplies & Services,Provisions,ROWLANDS & COMPANY,23/03/2023,172.82
"Communities, Customer & Commercial Services",Sport & Leisure,Supplies & Services,Provisions,ROWLANDS & COMPANY,23/03/2023,186.75
"Communities, Customer & Commercial Services",Sport & Leisure,Supplies & Services,Provisions,SPICE TIME,22/03/2023,194.00
"Communities, Customer & Commercial Services",Sport & Leisure,Supplies & Services,Provisions,SPICE TIME,22/03/2023,147.00
"Communities, Customer & Commercial Services",Sport & Leisure,Supplies & Services,Provisions,SPICE TIME,22/03/2023,171.00
"Communities, Customer & Commercial Services",Sport & Leisure,Supplies & Services,Provisions,BIKOLD,16/03/2023,150.90
"Communities, Customer & Commercial Services",Sport & Leisure,Supplies & Services,Provisions,BIKOLD,16/03/2023,108.25
"Communities, Customer & Commercial Services",Sport & Leisure,Supplies & Services,Provisions,BIKOLD,16/03/2023,112.56
"Communities, Customer & Commercial Services",Sport & Leisure,Supplies & Services,Provisions,BIKOLD,16/03/2023,273.18
"Communities, Customer & Commercial Services",Sport & Leisure,Supplies & Services,Provisions,BIKOLD,16/03/2023,222.16
"Communities, Customer & Commercial Services",Sport & Leisure,Supplies & Services,Provisions,BIKOLD,16/03/2023,147.01
"Communities, Customer & Commercial Services",Sport & Leisure,Supplies & Services,Provisions,BIKOLD,16/03/2023,324.18
"Communities, Customer & Commercial Services",Sport & Leisure,Supplies & Services,Provisions,BIKOLD,16/03/2023,298.68
"Communities, Customer & Commercial Services",Sport & Leisure,Supplies & Services,Provisions,BIKOLD,16/03/2023,500.44
"Communities, Customer & Commercial Services",Sport & Leisure,Supplies & Services,Provisions,BIKOLD,16/03/2023,222.59
"Communities, Customer & Commercial Services",Sport & Leisure,Supplies & Services,Provisions,BIKOLD,16/03/2023,136.10
"Communities, Customer & Commercial Services",Sport & Leisure,Supplies & Services,Provisions,BIKOLD,16/03/2023,244.07
"Communities, Customer & Commercial Services",Sport & Leisure,Supplies & Services,Provisions,BIKOLD,16/03/2023,202.52
"Communities, Customer & Commercial Services",Sport & Leisure,Supplies & Services,Provisions,BIKOLD,16/03/2023,280.09
"Communities, Customer & Commercial Services",Sport & Leisure,Supplies & Services,Provisions,BIKOLD,16/03/2023,303.59
"Communities, Customer & Commercial Services",Sport & Leisure,Supplies & Services,Provisions,BIKOLD,16/03/2023,241.15
"Communities, Customer & Commercial Services",Sport & Leisure,Supplies & Services,Provisions,BIKOLD,16/03/2023,249.36
"Communities, Customer & Commercial Services",Sport & Leisure,Supplies & Services,Provisions,BIKOLD,16/03/2023,285.49
"Communities, Customer & Commercial Services",Sport & Leisure,Supplies & Services,Provisions,BIKOLD,16/03/2023,166.29
"Communities, Customer & Commercial Services",Sport & Leisure,Supplies & Services,Provisions,BIKOLD,16/03/2023,100.29
"Communities, Customer & Commercial Services",Sport & Leisure,Supplies & Services,Provisions,BIKOLD,16/03/2023,154.71
"Communities, Customer & Commercial Services",Sport & Leisure,Supplies & Services,Provisions,BIKOLD,16/03/2023,124.29
"Communities, Customer & Commercial Services",Sport & Leisure,Supplies & Services,Provisions,BIKOLD,16/03/2023,-154.39
"Communities, Customer & Commercial Services",Sport & Leisure,Supplies & Services,Provisions,BIKOLD,16/03/2023,228.22
"Communities, Customer & Commercial Services",Sport & Leisure,Supplies & Services,Provisions,BIKOLD,16/03/2023,295.79
"Communities, Customer & Commercial Services",Sport & Leisure,Supplies & Services,Provisions,BIKOLD,16/03/2023,369.28
"Communities, Customer & Commercial Services",Sport & Leisure,Supplies & Services,Provisions,BIKOLD,16/03/2023,491.97
"Communities, Customer & Commercial Services",Sport & Leisure,Supplies & Services,Provisions,BIKOLD,16/03/2023,149.71
"Communities, Customer & Commercial Services",Sport & Leisure,Supplies & Services,Provisions,SPICE TIME,22/03/2023,117.70
"Communities, Customer & Commercial Services",Sport & Leisure,Supplies & Services,Provisions,SPICE TIME,22/03/2023,208.50
"Communities, Customer & Commercial Services",Sport & Leisure,Supplies & Services,Provisions,SPICE TIME,22/03/2023,120.90
"Communities, Customer & Commercial Services",Sport & Leisure,Supplies & Services,Provisions,SPICE TIME,22/03/2023,221.90
"Communities, Customer & Commercial Services",Sport & Leisure,Supplies & Services,Provisions,SPICE TIME,22/03/2023,215.00
"Communities, Customer & Commercial Services",Sport & Leisure,Supplies & Services,Provisions,SPICE TIME,22/03/2023,174.40
"Communities, Customer & Commercial Services",Sport & Leisure,Supplies & Services,Provisions,SPICE TIME,22/03/2023,194.50
"Communities, Customer & Commercial Services",Sport & Leisure,Supplies & Services,Provisions,SPICE TIME,22/03/2023,213.50
"Communities, Customer & Commercial Services",Sport & Leisure,Supplies & Services,Provisions,SPICE TIME,22/03/2023,181.50
"Communities, Customer & Commercial Services",Sport & Leisure,Supplies & Services,Provisions,SPICE TIME,22/03/2023,241.90
"Communities, Customer & Commercial Services",Sport & Leisure,Supplies & Services,Provisions,SPICE TIME,22/03/2023,239.10
"Communities, Customer & Commercial Services",Sport & Leisure,Supplies & Services,Provisions,SPICE TIME,22/03/2023,127.90
"Communities, Customer & Commercial Services",Sport & Leisure,Supplies & Services,Provisions,SPICE TIME,22/03/2023,200.20
"Communities, Customer & Commercial Services",Sport & Leisure,Supplies & Services,Provisions,BIKOLD,16/03/2023,210.72
"Communities, Customer & Commercial Services",Sport & Leisure,Supplies & Services,Provisions,BIKOLD,16/03/2023,222.26
"Communities, Customer & Commercial Services",Sport & Leisure,Supplies & Services,Provisions,BIKOLD,16/03/2023,104.41
"Communities, Customer & Commercial Services",Sport & Leisure,Supplies & Services,Provisions,BIKOLD,16/03/2023,256.94
"Communities, Customer & Commercial Services",Sport & Leisure,Supplies & Services,Provisions,BIKOLD,16/03/2023,197.41
"Communities, Customer & Commercial Services",Sport & Leisure,Supplies & Services,Provisions,BIKOLD,16/03/2023,130.47
"Communities, Customer & Commercial Services",Sport & Leisure,Supplies & Services,Provisions,BIKOLD,16/03/2023,-190.22
"Communities, Customer & Commercial Services",Sport & Leisure,Supplies & Services,Provisions,BIKOLD,16/03/2023,-169.74
"Communities, Customer & Commercial Services",Sport & Leisure,Supplies & Services,Provisions,BIKOLD,16/03/2023,-153.29
"Communities, Customer & Commercial Services",Sport & Leisure,Supplies & Services,Provisions,BIKOLD,16/03/2023,-130.92
"Communities, Customer & Commercial Services",Sport & Leisure,Supplies & Services,Provisions,BIKOLD,16/03/2023,220.40
"Communities, Customer & Commercial Services",Sport & Leisure,Supplies & Services,Provisions,J S Catering Butchers,27/03/2023,147.09
"Communities, Customer & Commercial Services",Sport & Leisure,Supplies & Services,Provisions,J S Catering Butchers,27/03/2023,147.20
"Communities, Customer & Commercial Services",Sport & Leisure,Supplies & Services,Provisions,J S Catering Butchers,27/03/2023,159.10
"Communities, Customer & Commercial Services",Sport & Leisure,Supplies & Services,Provisions,J S Catering Butchers,27/03/2023,133.90
"Communities, Customer & Commercial Services",Sport & Leisure,Supplies & Services,Provisions,J S Catering Butchers,27/03/2023,135.99
"Communities, Customer & Commercial Services",Sport & Leisure,Supplies & Services,Provisions,J S Catering Butchers,27/03/2023,147.20
"Communities, Customer & Commercial Services",Sport & Leisure,Supplies & Services,Provisions,BIKOLD,16/03/2023,140.36
"Communities, Customer & Commercial Services",Sport & Leisure,Supplies & Services,Provisions,BIKOLD,16/03/2023,165.92
"Communities, Customer & Commercial Services",Sport & Leisure,Supplies & Services,Provisions,BIKOLD,16/03/2023,330.86
"Communities, Customer & Commercial Services",Sport & Leisure,Supplies & Services,Provisions,BIKOLD,16/03/2023,134.48
"Communities, Customer & Commercial Services",Sport & Leisure,Supplies & Services,Provisions,BIKOLD,16/03/2023,150.23
"Communities, Customer & Commercial Services",Sport & Leisure,Supplies & Services,Provisions,BIKOLD,16/03/2023,281.24
"Communities, Customer & Commercial Services",Sport & Leisure,Supplies & Services,Provisions,BIKOLD,16/03/2023,243.25
"Communities, Customer & Commercial Services",Sport & Leisure,Supplies & Services,Provisions,BIKOLD,16/03/2023,166.31
"Communities, Customer & Commercial Services",Sport & Leisure,Supplies & Services,Provisions,BIKOLD,16/03/2023,148.62
"Communities, Customer & Commercial Services",Sport & Leisure,Supplies & Services,Provisions,BIKOLD,16/03/2023,120.95
"Communities, Customer & Commercial Services",Sport & Leisure,Supplies & Services,Provisions,BIKOLD,16/03/2023,136.60
"Communities, Customer & Commercial Services",Sport & Leisure,Supplies & Services,Provisions,BIKOLD,16/03/2023,-150.23
"Communities, Customer & Commercial Services",Sport & Leisure,Supplies & Services,Provisions,BIKOLD,16/03/2023,-112.11
"Communities, Customer & Commercial Services",Sport & Leisure,Supplies & Services,Provisions,BIKOLD,16/03/2023,305.54
"Communities, Customer & Commercial Services",Sport & Leisure,Supplies & Services,Provisions,BIKOLD,16/03/2023,130.15
"Communities, Customer & Commercial Services",Sport & Leisure,Supplies & Services,Provisions,J S Catering Butchers,20/03/2023,112.00
"Communities, Customer & Commercial Services",Sport & Leisure,Supplies & Services,Provisions,J S Catering Butchers,20/03/2023,118.35
"Communities, Customer & Commercial Services",Sport & Leisure,Supplies & Services,Provisions,BIKOLD,16/03/2023,153.24
"Communities, Customer & Commercial Services",Sport & Leisure,Supplies & Services,Provisions,BIKOLD,16/03/2023,-149.71
"Communities, Customer & Commercial Services",Sport & Leisure,Supplies & Services,Provisions,BIKOLD,16/03/2023,277.16
"Communities, Customer & Commercial Services",Sport & Leisure,Supplies & Services,Provisions,BIKOLD,16/03/2023,153.92
"Communities, Customer & Commercial Services",Sport & Leisure,Supplies & Services,Provisions,BIKOLD,16/03/2023,505.59
"Communities, Customer & Commercial Services",Sport & Leisure,Supplies & Services,Provisions,BIKOLD,16/03/2023,259.33
"Communities, Customer & Commercial Services",Sport & Leisure,Supplies & Services,Provisions,BIKOLD,16/03/2023,116.81
"Communities, Customer & Commercial Services",Sport & Leisure,Supplies & Services,Provisions,BIKOLD,16/03/2023,109.55
"Communities, Customer & Commercial Services",Sport & Leisure,Supplies & Services,Provisions,BIKOLD,16/03/2023,124.54
"Communities, Customer & Commercial Services",Sport & Leisure,Supplies & Services,Provisions,BIKOLD,16/03/2023,345.05
"Communities, Customer & Commercial Services",Sport & Leisure,Supplies & Services,Provisions,BIKOLD,23/03/2023,228.02
"Communities, Customer & Commercial Services",Sport & Leisure,Supplies & Services,Provisions,BIKOLD,23/03/2023,471.80
"Communities, Customer & Commercial Services",Sport & Leisure,Supplies & Services,Provisions,BIKOLD,23/03/2023,259.46
"Communities, Customer & Commercial Services",Sport & Leisure,Supplies & Services,Provisions,BIKOLD,23/03/2023,259.19
"Communities, Customer & Commercial Services",Sport & Leisure,Supplies & Services,Provisions,BIKOLD,23/03/2023,376.07
"Communities, Customer & Commercial Services",Sport & Leisure,Supplies & Services,Provisions,BIKOLD,23/03/2023,613.97
"Communities, Customer & Commercial Services",Sport & Leisure,Supplies & Services,Provisions,BIKOLD,23/03/2023,126.12
"Communities, Customer & Commercial Services",Sport & Leisure,Supplies & Services,Provisions,BIKOLD,23/03/2023,225.21
"Communities, Customer & Commercial Services",Sport & Leisure,Supplies & Services,Provisions,BIKOLD,16/03/2023,111.01
"Communities, Customer & Commercial Services",Sport & Leisure,Supplies & Services,Provisions,BIKOLD,16/03/2023,119.94
"Communities, Customer & Commercial Services",Sport & Leisure,Supplies & Services,Provisions,BIKOLD,16/03/2023,293.50
"Communities, Customer & Commercial Services",Sport & Leisure,Supplies & Services,Provisions,BIKOLD,16/03/2023,165.41
"Communities, Customer & Commercial Services",Sport & Leisure,Supplies & Services,Provisions,BIKOLD,16/03/2023,377.82
"Communities, Customer & Commercial Services",Sport & Leisure,Supplies & Services,Provisions,BIKOLD,16/03/2023,-155.21
"Communities, Customer & Commercial Services",Sport & Leisure,Supplies & Services,Provisions,BIKOLD,16/03/2023,-217.27
"Communities, Customer & Commercial Services",Sport & Leisure,Supplies & Services,Provisions,BIKOLD,16/03/2023,112.11
"Communities, Customer & Commercial Services",Sport & Leisure,Supplies & Services,Provisions,BIKOLD,16/03/2023,162.99
"Communities, Customer & Commercial Services",Sport & Leisure,Supplies & Services,Provisions,BIKOLD,16/03/2023,166.38
"Communities, Customer & Commercial Services",Sport & Leisure,Supplies & Services,Provisions,BIKOLD,16/03/2023,106.50
"Communities, Customer & Commercial Services",Sport & Leisure,Supplies & Services,Provisions,BIKOLD,16/03/2023,153.29
"Communities, Customer & Commercial Services",Sport & Leisure,Supplies & Services,Provisions,BIKOLD,16/03/2023,164.12
"Communities, Customer & Commercial Services",Sport & Leisure,Supplies & Services,Provisions,BIKOLD,16/03/2023,117.30
"Communities, Customer & Commercial Services",Sport & Leisure,Supplies & Services,Provisions,BIKOLD,16/03/2023,195.39
"Communities, Customer & Commercial Services",Sport & Leisure,Supplies & Services,Provisions,BIKOLD,16/03/2023,-190.28
"Communities, Customer & Commercial Services",Sport & Leisure,Supplies & Services,Provisions,BIKOLD,16/03/2023,371.60
"Communities, Customer & Commercial Services",Sport & Leisure,Supplies & Services,Provisions,BIKOLD,16/03/2023,203.44
"Communities, Customer & Commercial Services",Sport & Leisure,Supplies & Services,Provisions,BIKOLD,16/03/2023,308.37
"Communities, Customer & Commercial Services",Sport & Leisure,Supplies & Services,Provisions,BIKOLD,16/03/2023,524.02
"Communities, Customer & Commercial Services",Sport & Leisure,Supplies & Services,Provisions,BIKOLD,16/03/2023,100.63
"Communities, Customer & Commercial Services",Sport & Leisure,Supplies & Services,Provisions,BIKOLD,16/03/2023,176.19
"Communities, Customer & Commercial Services",Sport & Leisure,Supplies & Services,Provisions,BIKOLD,16/03/2023,-227.43
"Communities, Customer & Commercial Services",Sport & Leisure,Supplies & Services,Provisions,BIKOLD,16/03/2023,-178.65
"Communities, Customer & Commercial Services",Sport & Leisure,Supplies & Services,Provisions,BIKOLD,16/03/2023,240.28
"Communities, Customer & Commercial Services",Sport & Leisure,Supplies & Services,Provisions,BIKOLD,16/03/2023,233.61
"Communities, Customer & Commercial Services",Sport & Leisure,Supplies & Services,Provisions,BIKOLD,16/03/2023,-213.69
"Communities, Customer & Commercial Services",Sport & Leisure,Supplies & Services,Provisions,BIKOLD,16/03/2023,206.81
"Communities, Customer & Commercial Services",Sport & Leisure,Supplies & Services,Provisions,BIKOLD,16/03/2023,104.18
"Communities, Customer & Commercial Services",Sport & Leisure,Supplies & Services,Provisions,BIKOLD,16/03/2023,237.40
"Communities, Customer & Commercial Services",Sport & Leisure,Supplies & Services,Provisions,BIKOLD,16/03/2023,173.94
"Communities, Customer & Commercial Services",Sport & Leisure,Supplies & Services,Provisions,BIKOLD,16/03/2023,121.99
"Communities, Customer & Commercial Services",Sport & Leisure,Supplies & Services,Provisions,BIKOLD,16/03/2023,135.24
"Communities, Customer & Commercial Services",Sport & Leisure,Supplies & Services,Provisions,BIKOLD,16/03/2023,-153.03
"Communities, Customer & Commercial Services",Sport & Leisure,Supplies & Services,Provisions,BIKOLD,16/03/2023,-104.01
"Communities, Customer & Commercial Services",Sport & Leisure,Supplies & Services,Provisions,BIKOLD,16/03/2023,410.37
"Communities, Customer & Commercial Services",Sport & Leisure,Supplies & Services,Provisions,BIKOLD,16/03/2023,123.77
"Communities, Customer & Commercial Services",Sport & Leisure,Supplies & Services,Provisions,BIKOLD,16/03/2023,147.63
"Communities, Customer & Commercial Services",Sport & Leisure,Supplies & Services,Provisions,BIKOLD,16/03/2023,229.49
"Communities, Customer & Commercial Services",Sport & Leisure,Supplies & Services,Provisions,BIKOLD,16/03/2023,347.92
"Communities, Customer & Commercial Services",Sport & Leisure,Supplies & Services,Provisions,BIKOLD,16/03/2023,158.99
"Communities, Customer & Commercial Services",Sport & Leisure,Supplies & Services,Provisions,BIKOLD,16/03/2023,290.44
"Communities, Customer & Commercial Services",Sport & Leisure,Supplies & Services,Provisions,BIKOLD,16/03/2023,116.66
"Communities, Customer & Commercial Services",Sport & Leisure,Supplies & Services,Provisions,BIKOLD,16/03/2023,250.27
"Communities, Customer & Commercial Services",Sport & Leisure,Supplies & Services,Provisions,BIKOLD,16/03/2023,390.80
"Communities, Customer & Commercial Services",Sport & Leisure,Supplies & Services,Provisions,BIKOLD,16/03/2023,223.48
"Communities, Customer & Commercial Services",Sport & Leisure,Supplies & Services,Provisions,BIKOLD,16/03/2023,106.77
"Communities, Customer & Commercial Services",Sport & Leisure,Supplies & Services,Provisions,BIKOLD,23/03/2023,380.33
"Communities, Customer & Commercial Services",Sport & Leisure,Supplies & Services,Provisions,BIKOLD,23/03/2023,171.25
"Communities, Customer & Commercial Services",Sport & Leisure,Supplies & Services,Provisions,BIKOLD,23/03/2023,188.09
"Communities, Customer & Commercial Services",Sport & Leisure,Supplies & Services,Provisions,BIKOLD,23/03/2023,100.73
"Communities, Customer & Commercial Services",Sport & Leisure,Supplies & Services,Provisions,BIKOLD,23/03/2023,324.37
"Communities, Customer & Commercial Services",Sport & Leisure,Supplies & Services,Provisions,BIKOLD,23/03/2023,264.37
"Communities, Customer & Commercial Services",Sport & Leisure,Supplies & Services,Provisions,BIKOLD,23/03/2023,201.45
"Communities, Customer & Commercial Services",Sport & Leisure,Supplies & Services,Provisions,BIKOLD,23/03/2023,412.32
"Communities, Customer & Commercial Services",Sport & Leisure,Supplies & Services,Provisions,BIKOLD,16/03/2023,115.15
"Communities, Customer & Commercial Services",Sport & Leisure,Supplies & Services,Provisions,BIKOLD,16/03/2023,227.73
"Communities, Customer & Commercial Services",Sport & Leisure,Supplies & Services,Provisions,BIKOLD,16/03/2023,259.04
"Communities, Customer & Commercial Services",Sport & Leisure,Supplies & Services,Provisions,BIKOLD,16/03/2023,198.66
"Communities, Customer & Commercial Services",Sport & Leisure,Supplies & Services,Provisions,BIKOLD,16/03/2023,168.33
"Communities, Customer & Commercial Services",Sport & Leisure,Supplies & Services,Provisions,BIKOLD,16/03/2023,322.53
"Communities, Customer & Commercial Services",Sport & Leisure,Supplies & Services,Provisions,BIKOLD,16/03/2023,200.91
"Communities, Customer & Commercial Services",Sport & Leisure,Supplies & Services,Provisions,BIKOLD,16/03/2023,101.69
"Communities, Customer & Commercial Services",Sport & Leisure,Supplies & Services,Provisions,BIKOLD,16/03/2023,134.53
"Communities, Customer & Commercial Services",Sport & Leisure,Supplies & Services,Provisions,BIKOLD,16/03/2023,-154.16
"Communities, Customer & Commercial Services",Sport & Leisure,Supplies & Services,Provisions,BIKOLD,16/03/2023,140.09
"Communities, Customer & Commercial Services",Sport & Leisure,Supplies & Services,Provisions,BIKOLD,23/03/2023,505.94
"Communities, Customer & Commercial Services",Sport & Leisure,Supplies & Services,Provisions,BIKOLD,23/03/2023,290.71
"Communities, Customer & Commercial Services",Sport & Leisure,Supplies & Services,Provisions,BIKOLD,23/03/2023,100.01
"Communities, Customer & Commercial Services",Sport & Leisure,Supplies & Services,Provisions,BIKOLD,23/03/2023,112.70
"Communities, Customer & Commercial Services",Sport & Leisure,Supplies & Services,Provisions,BIKOLD,23/03/2023,120.64
"Communities, Customer & Commercial Services",Sport & Leisure,Supplies & Services,Provisions,BIKOLD,23/03/2023,110.98
"Communities, Customer & Commercial Services",Sport & Leisure,Supplies & Services,Provisions,BIKOLD,23/03/2023,143.12
"Communities, Customer & Commercial Services",Sport & Leisure,Supplies & Services,Provisions,BIKOLD,23/03/2023,286.01
"Communities, Customer & Commercial Services",Sport & Leisure,Supplies & Services,Provisions,BIKOLD,23/03/2023,108.20
"Communities, Customer & Commercial Services",Sport & Leisure,Supplies & Services,Provisions,BIKOLD,23/03/2023,100.74
"Communities, Customer & Commercial Services",Sport & Leisure,Supplies & Services,Provisions,J S Catering Butchers,27/03/2023,140.60
"Communities, Customer & Commercial Services",Sport & Leisure,Supplies & Services,Provisions,J S Catering Butchers,27/03/2023,103.75
"Communities, Customer & Commercial Services",Sport & Leisure,Supplies & Services,Provisions,J S Catering Butchers,27/03/2023,267.55
"Communities, Customer & Commercial Services",Sport & Leisure,Supplies & Services,Provisions,BIKOLD,23/03/2023,139.79
"Communities, Customer & Commercial Services",Sport & Leisure,Supplies & Services,Provisions,BIKOLD,23/03/2023,161.66
"Communities, Customer & Commercial Services",Sport & Leisure,Supplies & Services,Provisions,BIKOLD,23/03/2023,130.07
"Communities, Customer & Commercial Services",Sport & Leisure,Supplies & Services,Provisions,BIKOLD,23/03/2023,395.77
"Communities, Customer & Commercial Services",Sport & Leisure,Supplies & Services,Provisions,BIKOLD,23/03/2023,194.40
"Communities, Customer & Commercial Services",Sport & Leisure,Supplies & Services,Provisions,ROWLANDS & COMPANY,23/03/2023,116.68
"Communities, Customer & Commercial Services",Sport & Leisure,Supplies & Services,Provisions,ROWLANDS & COMPANY,23/03/2023,143.62
"Communities, Customer & Commercial Services",Sport & Leisure,Supplies & Services,Provisions,ROWLANDS & COMPANY,23/03/2023,143.51
"Communities, Customer & Commercial Services",Sport & Leisure,Supplies & Services,Provisions,ROWLANDS & COMPANY,23/03/2023,213.46
"Communities, Customer & Commercial Services",Sport & Leisure,Supplies & Services,Provisions,ROWLANDS & COMPANY,23/03/2023,130.74
"Communities, Customer & Commercial Services",Sport & Leisure,Supplies & Services,Provisions,ROWLANDS & COMPANY,23/03/2023,102.74
"Communities, Customer & Commercial Services",Sport & Leisure,Supplies & Services,Provisions,ROWLANDS & COMPANY,23/03/2023,171.19
"Communities, Customer & Commercial Services",Sport & Leisure,Supplies & Services,Provisions,ROWLANDS & COMPANY,23/03/2023,106.83
"Communities, Customer & Commercial Services",Sport & Leisure,Supplies & Services,Provisions,ROWLANDS & COMPANY,23/03/2023,247.13
"Communities, Customer & Commercial Services",Sport & Leisure,Supplies & Services,Provisions,ROWLANDS & COMPANY,23/03/2023,135.48
"Communities, Customer & Commercial Services",Sport & Leisure,Supplies & Services,Provisions,BIKOLD,23/03/2023,278.74
"Communities, Customer & Commercial Services",Sport & Leisure,Supplies & Services,Provisions,BIKOLD,23/03/2023,213.03
"Communities, Customer & Commercial Services",Sport & Leisure,Supplies & Services,Provisions,BIKOLD,23/03/2023,233.11
"Communities, Customer & Commercial Services",Sport & Leisure,Supplies & Services,Provisions,BIKOLD,23/03/2023,145.53
"Communities, Customer & Commercial Services",Sport & Leisure,Supplies & Services,Provisions,BIKOLD,23/03/2023,349.69
"Communities, Customer & Commercial Services",Sport & Leisure,Supplies & Services,Provisions,BIKOLD,23/03/2023,593.55
"Communities, Customer & Commercial Services",Sport & Leisure,Supplies & Services,Provisions,J S Catering Butchers,20/03/2023,114.65
"Communities, Customer & Commercial Services",Sport & Leisure,Supplies & Services,Provisions,J S Catering Butchers,20/03/2023,172.80
"Communities, Customer & Commercial Services",Sport & Leisure,Supplies & Services,Provisions,ROWLANDS & COMPANY,27/03/2023,119.37
"Communities, Customer & Commercial Services",Sport & Leisure,Supplies & Services,Provisions,ROWLANDS & COMPANY,27/03/2023,112.94
"Communities, Customer & Commercial Services",Sport & Leisure,Supplies & Services,Provisions,ROWLANDS & COMPANY,27/03/2023,145.29
"Communities, Customer & Commercial Services",Sport & Leisure,Supplies & Services,Provisions,ROWLANDS & COMPANY,27/03/2023,157.96
"Communities, Customer & Commercial Services",Sport & Leisure,Supplies & Services,Provisions,ROWLANDS & COMPANY,27/03/2023,247.15
"Communities, Customer & Commercial Services",Sport & Leisure,Supplies & Services,Provisions,J S Catering Butchers,20/03/2023,170.10
"Communities, Customer & Commercial Services",Sport & Leisure,Supplies & Services,Provisions,J S Catering Butchers,20/03/2023,216.62
"Communities, Customer & Commercial Services",Sport & Leisure,Supplies & Services,Provisions,BIKOLD,23/03/2023,123.87
"Communities, Customer & Commercial Services",Sport & Leisure,Supplies & Services,Provisions,BIKOLD,23/03/2023,144.93
"Communities, Customer & Commercial Services",Sport & Leisure,Supplies & Services,Provisions,BIKOLD,23/03/2023,139.50
"Communities, Customer & Commercial Services",Sport & Leisure,Supplies & Services,Provisions,BIKOLD,23/03/2023,220.87
"Communities, Customer & Commercial Services",Sport & Leisure,Supplies & Services,Provisions,BIKOLD,23/03/2023,226.94
"Communities, Customer & Commercial Services",Sport & Leisure,Supplies & Services,Provisions,BIKOLD,23/03/2023,130.49
"Communities, Customer & Commercial Services",Sport & Leisure,Supplies & Services,Provisions,BIKOLD,23/03/2023,116.99
"Communities, Customer & Commercial Services",Sport & Leisure,Supplies & Services,Provisions,BIKOLD,23/03/2023,121.79
"Communities, Customer & Commercial Services",Sport & Leisure,Supplies & Services,Provisions,BIKOLD,23/03/2023,274.35
"Communities, Customer & Commercial Services",Sport & Leisure,Supplies & Services,Provisions,BIKOLD,23/03/2023,439.46
"Communities, Customer & Commercial Services",Sport & Leisure,Supplies & Services,Provisions,BIKOLD,23/03/2023,147.19
"Communities, Customer & Commercial Services",Sport & Leisure,Supplies & Services,Provisions,BIKOLD,23/03/2023,130.53
"Communities, Customer & Commercial Services",Sport & Leisure,Supplies & Services,Provisions,BIKOLD,23/03/2023,110.53
"Communities, Customer & Commercial Services",Sport & Leisure,Supplies & Services,Provisions,BIKOLD,23/03/2023,209.52
"Communities, Customer & Commercial Services",Sport & Leisure,Supplies & Services,Provisions,BIKOLD,23/03/2023,348.70
"Communities, Customer & Commercial Services",Sport & Leisure,Supplies & Services,Provisions,BIKOLD,23/03/2023,377.46
"Communities, Customer & Commercial Services",Sport & Leisure,Supplies & Services,Provisions,BIKOLD,23/03/2023,395.07
"Communities, Customer & Commercial Services",Sport & Leisure,Supplies & Services,Provisions,BIKOLD,23/03/2023,434.18
"Communities, Customer & Commercial Services",Sport & Leisure,Supplies & Services,Provisions,BIKOLD,23/03/2023,199.11
"Communities, Customer & Commercial Services",Sport & Leisure,Supplies & Services,Provisions,BIKOLD,23/03/2023,287.13
"Communities, Customer & Commercial Services",Sport & Leisure,Supplies & Services,Provisions,BIKOLD,23/03/2023,102.39
"Communities, Customer & Commercial Services",Sport & Leisure,Supplies & Services,Provisions,BIKOLD,23/03/2023,164.51
"Communities, Customer & Commercial Services",Sport & Leisure,Supplies & Services,Provisions,BIKOLD,23/03/2023,120.09
"Communities, Customer & Commercial Services",Sport & Leisure,Supplies & Services,Provisions,BIKOLD,23/03/2023,144.84
"Communities, Customer & Commercial Services",Sport & Leisure,Supplies & Services,Provisions,BIKOLD,31/03/2023,172.83
"Communities, Customer & Commercial Services",Sport & Leisure,Supplies & Services,Provisions,BIKOLD,31/03/2023,164.39
"Communities, Customer & Commercial Services",Sport & Leisure,Supplies & Services,Provisions,BIKOLD,31/03/2023,159.56
"Communities, Customer & Commercial Services",Sport & Leisure,Supplies & Services,Provisions,BIKOLD,31/03/2023,252.49
"Communities, Customer & Commercial Services",Sport & Leisure,Supplies & Services,Provisions,BIKOLD,31/03/2023,570.31
"Communities, Customer & Commercial Services",Sport & Leisure,Supplies & Services,Provisions,BIKOLD,31/03/2023,417.82
"Communities, Customer & Commercial Services",Sport & Leisure,Supplies & Services,Provisions,BIKOLD,31/03/2023,162.50
"Communities, Customer & Commercial Services",Sport & Leisure,Supplies & Services,Provisions,BIKOLD,31/03/2023,148.06
"Communities, Customer & Commercial Services",Sport & Leisure,Supplies & Services,Provisions,BIKOLD,31/03/2023,184.57
"Communities, Customer & Commercial Services",Sport & Leisure,Supplies & Services,Provisions,BIKOLD,23/03/2023,315.45
"Communities, Customer & Commercial Services",Sport & Leisure,Supplies & Services,Provisions,BIKOLD,23/03/2023,145.62
"Communities, Customer & Commercial Services",Sport & Leisure,Supplies & Services,Provisions,BIKOLD,23/03/2023,331.30
"Communities, Customer & Commercial Services",Sport & Leisure,Supplies & Services,Provisions,BIKOLD,23/03/2023,201.43
"Communities, Customer & Commercial Services",Sport & Leisure,Supplies & Services,Provisions,BIKOLD,23/03/2023,215.83
"Communities, Customer & Commercial Services",Sport & Leisure,Supplies & Services,Provisions,BIKOLD,23/03/2023,117.86
"Communities, Customer & Commercial Services",Sport & Leisure,Supplies & Services,Provisions,BIKOLD,23/03/2023,388.55
"Communities, Customer & Commercial Services",Sport & Leisure,Supplies & Services,Provisions,BIKOLD,23/03/2023,388.86
"Communities, Customer & Commercial Services",Sport & Leisure,Supplies & Services,Provisions,BIKOLD,23/03/2023,384.37
"Communities, Customer & Commercial Services",Sport & Leisure,Supplies & Services,Provisions,BIKOLD,23/03/2023,381.54
"Communities, Customer & Commercial Services",Sport & Leisure,Supplies & Services,Provisions,BIKOLD,23/03/2023,145.98
"Communities, Customer & Commercial Services",Sport & Leisure,Supplies & Services,Provisions,BIKOLD,23/03/2023,395.17
"Communities, Customer & Commercial Services",Sport & Leisure,Supplies & Services,Provisions,BIKOLD,23/03/2023,343.89
"Communities, Customer & Commercial Services",Sport & Leisure,Supplies & Services,Provisions,BIKOLD,23/03/2023,362.35
"Communities, Customer & Commercial Services",Sport & Leisure,Supplies & Services,Provisions,BIKOLD,23/03/2023,271.68
"Communities, Customer & Commercial Services",Sport & Leisure,Supplies & Services,Provisions,BIKOLD,23/03/2023,171.62
"Communities, Customer & Commercial Services",Sport & Leisure,Supplies & Services,Provisions,BIKOLD,23/03/2023,275.55
"Communities, Customer & Commercial Services",Sport & Leisure,Supplies & Services,Provisions,BIKOLD,31/03/2023,309.60
"Communities, Customer & Commercial Services",Sport & Leisure,Supplies & Services,Provisions,BIKOLD,31/03/2023,134.32
"Communities, Customer & Commercial Services",Sport & Leisure,Supplies & Services,Provisions,BIKOLD,31/03/2023,220.68
"Communities, Customer & Commercial Services",Sport & Leisure,Supplies & Services,Provisions,BIKOLD,31/03/2023,316.14
"Communities, Customer & Commercial Services",Sport & Leisure,Supplies & Services,Provisions,BIKOLD,31/03/2023,120.75
"Communities, Customer & Commercial Services",Sport & Leisure,Supplies & Services,Provisions,BIKOLD,31/03/2023,179.89
"Communities, Customer & Commercial Services",Sport & Leisure,Supplies & Services,Provisions,BIKOLD,23/03/2023,128.81
"Communities, Customer & Commercial Services",Sport & Leisure,Supplies & Services,Provisions,BIKOLD,23/03/2023,121.49
"Communities, Customer & Commercial Services",Sport & Leisure,Supplies & Services,Provisions,BIKOLD,23/03/2023,120.36
"Communities, Customer & Commercial Services",Sport & Leisure,Supplies & Services,Provisions,BIKOLD,23/03/2023,533.51
"Communities, Customer & Commercial Services",Sport & Leisure,Supplies & Services,Provisions,BIKOLD,23/03/2023,246.20
"Communities, Customer & Commercial Services",Sport & Leisure,Supplies & Services,Provisions,BIKOLD,23/03/2023,174.71
"Communities, Customer & Commercial Services",Sport & Leisure,Supplies & Services,Provisions,BIKOLD,23/03/2023,127.49
"Communities, Customer & Commercial Services",Sport & Leisure,Supplies & Services,Provisions,BIKOLD,23/03/2023,490.80
"Communities, Customer & Commercial Services",Sport & Leisure,Supplies & Services,Provisions,BIKOLD,23/03/2023,119.56
"Communities, Customer & Commercial Services",Sport & Leisure,Supplies & Services,Provisions,BIKOLD,23/03/2023,125.13
"Communities, Customer & Commercial Services",Sport & Leisure,Supplies & Services,Provisions,BIKOLD,23/03/2023,214.92
"Communities, Customer & Commercial Services",Sport & Leisure,Supplies & Services,Provisions,BIKOLD,31/03/2023,138.01
"Communities, Customer & Commercial Services",Sport & Leisure,Supplies & Services,Provisions,BIKOLD,31/03/2023,126.47
"Communities, Customer & Commercial Services",Sport & Leisure,Supplies & Services,Provisions,BIKOLD,31/03/2023,199.96
"Communities, Customer & Commercial Services",Sport & Leisure,Supplies & Services,Provisions,BIKOLD,31/03/2023,216.65
"Communities, Customer & Commercial Services",Sport & Leisure,Supplies & Services,Provisions,BIKOLD,31/03/2023,176.11
"Communities, Customer & Commercial Services",Sport & Leisure,Supplies & Services,Provisions,BIKOLD,31/03/2023,196.73
"Communities, Customer & Commercial Services",Sport & Leisure,Supplies & Services,Provisions,ROWLANDS & COMPANY,27/03/2023,138.11
"Communities, Customer & Commercial Services",Sport & Leisure,Supplies & Services,Provisions,ROWLANDS & COMPANY,27/03/2023,106.88
"Communities, Customer & Commercial Services",Sport & Leisure,Supplies & Services,Provisions,ROWLANDS & COMPANY,27/03/2023,112.34
"Communities, Customer & Commercial Services",Sport & Leisure,Supplies & Services,Provisions,BIKOLD,31/03/2023,155.67
"Communities, Customer & Commercial Services",Sport & Leisure,Supplies & Services,Provisions,ROWLANDS & COMPANY,27/03/2023,131.54
"Communities, Customer & Commercial Services",Sport & Leisure,Supplies & Services,Provisions,BIKOLD,31/03/2023,182.90
"Communities, Customer & Commercial Services",Sport & Leisure,Supplies & Services,Provisions,ROWLANDS & COMPANY,27/03/2023,161.73
"Communities, Customer & Commercial Services",Sport & Leisure,Supplies & Services,Provisions,ROWLANDS & COMPANY,27/03/2023,146.25
"Communities, Customer & Commercial Services",Sport & Leisure,Supplies & Services,Provisions,ROWLANDS & COMPANY,27/03/2023,129.18
"Communities, Customer & Commercial Services",Sport & Leisure,Supplies & Services,Provisions,BIKOLD,31/03/2023,283.53
"Communities, Customer & Commercial Services",Sport & Leisure,Supplies & Services,Provisions,BIKOLD,31/03/2023,141.13
"Communities, Customer & Commercial Services",Sport & Leisure,Supplies & Services,Provisions,BIKOLD,31/03/2023,594.02
"Communities, Customer & Commercial Services",Sport & Leisure,Supplies & Services,Provisions,BIKOLD,31/03/2023,806.53
"Communities, Customer & Commercial Services",Sport & Leisure,Supplies & Services,Provisions,BIKOLD,31/03/2023,211.56
"Communities, Customer & Commercial Services",Sport & Leisure,Supplies & Services,Provisions,ROWLANDS & COMPANY,27/03/2023,194.31
"Communities, Customer & Commercial Services",Sport & Leisure,Supplies & Services,Provisions,ROWLANDS & COMPANY,27/03/2023,122.35
"Communities, Customer & Commercial Services",Sport & Leisure,Supplies & Services,Provisions,ROWLANDS & COMPANY,27/03/2023,143.24
